Body,Body Name,Date,TransNo,Amount � (Excl VAT),Supplier name,Description,Expense Area,Expense Type,Expense Code,
http://opendatacommunities.org/id/london-borough-council/sutton,London Borough of Sutton,10/11/2020,1309204,128.33 , AO RETAIL LIMITED,FRIDGE,Peoples Services Directorate,Provisions - General,F150,
http://opendatacommunities.org/id/london-borough-council/sutton,London Borough of Sutton,27/10/2020,1309204,"4,000.00 ", CS MORRISONS GIFT CARD,PURCHASE OF MORRISONS' VOUCHERS FOR FSMS IN HALF TERM PROJECT,Peoples Services Directorate,Other Services,F340,
http://opendatacommunities.org/id/london-borough-council/sutton,London Borough of Sutton,27/10/2020,1309204,"3,000.00 ", CS MORRISONS GIFT CARD,PURCHASE OF MORRISONS' VOUCHERS FOR FSMS IN HALF TERM PROJECT,Peoples Services Directorate,Other Services,F340,
http://opendatacommunities.org/id/london-borough-council/sutton,London Borough of Sutton,27/10/2020,1309204,"3,000.00 ", CS MORRISONS GIFT CARD,PURCHASE OF MORRISONS' VOUCHERS FOR FSMS IN HALF TERM PROJECT,Peoples Services Directorate,Other Services,F340,
http://opendatacommunities.org/id/london-borough-council/sutton,London Borough of Sutton,07/12/2020,1309207,34.80 , STK SHUTTERSTOCK,SHUTTERSTOCK PURCHASE,Peoples Services Directorate,Other Services,F340,
http://opendatacommunities.org/id/london-borough-council/sutton,London Borough of Sutton,25/02/2021,1310864,8.75 , POUNDLAND LTD,GARDENING EQUIPMENT,Health and Wellbeing Directorate,Education Equipment,F009,
http://opendatacommunities.org/id/london-borough-council/sutton,London Borough of Sutton,23/02/2021,1310864,8.32 , TWINKL LIMITED,TWINKL SUPSCRIPTION,Health and Wellbeing Directorate,Education Equipment,F009,
http://opendatacommunities.org/id/london-borough-council/sutton,London Borough of Sutton,05/02/2021,1310864,10.82 , AMAZON.CO.UK MF1419ZL4,OUTDOOR PAINT,Health and Wellbeing Directorate,Education Equipment,F009,
http://opendatacommunities.org/id/london-borough-council/sutton,London Borough of Sutton,03/02/2021,1310864,29.17 , OUT OF SCHOOL ALLIANCE,SUBSCRIPTION,Health and Wellbeing Directorate,Education Equipment,F009,
http://opendatacommunities.org/id/london-borough-council/sutton,London Borough of Sutton,01/02/2021,1310864,15.00 , ARGOS LTD,STORAGE BOXES,Health and Wellbeing Directorate,Education Equipment,F009,
http://opendatacommunities.org/id/london-borough-council/sutton,London Borough of Sutton,14/12/2020,1309207,12.08 , AMAZON.CO.UK MS5KJ2XB4,TOYS AND EQUIPMENT,Health and Wellbeing Directorate,Education Equipment,F009,
http://opendatacommunities.org/id/london-borough-council/sutton,London Borough of Sutton,30/11/2020,1309207,24.16 , ARGOS LTD,ELECTRICAL (AMAZON ALEXA),Health and Wellbeing Directorate,Education Equipment,F009,
http://opendatacommunities.org/id/london-borough-council/sutton,London Borough of Sutton,23/12/2020,1309207,8.32 , TWINKL LIMITED,TWINKL SUBSCRIPTION,Health and Wellbeing Directorate,Education Equipment,F009,
http://opendatacommunities.org/id/london-borough-council/sutton,London Borough of Sutton,20/11/2020,1309204,52.41 , AMZNMKTPLACE,TOYS & EQUIPMENT,Health and Wellbeing Directorate,Education Equipment,F009,
http://opendatacommunities.org/id/london-borough-council/sutton,London Borough of Sutton,03/11/2020,1309204,40.91 , AMZNMKTPLACE AMAZON.CO,TOYS & EQUIPMENT,Health and Wellbeing Directorate,Education Equipment,F009,
http://opendatacommunities.org/id/london-borough-council/sutton,London Borough of Sutton,23/11/2020,1309204,8.32 , TWINKL LIMITED,TWINKL SUBSCRIPTION,Health and Wellbeing Directorate,Education Equipment,F009,
http://opendatacommunities.org/id/london-borough-council/sutton,London Borough of Sutton,23/01/2021,1309674,8.32 , TWINKL LIMITED,TWINKL SUBSCRIPTION,Health and Wellbeing Directorate,Education Equipment,F009,
http://opendatacommunities.org/id/london-borough-council/sutton,London Borough of Sutton,07/01/2021,1309674,35.35 , AMZNMKTPLACE,TOYS & EQUIPMENT,Health and Wellbeing Directorate,Education Equipment,F009,
http://opendatacommunities.org/id/london-borough-council/sutton,London Borough of Sutton,04/01/2021,1309674,10.47 , AMZNMKTPLACE,FACE SHIELDS,Health and Wellbeing Directorate,Education Equipment,F009,
http://opendatacommunities.org/id/london-borough-council/sutton,London Borough of Sutton,25/02/2021,1310864,15.00 , ASDA STORES,GROCERIES,Health and Wellbeing Directorate,Provisions - General,F150,
http://opendatacommunities.org/id/london-borough-council/sutton,London Borough of Sutton,22/02/2021,1310864,21.17 , ASDA SUPERSTORE,GROCERIES,Health and Wellbeing Directorate,Provisions - General,F150,
http://opendatacommunities.org/id/london-borough-council/sutton,London Borough of Sutton,06/02/2021,1310864,12.22 , TESCO STORE 3235,GROCERIES,Health and Wellbeing Directorate,Provisions - General,F150,
http://opendatacommunities.org/id/london-borough-council/sutton,London Borough of Sutton,19/12/2020,1309207,19.44 , TESCO STORE 3235,GROCERIES,Health and Wellbeing Directorate,Provisions - General,F150,
http://opendatacommunities.org/id/london-borough-council/sutton,London Borough of Sutton,14/12/2020,1309207,31.33 , ASDA SUPERSTORE,GROCERIES,Health and Wellbeing Directorate,Provisions - General,F150,
http://opendatacommunities.org/id/london-borough-council/sutton,London Borough of Sutton,07/12/2020,1309207,27.35 , ASDA SUPERSTORE,GROCERIES,Health and Wellbeing Directorate,Provisions - General,F150,
http://opendatacommunities.org/id/london-borough-council/sutton,London Borough of Sutton,26/11/2020,1309207,8.33 , ASDA SUPERSTORE,PLANTS,Health and Wellbeing Directorate,Provisions - General,F150,
http://opendatacommunities.org/id/london-borough-council/sutton,London Borough of Sutton,16/11/2020,1309204,30.32 , ASDA SUPERSTORE,GROCERIES,Health and Wellbeing Directorate,Provisions - General,F150,
http://opendatacommunities.org/id/london-borough-council/sutton,London Borough of Sutton,10/11/2020,1309204,25.30 , ASDA SUPERSTORE,GROCERIES,Health and Wellbeing Directorate,Provisions - General,F150,
http://opendatacommunities.org/id/london-borough-council/sutton,London Borough of Sutton,03/11/2020,1309204,41.38 , ASDA SUPERSTORE,GROCERIES,Health and Wellbeing Directorate,Provisions - General,F150,
http://opendatacommunities.org/id/london-borough-council/sutton,London Borough of Sutton,26/10/2020,1309204,11.15 , ASDA SUPERSTORE,GROCERIES,Health and Wellbeing Directorate,Provisions - General,F150,
http://opendatacommunities.org/id/london-borough-council/sutton,London Borough of Sutton,23/11/2020,1309204,43.12 , ASDA SUPERSTORE,GROCERIES,Health and Wellbeing Directorate,Provisions - General,F150,
http://opendatacommunities.org/id/london-borough-council/sutton,London Borough of Sutton,23/01/2021,1309674,30.77 , TESCO STORE 3235,GROCERIES,Health and Wellbeing Directorate,Provisions - General,F150,
http://opendatacommunities.org/id/london-borough-council/sutton,London Borough of Sutton,16/02/2021,1310864,17.00 , SAINSBURYS SACAT 0038,GROCERIES,Health and Wellbeing Directorate,Refreshments,F155,
http://opendatacommunities.org/id/london-borough-council/sutton,London Borough of Sutton,30/11/2020,1309207,26.94 , ASDA SUPERSTORE,GROCERIES,Health and Wellbeing Directorate,Refreshments,F155,
http://opendatacommunities.org/id/london-borough-council/sutton,London Borough of Sutton,28/10/2020,1309204,14.81 , ASDA SUPERSTORE,GROCERIES,Health and Wellbeing Directorate,Refreshments,F155,
http://opendatacommunities.org/id/london-borough-council/sutton,London Borough of Sutton,07/01/2021,1309674,(29.12), BOOTS.COM,ITEMS NEEDED FOR CLIENT,Peoples Services Directorate,First Aid and Medical Requisites,F105,
http://opendatacommunities.org/id/london-borough-council/sutton,London Borough of Sutton,14/12/2020,1309207,79.12 , BOOTS.COM,REQUESTED BY SOCIAL WORKER,Peoples Services Directorate,Personal Requisites,F106,
http://opendatacommunities.org/id/london-borough-council/sutton,London Borough of Sutton,22/02/2021,1310864,20.00 , OYSTER BUS AUTOLOAD,OYSTER CARD AUTO TOP-UP,Peoples Services Directorate,Travelling and Subsistence Allowances,A530,
http://opendatacommunities.org/id/london-borough-council/sutton,London Borough of Sutton,19/12/2020,1309207,20.00 , OYSTER BUS AUTOLOAD,OYSTER CARD AUTO TOP-UP,Peoples Services Directorate,Travelling and Subsistence Allowances,A530,
http://opendatacommunities.org/id/london-borough-council/sutton,London Borough of Sutton,02/12/2020,1309207,25.00 , OYSTER ONLINE,NEW OYSTER CARD PURCHASE,Peoples Services Directorate,Travelling and Subsistence Allowances,A530,
http://opendatacommunities.org/id/london-borough-council/sutton,London Borough of Sutton,18/02/2021,1310864,40.00 , AMZN DIGITAL,PLAYSTATION CODE FOR CLIENT,Peoples Services Directorate,Personal Requisites,F106,
http://opendatacommunities.org/id/london-borough-council/sutton,London Borough of Sutton,26/10/2020,1309204,66.00 , WWW.BOOKING.GLL.ORG,PERSONAL REQUEST TICKET FOR CONTACT,Peoples Services Directorate,Personal Requisites,F106,
http://opendatacommunities.org/id/london-borough-council/sutton,London Borough of Sutton,18/01/2021,1309674,79.99 , AMZNMKTPLACE,COMPUTER DESK REQUESTED BY SOCIAL WORKER (100%),Peoples Services Directorate,Personal Requisites,F106,
http://opendatacommunities.org/id/london-borough-council/sutton,London Borough of Sutton,22/01/2021,1309674,132.50 , EB  ADVISING WITH CONV,EVENT REQUIRED FOR SOCIAL WORKER,Peoples Services Directorate,Fees - Other,F299,
http://opendatacommunities.org/id/london-borough-council/sutton,London Borough of Sutton,05/11/2020,1309204,15.86 , UBER TRIP HELP.UBER.CO,EU TRAVEL,Peoples Services Directorate,Other Services,F340,
http://opendatacommunities.org/id/london-borough-council/sutton,London Borough of Sutton,04/11/2020,1309204,179.14 , ARGOS LTD,VACUUM CLEANER,Peoples Services Directorate,Other Services,F340,
http://opendatacommunities.org/id/london-borough-council/sutton,London Borough of Sutton,04/11/2020,1309204,0.82 , AMAZON PRIME M74JW1LJ4,HAS BEEN REFUNDED IN FOLLOWING MONTH. CHARGED IN ERROR. DOES NOT REFLECT IN AMAZON ACCOUNT,Peoples Services Directorate,Other Services,F340,
http://opendatacommunities.org/id/london-borough-council/sutton,London Borough of Sutton,02/11/2020,1309204,12.82 , AMZNMKTPLACE AMAZON.CO,INDOOR FIREWORKS (2 RECEIPTS),Peoples Services Directorate,Other Services,F340,
http://opendatacommunities.org/id/london-borough-council/sutton,London Borough of Sutton,30/10/2020,1309204,6.39 , BUDGENS,WEEKLY TAKEAWAY,Peoples Services Directorate,Other Services,F340,
http://opendatacommunities.org/id/london-borough-council/sutton,London Borough of Sutton,29/10/2020,1309204,54.66 , LIDL GB LONDON,WEEKLY SHOP,Peoples Services Directorate,Other Services,F340,
http://opendatacommunities.org/id/london-borough-council/sutton,London Borough of Sutton,28/10/2020,1309204,178.29 , DUNELM,HOUSEHOLD ITEM,Peoples Services Directorate,Other Services,F340,
http://opendatacommunities.org/id/london-borough-council/sutton,London Borough of Sutton,05/11/2020,1309204,16.47 , UBER    TRIP,EU TRAVEL,Peoples Services Directorate,Other Services,F340,
http://opendatacommunities.org/id/london-borough-council/sutton,London Borough of Sutton,27/10/2020,1309204,7.47 , ANNA PHARMACY,FEMININE CARE,Peoples Services Directorate,Other Services,F340,
http://opendatacommunities.org/id/london-borough-council/sutton,London Borough of Sutton,27/10/2020,1309204,13.33 , BP WRYTHE CONNECT,IPHONE CHARGER,Peoples Services Directorate,Other Services,F340,
http://opendatacommunities.org/id/london-borough-council/sutton,London Borough of Sutton,27/10/2020,1309204,2.08 , BP WRYTHE CONNECT,FEMINE CARE,Peoples Services Directorate,Other Services,F340,
http://opendatacommunities.org/id/london-borough-council/sutton,London Borough of Sutton,26/10/2020,1309204,24.99 , NORTON  NP266944514,IPHONE SECURITY,Peoples Services Directorate,Other Services,F340,
http://opendatacommunities.org/id/london-borough-council/sutton,London Borough of Sutton,26/10/2020,1309204,13.72 , WH SMITH,SCHOOL ITEMS,Peoples Services Directorate,Other Services,F340,
http://opendatacommunities.org/id/london-borough-council/sutton,London Borough of Sutton,26/10/2020,1309204,36.73 , NEW LOOK 1985,SCHOOL CLOTHES,Peoples Services Directorate,Other Services,F340,
http://opendatacommunities.org/id/london-borough-council/sutton,London Borough of Sutton,17/12/2020,1309207,2.48 , CARD FACTORY,EU - PERSONAL ALLOWANCE,Peoples Services Directorate,Other Services,F340,
http://opendatacommunities.org/id/london-borough-council/sutton,London Borough of Sutton,17/12/2020,1309207,12.57 , NEW LOOK 1985,EU - PERSONAL ALLOWANCE,Peoples Services Directorate,Other Services,F340,
http://opendatacommunities.org/id/london-borough-council/sutton,London Borough of Sutton,17/12/2020,1309207,56.67 , PRIMARK,EU - PERSONAL ALLOWANCE,Peoples Services Directorate,Other Services,F340,
http://opendatacommunities.org/id/london-borough-council/sutton,London Borough of Sutton,15/12/2020,1309207,19.17 , TREATWELL,EU - PERSONAL ALLOWANCE,Peoples Services Directorate,Other Services,F340,
http://opendatacommunities.org/id/london-borough-council/sutton,London Borough of Sutton,14/12/2020,1309207,47.50 , TULLEYS ENTERTAINMENT,EU AND SISTERS - ACTIVITY,Peoples Services Directorate,Other Services,F340,
http://opendatacommunities.org/id/london-borough-council/sutton,London Borough of Sutton,14/12/2020,1309207,39.64 , ASDA GROCERIES ONLINE,WEEKLY SHOP,Peoples Services Directorate,Other Services,F340,
http://opendatacommunities.org/id/london-borough-council/sutton,London Borough of Sutton,14/12/2020,1309207,(0.39), ASDA GROCERIES ONLINE,WEEKLY SHOP - PRICE ADJUSTED,Peoples Services Directorate,Other Services,F340,
http://opendatacommunities.org/id/london-borough-council/sutton,London Borough of Sutton,11/12/2020,1309207,27.50 , WWW.BOOKING.GLL.ORG,EU - ACTIVITY,Peoples Services Directorate,Other Services,F340,
http://opendatacommunities.org/id/london-borough-council/sutton,London Borough of Sutton,11/12/2020,1309207,25.86 , ASDA GROCERIES ONLINE,HOUSEHOLD ITEMS,Peoples Services Directorate,Other Services,F340,
http://opendatacommunities.org/id/london-borough-council/sutton,London Borough of Sutton,10/12/2020,1309207,5.00 , ASDA STORES 7134,WEEKLY DELIVERY CHARGE,Peoples Services Directorate,Other Services,F340,
http://opendatacommunities.org/id/london-borough-council/sutton,London Borough of Sutton,07/12/2020,1309207,39.21 , ASDA GROCERIES ONLINE,WEEKLY SHOP,Peoples Services Directorate,Other Services,F340,
http://opendatacommunities.org/id/london-borough-council/sutton,London Borough of Sutton,07/12/2020,1309207,38.36 , ASDA GROCERIES ONLINE,WEEKLY SHOP,Peoples Services Directorate,Other Services,F340,
http://opendatacommunities.org/id/london-borough-council/sutton,London Borough of Sutton,07/12/2020,1309207,(0.07), ASDA GROCERIES ONLINE,WEEKLY SHOP - PRICE ADJUSTMENT,Peoples Services Directorate,Other Services,F340,
http://opendatacommunities.org/id/london-borough-council/sutton,London Borough of Sutton,06/12/2020,1309207,4.67 , UBER    TRIP,EU - CANCELLED JOURNEY,Peoples Services Directorate,Other Services,F340,
http://opendatacommunities.org/id/london-borough-council/sutton,London Borough of Sutton,06/12/2020,1309207,(4.67), UBER    TRIP,EU - CANCELLED JOURNEY,Peoples Services Directorate,Other Services,F340,
http://opendatacommunities.org/id/london-borough-council/sutton,London Borough of Sutton,03/12/2020,1309207,10.82 , FONES FUSION,EU - PHONE,Peoples Services Directorate,Other Services,F340,
http://opendatacommunities.org/id/london-borough-council/sutton,London Borough of Sutton,03/12/2020,1309207,8.32 , FONES FUSION,EU - PHONE,Peoples Services Directorate,Other Services,F340,
http://opendatacommunities.org/id/london-borough-council/sutton,London Borough of Sutton,30/11/2020,1309207,51.46 , B & Q 1191,HOUSEHOLD ITEMS,Peoples Services Directorate,Other Services,F340,
http://opendatacommunities.org/id/london-borough-council/sutton,London Borough of Sutton,30/11/2020,1309207,3.96 , ASDA STORES,WEEKLY SHOP,Peoples Services Directorate,Other Services,F340,
http://opendatacommunities.org/id/london-borough-council/sutton,London Borough of Sutton,30/11/2020,1309207,3.29 , GREGGS PLC,EU - LUNCH,Peoples Services Directorate,Other Services,F340,
http://opendatacommunities.org/id/london-borough-council/sutton,London Borough of Sutton,30/11/2020,1309207,53.24 , ASDA GROCERIES ONLINE,WEEKLY SHOP,Peoples Services Directorate,Other Services,F340,
http://opendatacommunities.org/id/london-borough-council/sutton,London Borough of Sutton,27/11/2020,1309207,5.32 , BUDGENS,WEEKLY TAKEAWAY,Peoples Services Directorate,Other Services,F340,
http://opendatacommunities.org/id/london-borough-council/sutton,London Borough of Sutton,28/12/2020,1309207,40.27 , ASDA GROCERIES ONLINE,WEEKLY SHOP,Peoples Services Directorate,Other Services,F340,
http://opendatacommunities.org/id/london-borough-council/sutton,London Borough of Sutton,28/12/2020,1309207,(0.70), ASDA GROCERIES ONLINE,WEEKLY SHOP - PRICE ADJUSTEMENT,Peoples Services Directorate,Other Services,F340,
http://opendatacommunities.org/id/london-borough-council/sutton,London Borough of Sutton,21/12/2020,1309207,41.34 , ASDA STORES,WEEKLY SHOP,Peoples Services Directorate,Other Services,F340,
http://opendatacommunities.org/id/london-borough-council/sutton,London Borough of Sutton,19/12/2020,1309207,8.33 , ASDA STORES,EU - PERSONAL ALLOWANCE,Peoples Services Directorate,Other Services,F340,
http://opendatacommunities.org/id/london-borough-council/sutton,London Borough of Sutton,19/12/2020,1309207,12.52 , SUPERDRUG STORES PLC,EU - PERSONAL ALLOWANCE,Peoples Services Directorate,Other Services,F340,
http://opendatacommunities.org/id/london-borough-council/sutton,London Borough of Sutton,19/12/2020,1309207,4.17 , MCDONALDS,EU - LUNCH,Peoples Services Directorate,Other Services,F340,
http://opendatacommunities.org/id/london-borough-council/sutton,London Borough of Sutton,19/12/2020,1309207,15.87 , H & M,EU - PERSONAL ALLOWANCE,Peoples Services Directorate,Other Services,F340,
http://opendatacommunities.org/id/london-borough-council/sutton,London Borough of Sutton,19/12/2020,1309207,16.74 , T K MAXX,EU - PERSONAL ALLOWANCE,Peoples Services Directorate,Other Services,F340,
http://opendatacommunities.org/id/london-borough-council/sutton,London Borough of Sutton,19/12/2020,1309207,2.50 , WILKO RETAIL LIMITED,EU - PERSONAL ALLOWANCE,Peoples Services Directorate,Other Services,F340,
http://opendatacommunities.org/id/london-borough-council/sutton,London Borough of Sutton,19/12/2020,1309207,16.67 , NEW LOOK 1985,EU - PERSONAL ALLOWANCE,Peoples Services Directorate,Other Services,F340,
http://opendatacommunities.org/id/london-borough-council/sutton,London Borough of Sutton,19/12/2020,1309207,28.33 , PRIMARK,EU - PERSONAL ALLOWANCE,Peoples Services Directorate,Other Services,F340,
http://opendatacommunities.org/id/london-borough-council/sutton,London Borough of Sutton,18/12/2020,1309207,5.07 , BUDGENS,WEEKLY TAKEAWAY,Peoples Services Directorate,Other Services,F340,
http://opendatacommunities.org/id/london-borough-council/sutton,London Borough of Sutton,17/12/2020,1309207,3.47 , MCDONALDS,EU - LUNCH,Peoples Services Directorate,Other Services,F340,
http://opendatacommunities.org/id/london-borough-council/sutton,London Borough of Sutton,17/12/2020,1309207,1.67 , POUNDLAND LTD,HOUSEHOLD ITEMS,Peoples Services Directorate,Other Services,F340,
http://opendatacommunities.org/id/london-borough-council/sutton,London Borough of Sutton,17/12/2020,1309207,2.48 , SUPERDRUG STORES PLC,EU - PERSONAL ALLOWANCE,Peoples Services Directorate,Other Services,F340,
http://opendatacommunities.org/id/london-borough-council/sutton,London Borough of Sutton,17/12/2020,1309207,2.49 , H & M,EU - PERSONAL ALLOWANCE,Peoples Services Directorate,Other Services,F340,
http://opendatacommunities.org/id/london-borough-council/sutton,London Borough of Sutton,25/11/2020,1309204,18.08 , ASDA STORES,HOUSEHOLD ITEMS,Peoples Services Directorate,Other Services,F340,
http://opendatacommunities.org/id/london-borough-council/sutton,London Borough of Sutton,24/11/2020,1309204,"2,148.33 ", OFSTED INTERNET,OFSTED REGISTRATION,Peoples Services Directorate,Other Services,F340,
http://opendatacommunities.org/id/london-borough-council/sutton,London Borough of Sutton,23/11/2020,1309204,45.97 , ASDA GROCERIES ONLINE,WEEKLY SHOP,Peoples Services Directorate,Other Services,F340,
http://opendatacommunities.org/id/london-borough-council/sutton,London Borough of Sutton,23/11/2020,1309204,(0.02), ASDA GROCERIES ONLINE,POST ORDER PRICE ADJUSTMENT,Peoples Services Directorate,Other Services,F340,
http://opendatacommunities.org/id/london-borough-council/sutton,London Borough of Sutton,20/11/2020,1309204,5.32 , BUDGENS,WEEKLY SHOP,Peoples Services Directorate,Other Services,F340,
http://opendatacommunities.org/id/london-borough-council/sutton,London Borough of Sutton,19/11/2020,1309204,23.87 , AMZNMKTPLACE,OFFICE SUPPLIES (2 RECEIPTS),Peoples Services Directorate,Other Services,F340,
http://opendatacommunities.org/id/london-borough-council/sutton,London Borough of Sutton,16/11/2020,1309204,28.02 , B&Q DIRECT,PAINT FOR EU TO DECORATE HER ROOM,Peoples Services Directorate,Other Services,F340,
http://opendatacommunities.org/id/london-borough-council/sutton,London Borough of Sutton,16/11/2020,1309204,56.77 , ASDA GROCERIES ONLINE,WEEKLY SHOP,Peoples Services Directorate,Other Services,F340,
http://opendatacommunities.org/id/london-borough-council/sutton,London Borough of Sutton,16/11/2020,1309204,(0.25), ASDA GROCERIES ONLINE,POST ORDER PRICE ADJUSTMENT,Peoples Services Directorate,Other Services,F340,
http://opendatacommunities.org/id/london-borough-council/sutton,London Borough of Sutton,13/11/2020,1309204,5.32 , BUDGENS,WEEKLY TAKEAWAY,Peoples Services Directorate,Other Services,F340,
http://opendatacommunities.org/id/london-borough-council/sutton,London Borough of Sutton,12/11/2020,1309204,266.66 , ARGOS LTD,TV,Peoples Services Directorate,Other Services,F340,
http://opendatacommunities.org/id/london-borough-council/sutton,London Borough of Sutton,12/11/2020,1309204,131.25 , TVLICENSING.CO.UK,TV LICENCE,Peoples Services Directorate,Other Services,F340,
http://opendatacommunities.org/id/london-borough-council/sutton,London Borough of Sutton,01/09/2020,1309204,19.72 , AMZNMKTPLACE,FRAUDULENT TRANSACTION REFUND SEPT 2020 STATEMENT CE CARD RV JNL 1305719,Peoples Services Directorate,Other Services,F340,
http://opendatacommunities.org/id/london-borough-council/sutton,London Borough of Sutton,10/11/2020,1309204,22.46 , ARGOS LTD,HOUSEHOLD ITEMS,Peoples Services Directorate,Other Services,F340,
http://opendatacommunities.org/id/london-borough-council/sutton,London Borough of Sutton,10/11/2020,1309204,62.50 , DUNELM,CURTAINS AND CURTAIN POLES,Peoples Services Directorate,Other Services,F340,
http://opendatacommunities.org/id/london-borough-council/sutton,London Borough of Sutton,10/11/2020,1309204,6.67 , FUDGE CAKES CIRCLE BAK,TREAT FOR EU,Peoples Services Directorate,Other Services,F340,
http://opendatacommunities.org/id/london-borough-council/sutton,London Borough of Sutton,06/11/2020,1309204,5.32 , BUDGENS,WEEKLY SHOP,Peoples Services Directorate,Other Services,F340,
http://opendatacommunities.org/id/london-borough-council/sutton,London Borough of Sutton,06/11/2020,1309204,62.77 , TESCO STORE 3235,WEEKLY SHOP,Peoples Services Directorate,Other Services,F340,
http://opendatacommunities.org/id/london-borough-council/sutton,London Borough of Sutton,06/11/2020,1309204,41.81 , AMZNMKTPLACE AMAZON.CO,HOUSEHOLD ITEMS (2 RECEIPTS),Peoples Services Directorate,Other Services,F340,
http://opendatacommunities.org/id/london-borough-council/sutton,London Borough of Sutton,11/12/2020,1309207,320.00 , SURVEYMONKEY,SUBSCRIPTION NEEDED FOR IYS TEAM,Peoples Services Directorate,Subscriptions - General,F450,
http://opendatacommunities.org/id/london-borough-council/sutton,London Borough of Sutton,26/11/2020,1309207,26.66 , WWW.INSTANTPRINT.C,VISITOR BADGE INSERTS,Peoples Services Directorate,Administrative Equipment,F001,
http://opendatacommunities.org/id/london-borough-council/sutton,London Borough of Sutton,06/01/2021,1309674,80.00 , AMAZON PRIME MJ7YI86K4,COLLEGE AMAZON PRIME MEMBERSHIP,Peoples Services Directorate,Administrative Equipment,F001,
http://opendatacommunities.org/id/london-borough-council/sutton,London Borough of Sutton,30/11/2020,1309207,950.00 , PALISADESECURE.COM,LICENCES - IT,Peoples Services Directorate,IT Licences,F385,
http://opendatacommunities.org/id/london-borough-council/sutton,London Borough of Sutton,11/02/2021,1310864,100.00 , NATECLA,NATECLA ESOL,Peoples Services Directorate,Subscriptions - General,F450,
http://opendatacommunities.org/id/london-borough-council/sutton,London Borough of Sutton,10/12/2020,1309207,50.00 , PAYPAL  LEARNINGSKI,FE WEEK ANNUAL SUBSCRIPTION,Peoples Services Directorate,Subscriptions - General,F450,
http://opendatacommunities.org/id/london-borough-council/sutton,London Borough of Sutton,07/12/2020,1309207,23.00 , WWW.BLOOMANDWILD.COM,RETIREMENT FLOWERS AUDREY COOPER,Peoples Services Directorate,Miscellaneous Expenses,F620,
http://opendatacommunities.org/id/london-borough-council/sutton,London Borough of Sutton,26/11/2020,1309207,165.83 , AMAZON.CO.UK MY07B5084,BROTHER OVERHEAD LOCKER FOR SEWING ROOM.  SMALL PROJECTS BID,Peoples Services Directorate,Education Equipment,F009,
http://opendatacommunities.org/id/london-borough-council/sutton,London Borough of Sutton,29/11/2020,1309207,735.77 , AMZNMKTPLACE AMAZON.CO,JT AMAZON MATS & WEBCAMS 735.77+44.90 780.97,Peoples Services Directorate,Purchase of IT Equipment,F380,
http://opendatacommunities.org/id/london-borough-council/sutton,London Borough of Sutton,26/11/2020,1309207,31.43 , AMZNMKTPLACE AMAZON.CO,JT AMAZON MATS & WEBCAMS 735.77+44.90 780.97,Peoples Services Directorate,Purchase of IT Equipment,F380,
http://opendatacommunities.org/id/london-borough-council/sutton,London Borough of Sutton,26/11/2020,1309207,13.47 , AMZNMKTPLACE AMAZON.CO,JT AMAZON MATS & WEBCAMS 735.77+44.90 780.97,Peoples Services Directorate,Purchase of IT Equipment,F380,
http://opendatacommunities.org/id/london-borough-council/sutton,London Borough of Sutton,26/11/2020,1309207,78.96 , AMZNMKTPLACE AMAZON.CO,10X USB HEADSET,Peoples Services Directorate,Purchase of IT Equipment,F380,
http://opendatacommunities.org/id/london-borough-council/sutton,London Borough of Sutton,03/11/2020,1309204,743.77 , AMZNMKTPLACE,AMAZON JT 041120 743.77,Peoples Services Directorate,Purchase of IT Equipment,F380,
http://opendatacommunities.org/id/london-borough-council/sutton,London Borough of Sutton,27/10/2020,1309204,3.17 , MAILCHIMP,JT CLASSROOM MGR $USD EXCHANGE FEE,Peoples Services Directorate,Purchase of IT Equipment,F380,
http://opendatacommunities.org/id/london-borough-council/sutton,London Borough of Sutton,26/10/2020,1309204,115.21 , MTMOMK,JT CLASSROOM MGR $150USD,Peoples Services Directorate,Purchase of IT Equipment,F380,
http://opendatacommunities.org/id/london-borough-council/sutton,London Borough of Sutton,30/12/2020,1309674,50.39 , 123 REG LTD,JT 123REG 301220 50.39,Peoples Services Directorate,IT Licences,F385,
http://opendatacommunities.org/id/london-borough-council/sutton,London Borough of Sutton,26/11/2020,1309204,23.23 , MOJO HELPDESK,MOJO HELPDESK IT DEPT,Peoples Services Directorate,IT Licences,F385,
http://opendatacommunities.org/id/london-borough-council/sutton,London Borough of Sutton,26/11/2020,1309204,844.89 , MOJO HELPDESK,IT DEPT MOJO HELPDESK,Peoples Services Directorate,IT Licences,F385,
http://opendatacommunities.org/id/london-borough-council/sutton,London Borough of Sutton,18/01/2021,1309674,275.99 , 123 REG LTD,JT 123REG 180121 275.99,Peoples Services Directorate,Subscriptions - General,F450,
http://opendatacommunities.org/id/london-borough-council/sutton,London Borough of Sutton,30/11/2020,1309207,345.23 , FACEBK 9VES8W27A2,FACEBOOK 30TH NOVEMBER 2020 ART GENERIC AND LONDON ALT 345.23,Peoples Services Directorate,Advertising/Publicity (non Staff),F240,
http://opendatacommunities.org/id/london-borough-council/sutton,London Borough of Sutton,30/11/2020,1309207,113.80 , MAILCHIMP,MAILCHIMP 301120 113.80,Peoples Services Directorate,Advertising/Publicity (non Staff),F240,
http://opendatacommunities.org/id/london-borough-council/sutton,London Borough of Sutton,16/11/2020,1309204,500.00 , FACEBK ETHK6W67A2,FACEBOOK SPRING PROMO INC ISLINGTON,Peoples Services Directorate,Advertising/Publicity (non Staff),F240,
http://opendatacommunities.org/id/london-borough-council/sutton,London Borough of Sutton,09/11/2020,1309204,406.80 , WWW.INSTANTPRINT.C,INSTANTPRINT SPRING COURSE GUIDE 9/11/20 406.80,Peoples Services Directorate,Advertising/Publicity (non Staff),F240,
http://opendatacommunities.org/id/london-borough-council/sutton,London Borough of Sutton,30/10/2020,1309204,108.74 , MAILCHIMP,MAILCHIMP 301020 108.74,Peoples Services Directorate,Advertising/Publicity (non Staff),F240,
http://opendatacommunities.org/id/london-borough-council/sutton,London Borough of Sutton,15/01/2021,1309674,3.94 , JOTFORM INC.,JOTFORM SUBSCRIPTION 100121 195USD,Peoples Services Directorate,Advertising/Publicity (non Staff),F240,
http://opendatacommunities.org/id/london-borough-council/sutton,London Borough of Sutton,14/01/2021,1309674,195.00 , JOTFORM INC.,SPLIT - SILVER YEARLY NON-PROFIT 2 (136.2%),Peoples Services Directorate,Advertising/Publicity (non Staff),F240,
http://opendatacommunities.org/id/london-borough-council/sutton,London Borough of Sutton,14/01/2021,1309674,(51.83), JOTFORM INC.,BALANCING ENTRY AMOUNT (-108.6%),Peoples Services Directorate,Advertising/Publicity (non Staff),F240,
http://opendatacommunities.org/id/london-borough-council/sutton,London Borough of Sutton,30/12/2020,1309674,89.98 , MAILCHIMP,MAILCHIMP 301220 89.98,Peoples Services Directorate,Advertising/Publicity (non Staff),F240,
http://opendatacommunities.org/id/london-borough-council/sutton,London Borough of Sutton,23/02/2021,1310864,3.75 , BITEABLE LLC,BITEABLE ANNUAL SUBS 220221 $228.00USD EXCH FEE,Peoples Services Directorate,Subscriptions - General,F450,
http://opendatacommunities.org/id/london-borough-council/sutton,London Borough of Sutton,22/02/2021,1310864,136.22 , BITEABLE LLC,BITEABLE ANNUAL SUBS 220221 $228.00USD,Peoples Services Directorate,Subscriptions - General,F450,
http://opendatacommunities.org/id/london-borough-council/sutton,London Borough of Sutton,30/01/2021,1310864,88.54 , MAILCHIMP,MAILCHIMP 300121 88.54,Peoples Services Directorate,Subscriptions - General,F450,
http://opendatacommunities.org/id/london-borough-council/sutton,London Borough of Sutton,16/12/2020,1309207,149.54 , DULUX DECORATOR CENTRE,DULUX PAINT FOR DECORATING BOTH SUTTON AND WALLINGTON CENTRE,Peoples Services Directorate,General Maintenance,D500,
http://opendatacommunities.org/id/london-borough-council/sutton,London Borough of Sutton,27/01/2021,1310864,560.00 , WWW.INSTANTPRINT.C,LN INSTANTPRINT SNEEZEGUARDS X 30 280121 560.00,Peoples Services Directorate,Health and Safety Equipment,F005,
http://opendatacommunities.org/id/london-borough-council/sutton,London Borough of Sutton,19/11/2020,1309204,159.17 , WWW.INSTANTPRINT.C,PULL  UP COVID-19 PROTECTION SCREENS X 6,Peoples Services Directorate,Health and Safety Equipment,F005,
http://opendatacommunities.org/id/london-borough-council/sutton,London Borough of Sutton,16/02/2021,1310864,157.50 , TVLICENSING.CO.UK,COLLEGE TV LICENCE,Peoples Services Directorate,Subscriptions - General,F450,
http://opendatacommunities.org/id/london-borough-council/sutton,London Borough of Sutton,26/11/2020,1309207,33.12 , MARK FISHER,5 BAGS OF ROCK SALT,Peoples Services Directorate,Other Premises Costs,D715,
http://opendatacommunities.org/id/london-borough-council/sutton,London Borough of Sutton,12/11/2020,1309204,10.95 , PAYPAL  ROBIN KAY EBAY,LM APPRENTICESHIPS TEXT BOOK,Peoples Services Directorate,Books,F006,
http://opendatacommunities.org/id/london-borough-council/sutton,London Borough of Sutton,10/11/2020,1309204,156.60 , WWW.INSTANTPRINT.C,INSTANTPRINT SPRING ART BOOKLET BM 156.60,Peoples Services Directorate,Advertising/Publicity (non Staff),F240,
http://opendatacommunities.org/id/london-borough-council/sutton,London Borough of Sutton,25/11/2020,1309204,7.16 , SAINSBURYS SACAT 2006,COOKERY INGREDIENTS,Peoples Services Directorate,Education Equipment,F009,
http://opendatacommunities.org/id/london-borough-council/sutton,London Borough of Sutton,20/11/2020,1309204,9.63 , WM MORRISONS STORE,COOKERY INGREDIENTS,Peoples Services Directorate,Education Equipment,F009,
http://opendatacommunities.org/id/london-borough-council/sutton,London Borough of Sutton,18/11/2020,1309204,13.90 , SAINSBURYS SACAT 2006,COOKERY INGREDIENTS,Peoples Services Directorate,Education Equipment,F009,
http://opendatacommunities.org/id/london-borough-council/sutton,London Borough of Sutton,13/11/2020,1309204,9.10 , WM MORRISONS STORE,COOKERY INGREDIENTS,Peoples Services Directorate,Education Equipment,F009,
http://opendatacommunities.org/id/london-borough-council/sutton,London Borough of Sutton,06/11/2020,1309204,20.60 , WM MORRISONS STORE,COOKERY INGREDIENTS,Peoples Services Directorate,Education Equipment,F009,
http://opendatacommunities.org/id/london-borough-council/sutton,London Borough of Sutton,04/11/2020,1309204,6.35 , ASDA STORES,COOKERY INGREDIENTS,Peoples Services Directorate,Education Equipment,F009,
http://opendatacommunities.org/id/london-borough-council/sutton,London Borough of Sutton,11/11/2020,1309204,8.07 , SAINSBURYS SACAT 2006,COOKERY INGREDIENTS,Peoples Services Directorate,Education Equipment,F009,
http://opendatacommunities.org/id/london-borough-council/sutton,London Borough of Sutton,20/01/2021,1309674,11.82 , ASDA STORES,COOKERY INGREDIENTS,Peoples Services Directorate,Education Equipment,F009,
http://opendatacommunities.org/id/london-borough-council/sutton,London Borough of Sutton,23/02/2021,1310864,10.08 , TESCO STORE 2675,COOKERY INGREDIENTS,Peoples Services Directorate,Education Equipment,F009,
http://opendatacommunities.org/id/london-borough-council/sutton,London Borough of Sutton,09/02/2021,1310864,5.52 , TESCO STORE 2675,COOKERY INGREDIENTS,Peoples Services Directorate,Education Equipment,F009,
http://opendatacommunities.org/id/london-borough-council/sutton,London Borough of Sutton,02/02/2021,1310864,8.44 , TESCO STORE 2675,COOKERY INGREDIENTS,Peoples Services Directorate,Education Equipment,F009,
http://opendatacommunities.org/id/london-borough-council/sutton,London Borough of Sutton,27/01/2021,1310864,5.60 , ASDA STORES,COOKERY INGREDIENTS,Peoples Services Directorate,Education Equipment,F009,
http://opendatacommunities.org/id/london-borough-council/sutton,London Borough of Sutton,09/12/2020,1309207,8.12 , ASDA STORES,COOKERY INGREDIENTS,Peoples Services Directorate,Education Equipment,F009,
http://opendatacommunities.org/id/london-borough-council/sutton,London Borough of Sutton,04/12/2020,1309207,9.04 , WM MORRISONS STORE,COOKERY INGREDIENTS,Peoples Services Directorate,Education Equipment,F009,
http://opendatacommunities.org/id/london-borough-council/sutton,London Borough of Sutton,02/12/2020,1309207,11.91 , SAINSBURYS SACAT 2006,COOKERY INGREDIENTS,Peoples Services Directorate,Education Equipment,F009,
http://opendatacommunities.org/id/london-borough-council/sutton,London Borough of Sutton,27/11/2020,1309207,11.85 , WM MORRISONS STORE,COOKERY INGREDIENTS,Peoples Services Directorate,Education Equipment,F009,
http://opendatacommunities.org/id/london-borough-council/sutton,London Borough of Sutton,10/11/2020,1309204,24.95 , AMZNMKTPLACE,"SPLIT - ZONEE 2 PIECES MIST SPRAY BOTTLES DURABLE EMPTY TRIGGER SPRAYER BOTTLE FOR KITCHEN,GARDENING,CLEANING,400ML (38.53%)",Peoples Services Directorate,Administrative Equipment,F001,
http://opendatacommunities.org/id/london-borough-council/sutton,London Borough of Sutton,10/11/2020,1309204,3.75 , AMZNMKTPLACE,SPLIT - SCOLA ARTMIX 600ML BOTTLES READY MIX CRAFT POSTER PAINT CRIMSON (100%),Peoples Services Directorate,Administrative Equipment,F001,
http://opendatacommunities.org/id/london-borough-council/sutton,London Borough of Sutton,09/11/2020,1309204,5.12 , AMZNMKTPLACE,F001 0340 0132 SPLIT - JCF KIDS PAINT BRUSHES WITH PLASTIC HANDLE AND HOG BRISTLES 4 PCS FLAT TIP PAINTING BRUSHES FOR CHILDREN MULTI COLOR PAINT BRUSHES-7.4 INCH (88.09%),Peoples Services Directorate,Administrative Equipment,F001,
http://opendatacommunities.org/id/london-borough-council/sutton,London Borough of Sutton,09/11/2020,1309204,0.69 , AMZNMKTPLACE,BALANCING ENTRY AMOUNT (11.91%),Peoples Services Directorate,Administrative Equipment,F001,
http://opendatacommunities.org/id/london-borough-council/sutton,London Borough of Sutton,11/01/2021,1309674,224.17 , SUTTONAPPLI,ITEMS NEEDED FOR CLIENT,Peoples Services Directorate,Personal Requisites,F106,
http://opendatacommunities.org/id/london-borough-council/sutton,London Borough of Sutton,25/01/2021,1309674,10.00 , AMAZON.CO.UK MV3MP35G4,DI XMAS,Peoples Services Directorate,Personal Requisites,F106,
http://opendatacommunities.org/id/london-borough-council/sutton,London Borough of Sutton,25/01/2021,1309674,12.00 , PAYPAL  ALCOHOLICSA,LD AA BOOK,Peoples Services Directorate,Personal Requisites,F106,
http://opendatacommunities.org/id/london-borough-council/sutton,London Borough of Sutton,19/01/2021,1309674,28.25 , SAINSBURYS SACAT 2006,JD,Peoples Services Directorate,Personal Requisites,F106,
http://opendatacommunities.org/id/london-borough-council/sutton,London Borough of Sutton,18/01/2021,1309674,14.24 , PPOINT_ D.A.R MINI MAR,DR,Peoples Services Directorate,Personal Requisites,F106,
http://opendatacommunities.org/id/london-borough-council/sutton,London Borough of Sutton,18/01/2021,1309674,18.75 , POUNDLAND,MA,Peoples Services Directorate,Personal Requisites,F106,
http://opendatacommunities.org/id/london-borough-council/sutton,London Borough of Sutton,30/12/2020,1309674,4.99 , PRIME VIDEO MJ4JY31T4,MA COVID LOCKDOWN,Peoples Services Directorate,Personal Requisites,F106,
http://opendatacommunities.org/id/london-borough-council/sutton,London Borough of Sutton,06/11/2020,1309204,(154.16), WF  WAYFAIR 3417075054,REFUND ITEMS,Peoples Services Directorate,Personal Requisites,F106,
http://opendatacommunities.org/id/london-borough-council/sutton,London Borough of Sutton,30/10/2020,1309204,169.99 , WF  WAYFAIR 3417957844,PERSONAL ITEMS REQUIRED FOR CLIENT,Peoples Services Directorate,Personal Requisites,F106,
http://opendatacommunities.org/id/london-borough-council/sutton,London Borough of Sutton,30/10/2020,1309204,169.99 , WF  WAYFAIR 3417957844,PERSONAL ITEMS REQUIRED FOR CLIENT,Peoples Services Directorate,Personal Requisites,F106,
http://opendatacommunities.org/id/london-borough-council/sutton,London Borough of Sutton,29/10/2020,1309204,756.60 , WF  WAYFAIR 3438120458,PERSONAL ITEMS REQUIRED FOR CLIENT,Peoples Services Directorate,Personal Requisites,F106,
http://opendatacommunities.org/id/london-borough-council/sutton,London Borough of Sutton,06/11/2020,1309204,37.50 , INTERFLORA BRITISH UNI,A GIFT TO SAY THANK YOU,Peoples Services Directorate,Personal Requisites,F106,
http://opendatacommunities.org/id/london-borough-council/sutton,London Borough of Sutton,02/11/2020,1309204,80.83 , ARGOS LTD,ARGOS HOME HAYWARD 2 DOOR SMALL TV UNIT - GREY GLOSS LEAVING CARE TEAM,Peoples Services Directorate,Personal Requisites,F106,
http://opendatacommunities.org/id/london-borough-council/sutton,London Borough of Sutton,19/11/2020,1309204,220.00 , AMAZON.CO.UK M72XQ4W34,SPLIT - AMAZON.CO.UK GIFT CARD IN A SANTA AND RUDOLPH GREETING CARD (100%),Peoples Services Directorate,Personal Requisites,F106,
http://opendatacommunities.org/id/london-borough-council/sutton,London Borough of Sutton,14/12/2020,1309207,3.74 , AMAZON.CO.UK MS7HG1GG4,BALANCING ENTRY AMOUNT (28.31%),Peoples Services Directorate,Personal Requisites,F106,
http://opendatacommunities.org/id/london-borough-council/sutton,London Borough of Sutton,23/11/2020,1309204,5.45 , COX PIPPIN CAFE,RA ACTIVITY,Peoples Services Directorate,Personal Requisites,F106,
http://opendatacommunities.org/id/london-borough-council/sutton,London Borough of Sutton,21/11/2020,1309204,80.34 , DOBIES,ALLOTMENT QUAD,Peoples Services Directorate,Personal Requisites,F106,
http://opendatacommunities.org/id/london-borough-council/sutton,London Borough of Sutton,20/11/2020,1309204,6.25 , AMZNMKTPLACE,SPLIT - MOO FREE ADVENT CALENDAR WEIGHT 70G (100%),Peoples Services Directorate,Personal Requisites,F106,
http://opendatacommunities.org/id/london-borough-council/sutton,London Borough of Sutton,10/11/2020,1309204,26.64 , AMZNMKTPLACE,"SPLIT - SCOLA ARTMIX 6 X 600 ML PAINT, COLORED (ASSORTED) (79.15%)",Peoples Services Directorate,Personal Requisites,F106,
http://opendatacommunities.org/id/london-borough-council/sutton,London Borough of Sutton,10/11/2020,1309204,(1.59), AMZNMKTPLACE,BALANCING ENTRY AMOUNT (-11.76%),Peoples Services Directorate,Personal Requisites,F106,
http://opendatacommunities.org/id/london-borough-council/sutton,London Borough of Sutton,10/11/2020,1309204,10.42 , AMZNMKTPLACE,"SPLIT - UNISEX FACE_SHIELD_PROTECT VISOR COVER WINDPROOF TRANSPARENT, OIL FUME, SPITTING ANTI-FOG LENS FOR DAILY ACTIVITIES AND WORKING (10) (100%)",Peoples Services Directorate,Personal Requisites,F106,
http://opendatacommunities.org/id/london-borough-council/sutton,London Borough of Sutton,10/11/2020,1309204,49.98 , AMZNMKTPLACE,"SPLIT - HALIDODO INFRARED THERMOMETER, NON-CONTACT INFRARED FOREHEAD THERMOMETER, DIGITAL THREE COLOR BACKLIT DISPLAY INSTANT READING TEMPERATURE OF BABY, KID AND ADULT (91.76%)",Peoples Services Directorate,Personal Requisites,F106,
http://opendatacommunities.org/id/london-borough-council/sutton,London Borough of Sutton,10/11/2020,1309204,4.49 , AMZNMKTPLACE,BALANCING ENTRY AMOUNT (8.24%),Peoples Services Directorate,Personal Requisites,F106,
http://opendatacommunities.org/id/london-borough-council/sutton,London Borough of Sutton,10/11/2020,1309204,4.99 , AMZNMKTPLACE,SPLIT - NORJEWS BABY HOME SAFETY SOCKET COVERS CHILD PROOF PLUG SOCKET PROTECTORS/GUARDS (20 PACKS) (7.7%),Peoples Services Directorate,Personal Requisites,F106,
http://opendatacommunities.org/id/london-borough-council/sutton,London Borough of Sutton,05/11/2020,1309204,72.40 , TESCO STORE 3066,TESCO ORDER,Peoples Services Directorate,Personal Requisites,F106,
http://opendatacommunities.org/id/london-borough-council/sutton,London Borough of Sutton,04/11/2020,1309204,116.66 , ARGOS LTD,ARGOS ORDER,Peoples Services Directorate,Personal Requisites,F106,
http://opendatacommunities.org/id/london-borough-council/sutton,London Borough of Sutton,04/11/2020,1309204,370.83 , IKEA LTD SHOP ONLINE,IKEA ORDER,Peoples Services Directorate,Personal Requisites,F106,
http://opendatacommunities.org/id/london-borough-council/sutton,London Borough of Sutton,10/11/2020,1309204,8.32 , AMZNMKTPLACE,SPLIT - BAKER ROSS FLOWER PAINT PLASTIC PALETTES WITH 7 WELLS FOR PAINTING AND CHILDREN'S ARTS AND CRAFTS PROJECTS (PACK OF 3) (12.86%),Peoples Services Directorate,Personal Requisites,F106,
http://opendatacommunities.org/id/london-borough-council/sutton,London Borough of Sutton,10/11/2020,1309204,24.12 , AMZNMKTPLACE,"SPLIT - TBC THE BEST CRAFTS TEMPERA PAINT STICKS,12 CLASSIC COLOURS, WASHABLE,NON- TOXIC,CRAYON PAINT STICKS FOR KIDS AND STUDENT (37.12%)",Peoples Services Directorate,Personal Requisites,F106,
http://opendatacommunities.org/id/london-borough-council/sutton,London Borough of Sutton,10/11/2020,1309204,2.97 , AMZNMKTPLACE,BALANCING ENTRY AMOUNT (3.79%),Peoples Services Directorate,Personal Requisites,F106,
http://opendatacommunities.org/id/london-borough-council/sutton,London Borough of Sutton,10/11/2020,1309204,259.96 , ARGOS LTD,ARGOS ORDER,Peoples Services Directorate,Personal Requisites,F106,
http://opendatacommunities.org/id/london-borough-council/sutton,London Borough of Sutton,10/11/2020,1309204,8.32 , AMZNMKTPLACE,"SPLIT - 8 PIECES KIDS WATERPROOF APRONS| ADJUSTABLE, DURABLE, EASY TO CLEAN, WASHABLE| MESSY PLAY, ARTS & CRAFTS, PAINTING, DRAWING, BAKING, COOKING| IDEAL CHRISTMAS & BIRTHDAY GIFT FOR CHILDREN & TODDLERS. (418.33%)",Peoples Services Directorate,Personal Requisites,F106,
http://opendatacommunities.org/id/london-borough-council/sutton,London Borough of Sutton,10/11/2020,1309204,26.64 , AMZNMKTPLACE,"SPLIT - SCOLA ARTMIX 6 X 600 ML PAINT, COLORED (ASSORTED) (1336.67%)",Peoples Services Directorate,Personal Requisites,F106,
http://opendatacommunities.org/id/london-borough-council/sutton,London Borough of Sutton,10/11/2020,1309204,(39.72), AMZNMKTPLACE,BALANCING ENTRY AMOUNT (-4965%),Peoples Services Directorate,Personal Requisites,F106,
http://opendatacommunities.org/id/london-borough-council/sutton,London Borough of Sutton,21/01/2021,1309674,187.48 , SUTTONAPPLI,ITEMS NEEDED FOR CLIENT,Peoples Services Directorate,Personal Requisites,F106,
http://opendatacommunities.org/id/london-borough-council/sutton,London Borough of Sutton,17/01/2021,1309674,26.74 , AMZNMKTPLACE,THERMOMETER REQUESTED BY QUAD SITE MANAGERS (87.73%),Peoples Services Directorate,Personal Requisites,F106,
http://opendatacommunities.org/id/london-borough-council/sutton,London Borough of Sutton,17/01/2021,1309674,3.74 , AMZNMKTPLACE,BALANCING ENTRY AMOUNT (12.27%),Peoples Services Directorate,Personal Requisites,F106,
http://opendatacommunities.org/id/london-borough-council/sutton,London Borough of Sutton,12/01/2021,1309674,139.75 , AMZNMKTPLACE AMAZON.CO,TV REQUESTED BY SOCIAL WORKER FOR CARE LEAVER (97.39%),Peoples Services Directorate,Personal Requisites,F106,
http://opendatacommunities.org/id/london-borough-council/sutton,London Borough of Sutton,12/01/2021,1309674,3.74 , AMZNMKTPLACE AMAZON.CO,BALANCING ENTRY AMOUNT (2.61%),Peoples Services Directorate,Personal Requisites,F106,
http://opendatacommunities.org/id/london-borough-council/sutton,London Borough of Sutton,12/01/2021,1309674,109.99 , AMZNMKTPLACE AMAZON.CO,MINI OVEN FOR A CARE LEAVER (100%),Peoples Services Directorate,Personal Requisites,F106,
http://opendatacommunities.org/id/london-borough-council/sutton,London Borough of Sutton,11/01/2021,1309674,171.62 , ARGOS LTD,ITEMS NEEDED FOR CLIENT,Peoples Services Directorate,Personal Requisites,F106,
http://opendatacommunities.org/id/london-borough-council/sutton,London Borough of Sutton,27/10/2020,1309204,5.86 , MCDONALDS1049,MC ACTIVITY,Peoples Services Directorate,Personal Requisites,F106,
http://opendatacommunities.org/id/london-borough-council/sutton,London Borough of Sutton,06/11/2020,1309204,4.90 , COX PIPPIN CAFE,RA ACTIVITY,Peoples Services Directorate,Personal Requisites,F106,
http://opendatacommunities.org/id/london-borough-council/sutton,London Borough of Sutton,04/11/2020,1309204,5.72 , MCDONALDS,MC ACTIVITY,Peoples Services Directorate,Personal Requisites,F106,
http://opendatacommunities.org/id/london-borough-council/sutton,London Borough of Sutton,03/11/2020,1309204,5.28 , PPOINT_ FIRST STOP SUR,JC GROCERIES,Peoples Services Directorate,Personal Requisites,F106,
http://opendatacommunities.org/id/london-borough-council/sutton,London Borough of Sutton,03/11/2020,1309204,8.35 , MCDONALDS,JC ACTIVITY,Peoples Services Directorate,Personal Requisites,F106,
http://opendatacommunities.org/id/london-borough-council/sutton,London Borough of Sutton,21/12/2020,1309207,10.00 , AMAZON.CO.UK MS53U9RX4,SPLIT - AMAZON LOGO SQUID - AMAZON.CO.UK EGIFT VOUCHER (100%),Peoples Services Directorate,Personal Requisites,F106,
http://opendatacommunities.org/id/london-borough-council/sutton,London Borough of Sutton,21/12/2020,1309207,10.00 , AMAZON.CO.UK MS03R7RR4,SPLIT - AMAZON LOGO SQUID - AMAZON.CO.UK EGIFT VOUCHER (100%),Peoples Services Directorate,Personal Requisites,F106,
http://opendatacommunities.org/id/london-borough-council/sutton,London Borough of Sutton,21/12/2020,1309207,10.00 , AMAZON.CO.UK MS23T6RO4,SPLIT - AMAZON LOGO SQUID - AMAZON.CO.UK EGIFT VOUCHER (100%),Peoples Services Directorate,Personal Requisites,F106,
http://opendatacommunities.org/id/london-borough-council/sutton,London Borough of Sutton,21/12/2020,1309207,10.00 , AMAZON.CO.UK MS1SM0II4,SPLIT - SCOOTING SANTA - AMAZON.CO.UK EGIFT VOUCHER (100%),Peoples Services Directorate,Personal Requisites,F106,
http://opendatacommunities.org/id/london-borough-council/sutton,London Borough of Sutton,21/12/2020,1309207,10.00 , AMAZON.CO.UK MS0JE7IA4,SPLIT - AMAZON LOGO SQUID - AMAZON.CO.UK EGIFT VOUCHER (100%),Peoples Services Directorate,Personal Requisites,F106,
http://opendatacommunities.org/id/london-borough-council/sutton,London Borough of Sutton,21/12/2020,1309207,10.00 , AMAZON.CO.UK MS9JA2IS4,SPLIT - AMAZON LOGO SQUID - AMAZON.CO.UK EGIFT VOUCHER (100%),Peoples Services Directorate,Personal Requisites,F106,
http://opendatacommunities.org/id/london-borough-council/sutton,London Borough of Sutton,02/12/2020,1309207,10.74 , AMZNMKTPLACE AMAZON.CO,"SPLIT - OFOICE WINTER CYCLING GLOVES FOR MEN & WOMEN,OUTDOOR SPORTS GLOVES WITH TOUCHSCREEN ANTI-SLIP,WATERPROOF WARM GLOVES FOR DRIVING RUNNING (74.17%)",Peoples Services Directorate,Personal Requisites,F106,
http://opendatacommunities.org/id/london-borough-council/sutton,London Borough of Sutton,02/12/2020,1309207,3.74 , AMZNMKTPLACE AMAZON.CO,BALANCING ENTRY AMOUNT (25.83%),Peoples Services Directorate,Personal Requisites,F106,
http://opendatacommunities.org/id/london-borough-council/sutton,London Borough of Sutton,02/12/2020,1309207,10.74 , AMZNMKTPLACE,"SPLIT - OFOICE WINTER CYCLING GLOVES FOR MEN & WOMEN,OUTDOOR SPORTS GLOVES WITH TOUCHSCREEN ANTI-SLIP,WATERPROOF WARM GLOVES FOR DRIVING RUNNING (74.17%)",Peoples Services Directorate,Personal Requisites,F106,
http://opendatacommunities.org/id/london-borough-council/sutton,London Borough of Sutton,02/12/2020,1309207,3.74 , AMZNMKTPLACE,BALANCING ENTRY AMOUNT (25.83%),Peoples Services Directorate,Personal Requisites,F106,
http://opendatacommunities.org/id/london-borough-council/sutton,London Borough of Sutton,02/12/2020,1309207,10.74 , AMZNMKTPLACE,"SPLIT - OFOICE WINTER CYCLING GLOVES FOR MEN & WOMEN,OUTDOOR SPORTS GLOVES WITH TOUCHSCREEN ANTI-SLIP,WATERPROOF WARM GLOVES FOR DRIVING RUNNING (74.17%)",Peoples Services Directorate,Personal Requisites,F106,
http://opendatacommunities.org/id/london-borough-council/sutton,London Borough of Sutton,02/12/2020,1309207,3.74 , AMZNMKTPLACE,BALANCING ENTRY AMOUNT (25.83%),Peoples Services Directorate,Personal Requisites,F106,
http://opendatacommunities.org/id/london-borough-council/sutton,London Borough of Sutton,02/12/2020,1309207,10.74 , AMZNMKTPLACE,"SPLIT - OFOICE WINTER CYCLING GLOVES FOR MEN & WOMEN,OUTDOOR SPORTS GLOVES WITH TOUCHSCREEN ANTI-SLIP,WATERPROOF WARM GLOVES FOR DRIVING RUNNING (74.17%)",Peoples Services Directorate,Personal Requisites,F106,
http://opendatacommunities.org/id/london-borough-council/sutton,London Borough of Sutton,02/12/2020,1309207,3.74 , AMZNMKTPLACE,BALANCING ENTRY AMOUNT (25.83%),Peoples Services Directorate,Personal Requisites,F106,
http://opendatacommunities.org/id/london-borough-council/sutton,London Borough of Sutton,01/12/2020,1309207,10.74 , AMZNMKTPLACE,"SPLIT - OFOICE WINTER CYCLING GLOVES FOR MEN & WOMEN,OUTDOOR SPORTS GLOVES WITH TOUCHSCREEN ANTI-SLIP,WATERPROOF WARM GLOVES FOR DRIVING RUNNING (74.17%)",Peoples Services Directorate,Personal Requisites,F106,
http://opendatacommunities.org/id/london-borough-council/sutton,London Borough of Sutton,01/12/2020,1309207,3.74 , AMZNMKTPLACE,BALANCING ENTRY AMOUNT (25.83%),Peoples Services Directorate,Personal Requisites,F106,
http://opendatacommunities.org/id/london-borough-council/sutton,London Borough of Sutton,01/12/2020,1309207,10.74 , AMZNMKTPLACE AMAZON.CO,"SPLIT - PPEA ENAMEL SUNFLOWER CRYSTAL LEAD-FREE GLASS TEA CUP WITH SPOON SET, PRESENT FOR THE CHRISTMAS, VALENTINE'S DAY.BEST PRESENT FOR MOTHER, GRANDMA, GIRLFRIEND, SISTER. (74.17%)",Peoples Services Directorate,Personal Requisites,F106,
http://opendatacommunities.org/id/london-borough-council/sutton,London Borough of Sutton,01/12/2020,1309207,3.74 , AMZNMKTPLACE AMAZON.CO,BALANCING ENTRY AMOUNT (25.83%),Peoples Services Directorate,Personal Requisites,F106,
http://opendatacommunities.org/id/london-borough-council/sutton,London Borough of Sutton,30/11/2020,1309207,62.50 , 2MAA024919174 TD E-PMT,VISA NEEDED FOR CLIENT,Peoples Services Directorate,Personal Requisites,F106,
http://opendatacommunities.org/id/london-borough-council/sutton,London Borough of Sutton,10/11/2020,1309204,8.32 , AMZNMKTPLACE,"SPLIT - 8 PIECES KIDS WATERPROOF APRONS| ADJUSTABLE, DURABLE, EASY TO CLEAN, WASHABLE| MESSY PLAY, ARTS & CRAFTS, PAINTING, DRAWING, BAKING, COOKING| IDEAL CHRISTMAS & BIRTHDAY GIFT FOR CHILDREN & TODDLERS. (24.77%)",Peoples Services Directorate,Personal Requisites,F106,
http://opendatacommunities.org/id/london-borough-council/sutton,London Borough of Sutton,25/11/2020,1309204,5.82 , AMZNMKTPLACE,YP XMAS,Peoples Services Directorate,Personal Requisites,F106,
http://opendatacommunities.org/id/london-borough-council/sutton,London Borough of Sutton,04/12/2020,1309207,85.79 , ARGOS LTD,ITEMS NEEDED FOR CARE LEAVER,Peoples Services Directorate,Personal Requisites,F106,
http://opendatacommunities.org/id/london-borough-council/sutton,London Borough of Sutton,04/12/2020,1309207,107.50 , ARGOS LTD,ITEMS NEEDED FOR CARE LEAVER,Peoples Services Directorate,Personal Requisites,F106,
http://opendatacommunities.org/id/london-borough-council/sutton,London Borough of Sutton,04/12/2020,1309207,190.00 , ARGOS LTD,ITEMS NEEDED FOR CARE LEAVER,Peoples Services Directorate,Personal Requisites,F106,
http://opendatacommunities.org/id/london-borough-council/sutton,London Borough of Sutton,04/12/2020,1309207,(190.00), ARGOS LTD,REFUND FROM ARGOS,Peoples Services Directorate,Personal Requisites,F106,
http://opendatacommunities.org/id/london-borough-council/sutton,London Borough of Sutton,04/12/2020,1309207,(107.50), ARGOS LTD,REFUND FROM ARGOS,Peoples Services Directorate,Personal Requisites,F106,
http://opendatacommunities.org/id/london-borough-council/sutton,London Borough of Sutton,03/12/2020,1309207,8.37 , AMAZON.CO.UK MY3N92S64,"SPLIT - DER-FRANZ - CHAI LATTE - SPICY, WARMING AND FAR-EASTERN, 500 G (61.23%)",Peoples Services Directorate,Personal Requisites,F106,
http://opendatacommunities.org/id/london-borough-council/sutton,London Borough of Sutton,03/12/2020,1309207,1.56 , AMAZON.CO.UK MY3N92S64,SPLIT - MILKA CHOCOLATE BISCUITS 150G (11.41%),Peoples Services Directorate,Personal Requisites,F106,
http://opendatacommunities.org/id/london-borough-council/sutton,London Borough of Sutton,03/12/2020,1309207,3.74 , AMAZON.CO.UK MY3N92S64,BALANCING ENTRY AMOUNT (27.36%),Peoples Services Directorate,Personal Requisites,F106,
http://opendatacommunities.org/id/london-borough-council/sutton,London Borough of Sutton,02/12/2020,1309207,8.36 , AMAZON.CO.UK MY9W37DL4,"SPLIT - DER-FRANZ - CHAI LATTE - SPICY, WARMING AND FAR-EASTERN, 500 G (62.02%)",Peoples Services Directorate,Personal Requisites,F106,
http://opendatacommunities.org/id/london-borough-council/sutton,London Borough of Sutton,02/12/2020,1309207,1.38 , AMAZON.CO.UK MY9W37DL4,SPLIT - MILKA CHOCO MOO CHOCOLATE BISCUITS 200G (10.24%),Peoples Services Directorate,Personal Requisites,F106,
http://opendatacommunities.org/id/london-borough-council/sutton,London Borough of Sutton,02/12/2020,1309207,3.74 , AMAZON.CO.UK MY9W37DL4,BALANCING ENTRY AMOUNT (27.74%),Peoples Services Directorate,Personal Requisites,F106,
http://opendatacommunities.org/id/london-borough-council/sutton,London Borough of Sutton,21/12/2020,1309207,10.00 , AMAZON.CO.UK MS73P2RU4,SPLIT - AMAZON LOGO SQUID - AMAZON.CO.UK EGIFT VOUCHER (100%),Peoples Services Directorate,Personal Requisites,F106,
http://opendatacommunities.org/id/london-borough-council/sutton,London Borough of Sutton,21/12/2020,1309207,10.00 , AMAZON.CO.UK MS2VE6RN4,SPLIT - AMAZON LOGO SQUID - AMAZON.CO.UK EGIFT VOUCHER (100%),Peoples Services Directorate,Personal Requisites,F106,
http://opendatacommunities.org/id/london-borough-council/sutton,London Borough of Sutton,21/12/2020,1309207,10.00 , AMAZON.CO.UK MS8V50RH4,SPLIT - AMAZON LOGO SQUID - AMAZON.CO.UK EGIFT VOUCHER (100%),Peoples Services Directorate,Personal Requisites,F106,
http://opendatacommunities.org/id/london-borough-council/sutton,London Borough of Sutton,15/02/2021,1310864,262.35 , WF  WAYFAIR3521835524,WAYFAIR FOR CLIENT,Peoples Services Directorate,Personal Requisites,F106,
http://opendatacommunities.org/id/london-borough-council/sutton,London Borough of Sutton,12/02/2021,1310864,35.00 , FOOD BOXES,MORRISONS FOOD BOX FOR CLIENT,Peoples Services Directorate,Personal Requisites,F106,
http://opendatacommunities.org/id/london-borough-council/sutton,London Borough of Sutton,11/02/2021,1310864,57.00 , INTERFLORA BRITISH UNI,INTERFLORA FOR CLIENT,Peoples Services Directorate,Personal Requisites,F106,
http://opendatacommunities.org/id/london-borough-council/sutton,London Borough of Sutton,11/02/2021,1310864,37.95 , DUNELM,DUNELM FOR CLIENT,Peoples Services Directorate,Personal Requisites,F106,
http://opendatacommunities.org/id/london-borough-council/sutton,London Borough of Sutton,24/02/2021,1310864,157.50 , TVLICENSING.CO.UK,TV LICENSE FOR THE QUAD,Peoples Services Directorate,Personal Requisites,F106,
http://opendatacommunities.org/id/london-borough-council/sutton,London Borough of Sutton,24/02/2021,1310864,35.00 , FOOD BOXES,MORRISON FOOD BOX FOR CLIENT,Peoples Services Directorate,Personal Requisites,F106,
http://opendatacommunities.org/id/london-borough-council/sutton,London Borough of Sutton,18/02/2021,1310864,114.17 , SOPRA STERIA LIMITED,VISA APPLICATION REQUESTED BY SOCIAL WORKER,Peoples Services Directorate,Personal Requisites,F106,
http://opendatacommunities.org/id/london-borough-council/sutton,London Borough of Sutton,25/02/2021,1310864,50.00 , AMAZON.CO.UK MM14W6LZ4,DG BDAY,Peoples Services Directorate,Personal Requisites,F106,
http://opendatacommunities.org/id/london-borough-council/sutton,London Borough of Sutton,21/02/2021,1310864,28.31 , LIDL GB LONDON,DR,Peoples Services Directorate,Personal Requisites,F106,
http://opendatacommunities.org/id/london-borough-council/sutton,London Borough of Sutton,19/02/2021,1310864,25.00 , AMAZON.CO.UK MF8GO97Y4,SD BDAY,Peoples Services Directorate,Personal Requisites,F106,
http://opendatacommunities.org/id/london-borough-council/sutton,London Borough of Sutton,17/02/2021,1310864,15.34 , PPOINT_ D.A.R MINI MAR,DR,Peoples Services Directorate,Personal Requisites,F106,
http://opendatacommunities.org/id/london-borough-council/sutton,London Borough of Sutton,11/02/2021,1310864,17.25 , SAINSBURYS 2006,MC,Peoples Services Directorate,Personal Requisites,F106,
http://opendatacommunities.org/id/london-borough-council/sutton,London Borough of Sutton,11/02/2021,1310864,9.25 , ICELAND,MC GROCERIES,Peoples Services Directorate,Personal Requisites,F106,
http://opendatacommunities.org/id/london-borough-council/sutton,London Borough of Sutton,11/02/2021,1310864,34.72 , SUPERDRUG STORES PLC,MC SPR,Peoples Services Directorate,Personal Requisites,F106,
http://opendatacommunities.org/id/london-borough-council/sutton,London Borough of Sutton,04/12/2020,1309207,116.67 , ARGOS LTD,ITEMS NEEDED FOR CARE LEAVER,Peoples Services Directorate,Personal Requisites,F106,
http://opendatacommunities.org/id/london-borough-council/sutton,London Borough of Sutton,04/12/2020,1309207,107.50 , ARGOS LTD,ITEMS NEEDED FOR CARE LEAVER,Peoples Services Directorate,Personal Requisites,F106,
http://opendatacommunities.org/id/london-borough-council/sutton,London Borough of Sutton,16/12/2020,1309207,3.74 , AMZNMKTPLACE,BALANCING ENTRY AMOUNT (21.4%),Peoples Services Directorate,Personal Requisites,F106,
http://opendatacommunities.org/id/london-borough-council/sutton,London Borough of Sutton,15/12/2020,1309207,9.70 , AMAZON.CO.UK MS8MG7HR4,"SPLIT - NIKE CLASSIC KNEE HIGH FOOTBALL DRI-FIT SOCKS, BLACK (BLACK/WEI�), 42-46 (MANUFACTURER SIZE: L)/8-11 UK (72.17%)",Peoples Services Directorate,Personal Requisites,F106,
http://opendatacommunities.org/id/london-borough-council/sutton,London Borough of Sutton,15/12/2020,1309207,3.74 , AMAZON.CO.UK MS8MG7HR4,BALANCING ENTRY AMOUNT (27.83%),Peoples Services Directorate,Personal Requisites,F106,
http://opendatacommunities.org/id/london-borough-council/sutton,London Borough of Sutton,18/12/2020,1309207,10.00 , AMAZON.CO.UK MS4E68DR4,SPLIT - AMAZON LOGO SQUID - AMAZON.CO.UK EGIFT VOUCHER (100%),Peoples Services Directorate,Personal Requisites,F106,
http://opendatacommunities.org/id/london-borough-council/sutton,London Borough of Sutton,02/12/2020,1309207,10.99 , AMZNMKTPLACE,SPLIT - MAD ABOUT MUGS TEA FOR ONE SET TEAPOT SAUCER CUP TEA COFFEE FLORAL BIRDS LILAC WHITE PORCELAIN (100%),Peoples Services Directorate,Personal Requisites,F106,
http://opendatacommunities.org/id/london-borough-council/sutton,London Borough of Sutton,02/12/2020,1309207,9.66 , AMZNMKTPLACE AMAZON.CO,SPLIT - WINDOW CURTAIN STRING LIGHTS- 3M(H)*1.5M(W) USB OR BATTERY OPERATED 8 MODES WITH REMOTE & TIMER FAIRY LIGHTS 200LED INDOOR OUTDOOR LIGHTS FOR WEDDING PARTY HOME BEDROOM WALL (WHITE) (68.27%),Peoples Services Directorate,Personal Requisites,F106,
http://opendatacommunities.org/id/london-borough-council/sutton,London Borough of Sutton,02/12/2020,1309207,4.49 , AMZNMKTPLACE AMAZON.CO,BALANCING ENTRY AMOUNT (31.73%),Peoples Services Directorate,Personal Requisites,F106,
http://opendatacommunities.org/id/london-borough-council/sutton,London Borough of Sutton,18/12/2020,1309207,10.00 , AMAZON.CO.UK MS3N01SY4,SPLIT - AMAZON LOGO SQUID - AMAZON.CO.UK EGIFT VOUCHER (100%),Peoples Services Directorate,Personal Requisites,F106,
http://opendatacommunities.org/id/london-borough-council/sutton,London Borough of Sutton,18/12/2020,1309207,10.00 , AMAZON.CO.UK MS75N7S34,SPLIT - AMAZON LOGO SQUID - AMAZON.CO.UK EGIFT VOUCHER (100%),Peoples Services Directorate,Personal Requisites,F106,
http://opendatacommunities.org/id/london-borough-council/sutton,London Borough of Sutton,18/12/2020,1309207,10.00 , AMAZON.CO.UK MS9F57SG4,SPLIT - AMAZON LOGO SQUID - AMAZON.CO.UK EGIFT VOUCHER (100%),Peoples Services Directorate,Personal Requisites,F106,
http://opendatacommunities.org/id/london-borough-council/sutton,London Borough of Sutton,18/12/2020,1309207,10.00 , AMAZON.CO.UK MS6OS6SJ4,SPLIT - AMAZON LOGO SQUID - AMAZON.CO.UK EGIFT VOUCHER (16.67%),Peoples Services Directorate,Personal Requisites,F106,
http://opendatacommunities.org/id/london-borough-council/sutton,London Borough of Sutton,18/12/2020,1309207,10.00 , AMAZON.CO.UK MS6OS6SJ4,SPLIT - AMAZON LOGO SQUID - AMAZON.CO.UK EGIFT VOUCHER (16.67%),Peoples Services Directorate,Personal Requisites,F106,
http://opendatacommunities.org/id/london-borough-council/sutton,London Borough of Sutton,18/12/2020,1309207,10.00 , AMAZON.CO.UK MS6OS6SJ4,SPLIT - AMAZON LOGO SQUID - AMAZON.CO.UK EGIFT VOUCHER (16.67%),Peoples Services Directorate,Personal Requisites,F106,
http://opendatacommunities.org/id/london-borough-council/sutton,London Borough of Sutton,18/12/2020,1309207,10.00 , AMAZON.CO.UK MS6OS6SJ4,SPLIT - AMAZON LOGO SQUID - AMAZON.CO.UK EGIFT VOUCHER (16.67%),Peoples Services Directorate,Personal Requisites,F106,
http://opendatacommunities.org/id/london-borough-council/sutton,London Borough of Sutton,18/12/2020,1309207,10.00 , AMAZON.CO.UK MS6OS6SJ4,SPLIT - AMAZON LOGO SQUID - AMAZON.CO.UK EGIFT VOUCHER (16.67%),Peoples Services Directorate,Personal Requisites,F106,
http://opendatacommunities.org/id/london-borough-council/sutton,London Borough of Sutton,18/12/2020,1309207,10.00 , AMAZON.CO.UK MS6OS6SJ4,SPLIT - AMAZON LOGO SQUID - AMAZON.CO.UK EGIFT VOUCHER (16.65%),Peoples Services Directorate,Personal Requisites,F106,
http://opendatacommunities.org/id/london-borough-council/sutton,London Borough of Sutton,18/12/2020,1309207,10.00 , AMAZON.CO.UK MS08S5DH4,SPLIT - AMAZON LOGO SQUID - AMAZON.CO.UK EGIFT VOUCHER (100%),Peoples Services Directorate,Personal Requisites,F106,
http://opendatacommunities.org/id/london-borough-council/sutton,London Borough of Sutton,18/12/2020,1309207,10.00 , AMAZON.CO.UK MS83W0S04,SPLIT - AMAZON LOGO SQUID - AMAZON.CO.UK EGIFT VOUCHER (100%),Peoples Services Directorate,Personal Requisites,F106,
http://opendatacommunities.org/id/london-borough-council/sutton,London Borough of Sutton,18/12/2020,1309207,10.00 , AMAZON.CO.UK MS0FK8SF4,SPLIT - AMAZON LOGO SQUID - AMAZON.CO.UK EGIFT VOUCHER (100%),Peoples Services Directorate,Personal Requisites,F106,
http://opendatacommunities.org/id/london-borough-council/sutton,London Borough of Sutton,15/12/2020,1309207,20.74 , AMAZON.CO.UK MS6X415N4,"SPLIT - PHILIPS 7-IN-1 ALL-IN-ONE TRIMMER, SERIES 3000 GROOMING KIT FOR BEARD & HAIR WITH 7 ATTACHMENTS, INCLUDING NOSE TRIMMER, SELF-SHARPENING BLADES, UK 3-PIN PLUG-MG3720/33 (84.72%)",Peoples Services Directorate,Personal Requisites,F106,
http://opendatacommunities.org/id/london-borough-council/sutton,London Borough of Sutton,15/12/2020,1309207,3.74 , AMAZON.CO.UK MS6X415N4,BALANCING ENTRY AMOUNT (15.28%),Peoples Services Directorate,Personal Requisites,F106,
http://opendatacommunities.org/id/london-borough-council/sutton,London Borough of Sutton,15/12/2020,1309207,7.99 , AMAZON.CO.UK MS17A95Y4,SPLIT - BOSH!: SIMPLE RECIPES. UNBELIEVABLE RESULTS. ALL PLANTS. THE HIGHEST-SELLING VEGAN COOKERY BOOK EVER (72.77%),Peoples Services Directorate,Personal Requisites,F106,
http://opendatacommunities.org/id/london-borough-council/sutton,London Borough of Sutton,15/12/2020,1309207,2.99 , AMAZON.CO.UK MS17A95Y4,BALANCING ENTRY AMOUNT (27.23%),Peoples Services Directorate,Personal Requisites,F106,
http://opendatacommunities.org/id/london-borough-council/sutton,London Borough of Sutton,03/12/2020,1309207,11.74 , AMZNMKTPLACE,"SPLIT - VBIGER UNISEX RUNNING GLOVES TOUCH SCREEN ANTI-SLIP SPORTS GLOVES WINTER GLOVES FOR RUNNING DRIVING HIKING CYCLING(M, BLACK) (75.84%)",Peoples Services Directorate,Personal Requisites,F106,
http://opendatacommunities.org/id/london-borough-council/sutton,London Borough of Sutton,21/12/2020,1309207,10.00 , AMAZON.CO.UK MS03M3R14,SPLIT - AMAZON LOGO SQUID - AMAZON.CO.UK EGIFT VOUCHER (100%),Peoples Services Directorate,Personal Requisites,F106,
http://opendatacommunities.org/id/london-borough-council/sutton,London Borough of Sutton,21/12/2020,1309207,10.00 , AMAZON.CO.UK MS9TH1RN4,SPLIT - AMAZON LOGO SQUID - AMAZON.CO.UK EGIFT VOUCHER (100%),Peoples Services Directorate,Personal Requisites,F106,
http://opendatacommunities.org/id/london-borough-council/sutton,London Borough of Sutton,21/12/2020,1309207,4.90 , AMZNMKTPLACE AMAZON.CO,"SPLIT - VARTA LONGLIFE POWER AA MIGNON LR06 ALKALINE BATTERY (12-PACK) - MADE IN GERMANY - IDEAL FOR TOYS, TORCHES, CONTROLLERS AND OTHER BATTERY-POWERED DEVI (100%)",Peoples Services Directorate,Personal Requisites,F106,
http://opendatacommunities.org/id/london-borough-council/sutton,London Borough of Sutton,21/12/2020,1309207,10.00 , AMAZON.CO.UK MS2FC2R94,SPLIT - AMAZON LOGO SQUID - AMAZON.CO.UK EGIFT VOUCHER (100%),Peoples Services Directorate,Personal Requisites,F106,
http://opendatacommunities.org/id/london-borough-council/sutton,London Borough of Sutton,14/12/2020,1309207,7.27 , AMAZON.CO.UK MS7HG1GG4,"SPLIT - DOVE MEN+ GYM ESSENTIALS GIFT SET, WATER BOTTLE AND MICROFIBRE TOWEL, SKIN AND BODY CARE KIT, LONG LASTING DEODORANT FOR A CLEAN AND FRESH FRAGRANCE, SHOWER GEL AND SHAMPOO CONDITIONER SET, MENS GIFT (71.69%)",Peoples Services Directorate,Personal Requisites,F106,
http://opendatacommunities.org/id/london-borough-council/sutton,London Borough of Sutton,16/12/2020,1309207,10.92 , AMAZON.CO.UK MS6RN5BB4,"SPLIT - BURT'S BEES NATURALLY NOURISHING TREAT BOX MOISTURISING 6 PIECE GIFT SET, 0.15 KG (74.49%)",Peoples Services Directorate,Personal Requisites,F106,
http://opendatacommunities.org/id/london-borough-council/sutton,London Borough of Sutton,16/12/2020,1309207,3.74 , AMAZON.CO.UK MS6RN5BB4,BALANCING ENTRY AMOUNT (25.51%),Peoples Services Directorate,Personal Requisites,F106,
http://opendatacommunities.org/id/london-borough-council/sutton,London Borough of Sutton,16/12/2020,1309207,10.92 , AMAZON.CO.UK MS5TI3H44,"SPLIT - BURT'S BEES NATURALLY NOURISHING TREAT BOX MOISTURISING 6 PIECE GIFT SET, 0.15 KG (74.49%)",Peoples Services Directorate,Personal Requisites,F106,
http://opendatacommunities.org/id/london-borough-council/sutton,London Borough of Sutton,16/12/2020,1309207,3.74 , AMAZON.CO.UK MS5TI3H44,BALANCING ENTRY AMOUNT (25.51%),Peoples Services Directorate,Personal Requisites,F106,
http://opendatacommunities.org/id/london-borough-council/sutton,London Borough of Sutton,16/12/2020,1309207,10.92 , AMAZON.CO.UK MS9RW2BT4,"SPLIT - BURT'S BEES NATURALLY NOURISHING TREAT BOX MOISTURISING 6 PIECE GIFT SET, 0.15 KG (74.49%)",Peoples Services Directorate,Personal Requisites,F106,
http://opendatacommunities.org/id/london-borough-council/sutton,London Borough of Sutton,16/12/2020,1309207,3.74 , AMAZON.CO.UK MS9RW2BT4,BALANCING ENTRY AMOUNT (25.51%),Peoples Services Directorate,Personal Requisites,F106,
http://opendatacommunities.org/id/london-borough-council/sutton,London Borough of Sutton,16/12/2020,1309207,13.74 , AMZNMKTPLACE,SPLIT - INTER MILAN (SERIE A) FOOTBALL CREST SCARF (100% ACRYLIC) (78.6%),Peoples Services Directorate,Personal Requisites,F106,
http://opendatacommunities.org/id/london-borough-council/sutton,London Borough of Sutton,03/12/2020,1309207,3.74 , AMZNMKTPLACE,BALANCING ENTRY AMOUNT (24.16%),Peoples Services Directorate,Personal Requisites,F106,
http://opendatacommunities.org/id/london-borough-council/sutton,London Borough of Sutton,03/12/2020,1309207,14.24 , AMZNMKTPLACE AMAZON.CO,"SPLIT - DOVE MEN+ GYM ESSENTIALS GIFT SET, WATER BOTTLE AND MICROFIBRE TOWEL, SKIN AND BODY CARE KIT, LONG LASTING DEODORANT FOR A CLEAN AND FRESH FRAGRANCE, (79.2%)",Peoples Services Directorate,Personal Requisites,F106,
http://opendatacommunities.org/id/london-borough-council/sutton,London Borough of Sutton,03/12/2020,1309207,3.74 , AMZNMKTPLACE AMAZON.CO,BALANCING ENTRY AMOUNT (20.8%),Peoples Services Directorate,Personal Requisites,F106,
http://opendatacommunities.org/id/london-borough-council/sutton,London Borough of Sutton,02/12/2020,1309207,9.99 , AMAZON.CO.UK MY74576E4,SPLIT - TETLEY INDULGENCE TEABAGS VARIETY BOX / STRING & TAG ENVELOPES / 7 MIXED FLAVOURS / 90 BAGS (1 BOX) (68.99%),Peoples Services Directorate,Personal Requisites,F106,
http://opendatacommunities.org/id/london-borough-council/sutton,London Borough of Sutton,02/12/2020,1309207,4.49 , AMAZON.CO.UK MY74576E4,BALANCING ENTRY AMOUNT (31.01%),Peoples Services Directorate,Personal Requisites,F106,
http://opendatacommunities.org/id/london-borough-council/sutton,London Borough of Sutton,02/12/2020,1309207,9.83 , AMZNMKTPLACE,SPLIT - LED UV NAIL LAMPS FOR GEL NAIL POLISH NAIL DRYER CURING LAMP WITH 3 TIMERS AUTO SENSOR LED DIGITAL DISPLAY USB PLUG CARRY CONVENIENT (72.44%),Peoples Services Directorate,Personal Requisites,F106,
http://opendatacommunities.org/id/london-borough-council/sutton,London Borough of Sutton,02/12/2020,1309207,3.74 , AMZNMKTPLACE,BALANCING ENTRY AMOUNT (27.56%),Peoples Services Directorate,Personal Requisites,F106,
http://opendatacommunities.org/id/london-borough-council/sutton,London Borough of Sutton,02/12/2020,1309207,9.83 , AMZNMKTPLACE AMAZON.CO,SPLIT - LED UV NAIL LAMPS FOR GEL NAIL POLISH NAIL DRYER CURING LAMP WITH 3 TIMERS AUTO SENSOR LED DIGITAL DISPLAY USB PLUG CARRY CONVENIENT (72.44%),Peoples Services Directorate,Personal Requisites,F106,
http://opendatacommunities.org/id/london-borough-council/sutton,London Borough of Sutton,02/12/2020,1309207,3.74 , AMZNMKTPLACE AMAZON.CO,BALANCING ENTRY AMOUNT (27.56%),Peoples Services Directorate,Personal Requisites,F106,
http://opendatacommunities.org/id/london-borough-council/sutton,London Borough of Sutton,02/12/2020,1309207,11.74 , AMZNMKTPLACE,"SPLIT - VBIGER UNISEX RUNNING GLOVES TOUCH SCREEN ANTI-SLIP SPORTS GLOVES WINTER GLOVES FOR RUNNING DRIVING HIKING CYCLING(L, BLACK) (75.84%)",Peoples Services Directorate,Personal Requisites,F106,
http://opendatacommunities.org/id/london-borough-council/sutton,London Borough of Sutton,02/12/2020,1309207,3.74 , AMZNMKTPLACE,BALANCING ENTRY AMOUNT (24.16%),Peoples Services Directorate,Personal Requisites,F106,
http://opendatacommunities.org/id/london-borough-council/sutton,London Borough of Sutton,02/12/2020,1309207,11.24 , AMAZON.CO.UK MY8MJ36X4,"SPLIT - NIVEA WINTER WARM UP GIFTSET, MOISTURISING GIFT SET WITH PRODUCTS SELECTED TO PROTECT SKIN, WINTER GIFTS FOR HER, GIFTS FOR WOMEN INCLUDES A REUSABLE BAMBOO TUMBLER (75.03%)",Peoples Services Directorate,Personal Requisites,F106,
http://opendatacommunities.org/id/london-borough-council/sutton,London Borough of Sutton,02/12/2020,1309207,3.74 , AMAZON.CO.UK MY8MJ36X4,BALANCING ENTRY AMOUNT (24.97%),Peoples Services Directorate,Personal Requisites,F106,
http://opendatacommunities.org/id/london-borough-council/sutton,London Borough of Sutton,26/11/2020,1309207,99.99 , ARGOS LTD,ARGOS PURCHASE - TV,Peoples Services Directorate,Personal Requisites,F106,
http://opendatacommunities.org/id/london-borough-council/sutton,London Borough of Sutton,19/12/2020,1309207,12.63 , PPOINT_ BOTTLE & BASKE,DR,Peoples Services Directorate,Personal Requisites,F106,
http://opendatacommunities.org/id/london-borough-council/sutton,London Borough of Sutton,15/12/2020,1309207,10.54 , AMAZON.CO.UK MS8JO6MU4,JC XMAS,Peoples Services Directorate,Personal Requisites,F106,
http://opendatacommunities.org/id/london-borough-council/sutton,London Borough of Sutton,14/12/2020,1309207,22.50 ," BOOTS,CROYDON",YP XMAS,Peoples Services Directorate,Personal Requisites,F106,
http://opendatacommunities.org/id/london-borough-council/sutton,London Borough of Sutton,13/12/2020,1309207,57.08 , SUPERDRUG STORES PLC,YP XMAS PRESENTS,Peoples Services Directorate,Personal Requisites,F106,
http://opendatacommunities.org/id/london-borough-council/sutton,London Borough of Sutton,11/12/2020,1309207,16.02 , PPOINT_ BOTTLE & BASKE,DR GROCERIES,Peoples Services Directorate,Personal Requisites,F106,
http://opendatacommunities.org/id/london-borough-council/sutton,London Borough of Sutton,09/12/2020,1309207,45.50 , PRIMARK,YP XMAS,Peoples Services Directorate,Personal Requisites,F106,
http://opendatacommunities.org/id/london-borough-council/sutton,London Borough of Sutton,08/12/2020,1309207,65.08 , SUTTON & EAST SURREY W,DR WATER,Peoples Services Directorate,Personal Requisites,F106,
http://opendatacommunities.org/id/london-borough-council/sutton,London Borough of Sutton,03/12/2020,1309207,46.61 , AMZNMKTPLACE,YP XMAS,Peoples Services Directorate,Personal Requisites,F106,
http://opendatacommunities.org/id/london-borough-council/sutton,London Borough of Sutton,02/12/2020,1309207,7.67 , SAINSBURYS SACAT(4308),MC GROCERIES,Peoples Services Directorate,Personal Requisites,F106,
http://opendatacommunities.org/id/london-borough-council/sutton,London Borough of Sutton,01/12/2020,1309207,19.17 , SAINSBURYS 2006,XMAS YP'S,Peoples Services Directorate,Personal Requisites,F106,
http://opendatacommunities.org/id/london-borough-council/sutton,London Borough of Sutton,21/11/2020,1309204,18.92 , LIDL GB LONDON,DR,Peoples Services Directorate,Personal Requisites,F106,
http://opendatacommunities.org/id/london-borough-council/sutton,London Borough of Sutton,19/11/2020,1309204,19.58 , SAINSBURYS LOC (4308),MC MOVING,Peoples Services Directorate,Personal Requisites,F106,
http://opendatacommunities.org/id/london-borough-council/sutton,London Borough of Sutton,19/11/2020,1309204,55.00 , WALLINGTON COMPUTERS,JD,Peoples Services Directorate,Personal Requisites,F106,
http://opendatacommunities.org/id/london-borough-council/sutton,London Borough of Sutton,02/11/2020,1309204,3.82 , KFC - SUTTON,MA ACTIVITY,Peoples Services Directorate,Personal Requisites,F106,
http://opendatacommunities.org/id/london-borough-council/sutton,London Borough of Sutton,02/11/2020,1309204,36.99 , ARGOS LTD,DR THERMOMETER,Peoples Services Directorate,Personal Requisites,F106,
http://opendatacommunities.org/id/london-borough-council/sutton,London Borough of Sutton,09/02/2021,1310864,271.00 , BIG YELLOW - SUTTON,BIG YELLOW STORAGE FOR CLIENT,Peoples Services Directorate,Offsite Storage,F231,
http://opendatacommunities.org/id/london-borough-council/sutton,London Borough of Sutton,29/01/2021,1310864,25.00 , FOOD BOXES,MORRISON FOOD BOX NEEDED FOR CLIENT,Peoples Services Directorate,Client Care/Assistance,H301,
http://opendatacommunities.org/id/london-borough-council/sutton,London Borough of Sutton,27/11/2020,1309207,8.00 , FOLKESTONE TAXI COMPAN,8.00 - H301 0304 9999 - FOLKESTONE TAXI (2).PDF,Peoples Services Directorate,Client Care/Assistance,H301,
http://opendatacommunities.org/id/london-borough-council/sutton,London Borough of Sutton,27/11/2020,1309207,115.00 , FOLKESTONE TAXI COMPAN,115.00 - H301 0304 9999 - FOLKESTONE TAXI (1).PDF,Peoples Services Directorate,Client Care/Assistance,H301,
http://opendatacommunities.org/id/london-borough-council/sutton,London Borough of Sutton,29/10/2020,1309204,183.32 , DUREST BEDS,PERSONAL ITEMS REQUIRED FOR CLIENT,Peoples Services Directorate,Client Care/Assistance,H301,
http://opendatacommunities.org/id/london-borough-council/sutton,London Borough of Sutton,24/11/2020,1309204,29.99 , AMZNMKTPLACE,SPLIT - LIVERPOOL FC OFFICIAL FOOTBALL GIFT MENS SHOWER JACKET WINDBREAKER MEDIUM BLACK (100%),Peoples Services Directorate,Client Care/Assistance,H301,
http://opendatacommunities.org/id/london-borough-council/sutton,London Borough of Sutton,20/11/2020,1309204,47.49 , VIDAXL UK,VIDA XL,Peoples Services Directorate,Client Care/Assistance,H301,
http://opendatacommunities.org/id/london-borough-council/sutton,London Borough of Sutton,14/01/2021,1309674,(29.99), AMZ FOOTBALLSHOPONLINE,SPLIT - LIVERPOOL FC OFFICIAL FOOTBALL GIFT MENS SHOWER JACKET WINDBREAKER MEDIUM BLACK (100%),Peoples Services Directorate,Client Care/Assistance,H301,
http://opendatacommunities.org/id/london-borough-council/sutton,London Borough of Sutton,17/02/2021,1310864,(0.28), WF  WAYFAIR3521835524,REFUND FOR CARE LEACER,Peoples Services Directorate,Approved Lodgings,H323,
http://opendatacommunities.org/id/london-borough-council/sutton,London Borough of Sutton,10/02/2021,1310864,7.91 , AMZNMKTPLACE,"SPLIT - NIYS LUXURY BEDDING FINEST 100% EGYPTIAN COTTON 10""/25 CM FITTED SHEETS (BLACK, DOUBLE) (100%)",Peoples Services Directorate,Set Up Costs - Children Leaving Care,H336,
http://opendatacommunities.org/id/london-borough-council/sutton,London Borough of Sutton,10/02/2021,1310864,132.25 , IKEA LTD SHOP ONLINE,IKEA FOR CLIENT,Peoples Services Directorate,Set Up Costs - Children Leaving Care,H336,
http://opendatacommunities.org/id/london-borough-council/sutton,London Borough of Sutton,09/02/2021,1310864,8.32 , AMZNMKTPLACE,SPLIT - MTEXTILE POLY-COTTON QUILTED MATTRESS PROTECTORS 30CM DEEP FITTED SINGLE DOUBLE KING SUPER KING BUNK BED 4FT BED (DOUBLE) (100%),Peoples Services Directorate,Set Up Costs - Children Leaving Care,H336,
http://opendatacommunities.org/id/london-borough-council/sutton,London Borough of Sutton,09/02/2021,1310864,11.66 , AMAZON.CO.UK MF2NB01Q4,"SPLIT - SLEEPDOWN TEXTURED STRIPE BLACK GREY DUVET COVER & PILLOWCASE SET BEDDING QUILT CASE, DOUBLE (78.08%)",Peoples Services Directorate,Set Up Costs - Children Leaving Care,H336,
http://opendatacommunities.org/id/london-borough-council/sutton,London Borough of Sutton,09/02/2021,1310864,4.16 , AMAZON.CO.UK MF2NB01Q4,BALANCING ENTRY AMOUNT (21.92%),Peoples Services Directorate,Set Up Costs - Children Leaving Care,H336,
http://opendatacommunities.org/id/london-borough-council/sutton,London Borough of Sutton,03/02/2021,1310864,140.83 , ARGOS LTD,MATTRESS REQUIRED FOR CARE LEAVER,Peoples Services Directorate,Set Up Costs - Children Leaving Care,H336,
http://opendatacommunities.org/id/london-borough-council/sutton,London Borough of Sutton,01/02/2021,1310864,14.00 , DUNELM,LD SETTING UP,Peoples Services Directorate,Set Up Costs - Children Leaving Care,H336,
http://opendatacommunities.org/id/london-borough-council/sutton,London Borough of Sutton,01/02/2021,1310864,37.49 , SCREWFIX DIRECT,LD SETTING UP,Peoples Services Directorate,Set Up Costs - Children Leaving Care,H336,
http://opendatacommunities.org/id/london-borough-council/sutton,London Borough of Sutton,01/12/2020,1309207,307.50 , AMZNMKTPLACE,JM SET UP,Peoples Services Directorate,Set Up Costs - Children Leaving Care,H336,
http://opendatacommunities.org/id/london-borough-council/sutton,London Borough of Sutton,30/11/2020,1309207,86.62 , ARGOS LTD,MF SET UP,Peoples Services Directorate,Set Up Costs - Children Leaving Care,H336,
http://opendatacommunities.org/id/london-borough-council/sutton,London Borough of Sutton,27/11/2020,1309207,(37.50), ARGOS LTD,MC REFUND OF MC DUVET NOT COLLECTED,Peoples Services Directorate,Set Up Costs - Children Leaving Care,H336,
http://opendatacommunities.org/id/london-borough-council/sutton,London Borough of Sutton,28/01/2021,1310864,100.00 , AMAZON.CO.UK MV4V31DH4,SW SET UP,Peoples Services Directorate,Set Up Costs - Children Leaving Care,H336,
http://opendatacommunities.org/id/london-borough-council/sutton,London Borough of Sutton,19/11/2020,1309204,37.50 , ARGOS LTD,MC SET UP,Peoples Services Directorate,Set Up Costs - Children Leaving Care,H336,
http://opendatacommunities.org/id/london-borough-council/sutton,London Borough of Sutton,19/11/2020,1309204,290.83 , ARGOS LTD,MC,Peoples Services Directorate,Set Up Costs - Children Leaving Care,H336,
http://opendatacommunities.org/id/london-borough-council/sutton,London Borough of Sutton,19/11/2020,1309204,72.00 , AMZNMKTPLACE,MC SET UP,Peoples Services Directorate,Set Up Costs - Children Leaving Care,H336,
http://opendatacommunities.org/id/london-borough-council/sutton,London Borough of Sutton,16/11/2020,1309204,16.65 , TOOLSTATION UK,JD SETTING UP,Peoples Services Directorate,Set Up Costs - Children Leaving Care,H336,
http://opendatacommunities.org/id/london-borough-council/sutton,London Borough of Sutton,02/11/2020,1309204,170.00 , CEX SUTTON,JD,Peoples Services Directorate,Set Up Costs - Children Leaving Care,H336,
http://opendatacommunities.org/id/london-borough-council/sutton,London Borough of Sutton,15/11/2020,1309204,20.82 , AMAZON.CO.UK M76GT7DM4,MC SETTING UP,Peoples Services Directorate,Set Up Costs - Children Leaving Care,H336,
http://opendatacommunities.org/id/london-borough-council/sutton,London Borough of Sutton,13/11/2020,1309204,375.22 , AMZNMKTPLACE,MC SET UP,Peoples Services Directorate,Set Up Costs - Children Leaving Care,H336,
http://opendatacommunities.org/id/london-borough-council/sutton,London Borough of Sutton,09/11/2020,1309204,342.68 , AMZNMKTPLACE AMAZON.CO,MC SET UP,Peoples Services Directorate,Set Up Costs - Children Leaving Care,H336,
http://opendatacommunities.org/id/london-borough-council/sutton,London Borough of Sutton,21/11/2020,1309204,95.83 , AMZNMKTPLACE AMAZON.CO,AO,Peoples Services Directorate,Set Up Costs - Children Leaving Care,H336,
http://opendatacommunities.org/id/london-borough-council/sutton,London Borough of Sutton,02/11/2020,1309204,171.62 , ARGOS LTD,ARGOS ORDER,Peoples Services Directorate,Set Up Costs - Children Leaving Care,H336,
http://opendatacommunities.org/id/london-borough-council/sutton,London Borough of Sutton,25/01/2021,1309674,198.00 , AMZNMKTPLACE,LD SETTING UP,Peoples Services Directorate,Set Up Costs - Children Leaving Care,H336,
http://opendatacommunities.org/id/london-borough-council/sutton,London Borough of Sutton,25/01/2021,1309674,184.99 , AMZNMKTPLACE,LD SETTING UP,Peoples Services Directorate,Set Up Costs - Children Leaving Care,H336,
http://opendatacommunities.org/id/london-borough-council/sutton,London Borough of Sutton,21/01/2021,1309674,41.99 , WF  WAYFAIR 3108608154,LD SETTING UP,Peoples Services Directorate,Set Up Costs - Children Leaving Care,H336,
http://opendatacommunities.org/id/london-borough-council/sutton,London Borough of Sutton,21/01/2021,1309674,678.98 , SUTTONAPPLI,LD SETTING UP,Peoples Services Directorate,Set Up Costs - Children Leaving Care,H336,
http://opendatacommunities.org/id/london-borough-council/sutton,London Borough of Sutton,15/12/2020,1309207,3.74 , AMAZON.CO.UK MS1DN15P4,BALANCING ENTRY AMOUNT (28.31%),Peoples Services Directorate,Personal Requisites,F106,
http://opendatacommunities.org/id/london-borough-council/sutton,London Borough of Sutton,15/12/2020,1309207,9.47 , AMAZON.CO.UK MS5AD9504,"SPLIT - DOVE MEN+ GYM ESSENTIALS GIFT SET, WATER BOTTLE AND MICROFIBRE TOWEL, SKIN AND BODY CARE KIT, LONG LASTING DEODORANT FOR A CLEAN AND FRESH FRAGRANCE, SHOWER GEL AND SHAMPOO CONDITIONER SET, MENS GIFT (71.69%)",Peoples Services Directorate,Personal Requisites,F106,
http://opendatacommunities.org/id/london-borough-council/sutton,London Borough of Sutton,15/12/2020,1309207,3.74 , AMAZON.CO.UK MS5AD9504,BALANCING ENTRY AMOUNT (28.31%),Peoples Services Directorate,Personal Requisites,F106,
http://opendatacommunities.org/id/london-borough-council/sutton,London Borough of Sutton,15/12/2020,1309207,7.27 , AMAZON.CO.UK MS8A105C4,"SPLIT - DOVE MEN+ GYM ESSENTIALS GIFT SET, WATER BOTTLE AND MICROFIBRE TOWEL, SKIN AND BODY CARE KIT, LONG LASTING DEODORANT FOR A CLEAN AND FRESH FRAGRANCE, SHOWER GEL AND SHAMPOO CONDITIONER SET, MENS GIFT (71.69%)",Peoples Services Directorate,Personal Requisites,F106,
http://opendatacommunities.org/id/london-borough-council/sutton,London Borough of Sutton,15/12/2020,1309207,3.74 , AMAZON.CO.UK MS8A105C4,BALANCING ENTRY AMOUNT (28.31%),Peoples Services Directorate,Personal Requisites,F106,
http://opendatacommunities.org/id/london-borough-council/sutton,London Borough of Sutton,15/12/2020,1309207,7.27 , AMAZON.CO.UK MS9D335U4,"SPLIT - DOVE MEN+ GYM ESSENTIALS GIFT SET, WATER BOTTLE AND MICROFIBRE TOWEL, SKIN AND BODY CARE KIT, LONG LASTING DEODORANT FOR A CLEAN AND FRESH FRAGRANCE, SHOWER GEL AND SHAMPOO CONDITIONER SET, MENS GIFT (71.69%)",Peoples Services Directorate,Personal Requisites,F106,
http://opendatacommunities.org/id/london-borough-council/sutton,London Borough of Sutton,15/12/2020,1309207,3.74 , AMAZON.CO.UK MS9D335U4,BALANCING ENTRY AMOUNT (28.31%),Peoples Services Directorate,Personal Requisites,F106,
http://opendatacommunities.org/id/london-borough-council/sutton,London Borough of Sutton,15/12/2020,1309207,7.27 , AMAZON.CO.UK MS1DN15P4,"SPLIT - DOVE MEN+ GYM ESSENTIALS GIFT SET, WATER BOTTLE AND MICROFIBRE TOWEL, SKIN AND BODY CARE KIT, LONG LASTING DEODORANT FOR A CLEAN AND FRESH FRAGRANCE, SHOWER GEL AND SHAMPOO CONDITIONER SET, MENS GIFT (71.69%)",Peoples Services Directorate,Personal Requisites,F106,
http://opendatacommunities.org/id/london-borough-council/sutton,London Borough of Sutton,14/12/2020,1309207,7.27 , AMAZON.CO.UK MS4S09GT4,"SPLIT - DOVE MEN+ GYM ESSENTIALS GIFT SET, WATER BOTTLE AND MICROFIBRE TOWEL, SKIN AND BODY CARE KIT, LONG LASTING DEODORANT FOR A CLEAN AND FRESH FRAGRANCE, SHOWER GEL AND SHAMPOO CONDITIONER SET, MENS GIFT (71.69%)",Peoples Services Directorate,Personal Requisites,F106,
http://opendatacommunities.org/id/london-borough-council/sutton,London Borough of Sutton,14/12/2020,1309207,3.74 , AMAZON.CO.UK MS4S09GT4,BALANCING ENTRY AMOUNT (28.31%),Peoples Services Directorate,Personal Requisites,F106,
http://opendatacommunities.org/id/london-borough-council/sutton,London Borough of Sutton,28/01/2021,1310864,6.29 , ROYAL MAIL GROUP LTD,POSTAGE NEEDED FOR CLIENT,Peoples Services Directorate,Personal Requisites,F106,
http://opendatacommunities.org/id/london-borough-council/sutton,London Borough of Sutton,14/12/2020,1309207,9.47 , AMAZON.CO.UK MS9S51GG4,"SPLIT - DOVE MEN+ GYM ESSENTIALS GIFT SET, WATER BOTTLE AND MICROFIBRE TOWEL, SKIN AND BODY CARE KIT, LONG LASTING DEODORANT FOR A CLEAN AND FRESH FRAGRANCE, SHOWER GEL AND SHAMPOO CONDITIONER SET, MENS GIFT (71.69%)",Peoples Services Directorate,Personal Requisites,F106,
http://opendatacommunities.org/id/london-borough-council/sutton,London Borough of Sutton,14/12/2020,1309207,3.74 , AMAZON.CO.UK MS9S51GG4,BALANCING ENTRY AMOUNT (28.31%),Peoples Services Directorate,Personal Requisites,F106,
http://opendatacommunities.org/id/london-borough-council/sutton,London Borough of Sutton,22/01/2021,1309674,29.17 , FOOD BOXES,MORRISON FOOD BOX REQUIRED FOR CLIENT AS PER SOCIAL WORKERS REQUEST,Peoples Services Directorate,Client Care/Assistance,H301,
http://opendatacommunities.org/id/london-borough-council/sutton,London Borough of Sutton,11/02/2021,1310864,2.08 , BUDGENS,ITEMS NEEDED FOR THORNTON ROAD,Peoples Services Directorate,Personal Requisites,F106,
http://opendatacommunities.org/id/london-borough-council/sutton,London Borough of Sutton,08/02/2021,1310864,76.75 , ASDA GROCERIES ONLINE,FOOD NEEDED FOR CARE LEAVERS,Peoples Services Directorate,Personal Requisites,F106,
http://opendatacommunities.org/id/london-borough-council/sutton,London Borough of Sutton,30/10/2020,1309204,(169.99), WF  WAYFAIR 3417957844,FURNITURE REQUIRED FOR CLIENT,Peoples Services Directorate,Personal Requisites,F106,
http://opendatacommunities.org/id/london-borough-council/sutton,London Borough of Sutton,29/10/2020,1309204,(169.99), WF  WAYFAIR 3417957844,REFUND - WAYFAIR,Peoples Services Directorate,Personal Requisites,F106,
http://opendatacommunities.org/id/london-borough-council/sutton,London Borough of Sutton,08/02/2021,1310864,5.42 , WALLINGTON CARS AND CO,TRAVEL FOR STAFF AT THORNTON ROAD,Peoples Services Directorate,Staff Travelling Expenses,E130,
http://opendatacommunities.org/id/london-borough-council/sutton,London Borough of Sutton,06/01/2021,1309674,88.17 , TESCO STORE 3235,FOOD ORDER FOR CHILDREN AT THORNTON ROAD,Peoples Services Directorate,Materials - General,F100,
http://opendatacommunities.org/id/london-borough-council/sutton,London Borough of Sutton,02/02/2021,1310864,3.73 , ANNA PHARMACY,MEDICINE REQUIRED FOR CHILDREN AT THORNTON ROAD,Peoples Services Directorate,First Aid and Medical Requisites,F105,
http://opendatacommunities.org/id/london-borough-council/sutton,London Borough of Sutton,28/01/2021,1310864,2.73 , ANNA PHARMACY,MEDICINE REQUIRED FOR CHILDREN AT THORNTON ROAD,Peoples Services Directorate,First Aid and Medical Requisites,F105,
http://opendatacommunities.org/id/london-borough-council/sutton,London Borough of Sutton,01/02/2021,1310864,14.15 , SUPERDRUG STORES PLC,MEDICINE REQUIRED FOR CHILDREN AT THORNTON ROAD,Peoples Services Directorate,First Aid and Medical Requisites,F105,
http://opendatacommunities.org/id/london-borough-council/sutton,London Borough of Sutton,16/01/2021,1309674,3.82 , BUDGENS,ITEMS NEEDED FOR CHILDREN AT THORNTON ROAD,Peoples Services Directorate,Personal Requisites,F106,
http://opendatacommunities.org/id/london-borough-council/sutton,London Borough of Sutton,15/01/2021,1309674,16.67 , TESCO STORE 3235,FOOD ORDER FOR CHILDREN AT THORNTON ROAD,Peoples Services Directorate,Personal Requisites,F106,
http://opendatacommunities.org/id/london-borough-council/sutton,London Borough of Sutton,12/01/2021,1309674,20.00 , TESCO STORE 3235,FOOD ORDER FOR CHILDREN AT THORNTON ROAD,Peoples Services Directorate,Personal Requisites,F106,
http://opendatacommunities.org/id/london-borough-council/sutton,London Borough of Sutton,12/01/2021,1309674,32.08 , TESCO STORE 3235,FOOD ORDER FOR CHILDREN AT THORNTON ROAD,Peoples Services Directorate,Personal Requisites,F106,
http://opendatacommunities.org/id/london-borough-council/sutton,London Borough of Sutton,12/01/2021,1309674,18.75 , TESCO STORE 3235,FOOD ORDER FOR CHILDREN AT THORNTON ROAD,Peoples Services Directorate,Personal Requisites,F106,
http://opendatacommunities.org/id/london-borough-council/sutton,London Borough of Sutton,12/01/2021,1309674,4.77 , LIDL GB LONDON,FOOD ORDER FOR CHILDREN AT THORNTON ROAD,Peoples Services Directorate,Personal Requisites,F106,
http://opendatacommunities.org/id/london-borough-council/sutton,London Borough of Sutton,11/01/2021,1309674,2.92 , PPOINT_ SPARKS FOOD &,FOOD ORDER FOR CHILDREN AT THORNTON ROAD,Peoples Services Directorate,Personal Requisites,F106,
http://opendatacommunities.org/id/london-borough-council/sutton,London Borough of Sutton,11/01/2021,1309674,53.27 , ASDA STORES,FOOD ORDER FOR CHILDREN AT THORNTON ROAD,Peoples Services Directorate,Personal Requisites,F106,
http://opendatacommunities.org/id/london-borough-council/sutton,London Borough of Sutton,11/01/2021,1309674,48.55 , ASDA GROCERIES ONLINE,FOOD ORDER FOR CHILDREN AT THORNTON ROAD,Peoples Services Directorate,Personal Requisites,F106,
http://opendatacommunities.org/id/london-borough-council/sutton,London Borough of Sutton,11/01/2021,1309674,5.00 , ASDA STORES 7134,FOOD ORDER FOR CHILDREN AT THORNTON ROAD,Peoples Services Directorate,Personal Requisites,F106,
http://opendatacommunities.org/id/london-borough-council/sutton,London Borough of Sutton,07/01/2021,1309674,19.33 , ASDA STORES,FOOD ORDER FOR CHILDREN AT THORNTON ROAD,Peoples Services Directorate,Personal Requisites,F106,
http://opendatacommunities.org/id/london-borough-council/sutton,London Borough of Sutton,06/01/2021,1309674,6.61 , PPOINT_ SPARKS FOOD &,FOOD ORDER FOR CHILDREN AT THORNTON ROAD,Peoples Services Directorate,Personal Requisites,F106,
http://opendatacommunities.org/id/london-borough-council/sutton,London Borough of Sutton,12/02/2021,1310864,11.02 , AMZNMKTPLACE,"SPLIT - DREAMSCENE SATIN STRIPE DUVET COVER WITH PILLOW CASES QUILT BEDDING SET, BLACK, DOUBLE (45.26%)",Peoples Services Directorate,Personal Requisites,F106,
http://opendatacommunities.org/id/london-borough-council/sutton,London Borough of Sutton,12/02/2021,1310864,13.32 , AMZNMKTPLACE,"SPLIT - ANECO PACK OF 4 18 X 18 INCHES FAUX FUR THROW PILLOW COVERS FLUFFY PILLOW COVERS FUZZY CUSHION COVER SOFT PLUSH THROW PILLOWS FOR COUCH SOFA BEDROOM, BLACK (54.74%)",Peoples Services Directorate,Personal Requisites,F106,
http://opendatacommunities.org/id/london-borough-council/sutton,London Borough of Sutton,01/02/2021,1310864,1.67 , POUNDLAND LTD,ITEMS NEEDED FOR CHILDREN AT THORNTON ROAD,Peoples Services Directorate,Personal Requisites,F106,
http://opendatacommunities.org/id/london-borough-council/sutton,London Borough of Sutton,04/01/2021,1309674,5.83 , WM MORRISONS STORE,FOOD ORDER FOR CHILDREN AT THORNTON ROAD,Peoples Services Directorate,Personal Requisites,F106,
http://opendatacommunities.org/id/london-borough-council/sutton,London Borough of Sutton,25/01/2021,1309674,2.49 , BUDGENS,ITEMS NEEDED FOR CHILDREN AT THORNTON ROAD,Peoples Services Directorate,Personal Requisites,F106,
http://opendatacommunities.org/id/london-borough-council/sutton,London Borough of Sutton,23/01/2021,1309674,13.33 , ASDA STORES,FOOD ORDER FOR CHILDREN AT THORNTON ROAD,Peoples Services Directorate,Personal Requisites,F106,
http://opendatacommunities.org/id/london-borough-council/sutton,London Borough of Sutton,23/01/2021,1309674,46.49 , ASDA STORES,FOOD ORDER FOR CHILDREN AT THORNTON ROAD,Peoples Services Directorate,Personal Requisites,F106,
http://opendatacommunities.org/id/london-borough-council/sutton,London Borough of Sutton,21/01/2021,1309674,3.33 , ASDA STORES,FOOD ORDER FOR CHILDREN AT THORNTON ROAD,Peoples Services Directorate,Personal Requisites,F106,
http://opendatacommunities.org/id/london-borough-council/sutton,London Borough of Sutton,19/01/2021,1309674,3.32 , PPOINT_ SPARKS FOOD &,FOOD ORDER FOR CHILDREN AT THORNTON ROAD,Peoples Services Directorate,Personal Requisites,F106,
http://opendatacommunities.org/id/london-borough-council/sutton,London Borough of Sutton,19/01/2021,1309674,17.50 , HMCOURTS-SERVICE.G,FINE FOR A CHILD AT THORNTON ROAD,Peoples Services Directorate,Personal Requisites,F106,
http://opendatacommunities.org/id/london-borough-council/sutton,London Borough of Sutton,16/01/2021,1309674,24.48 , ASDA STORES,FOOD ORDER FOR CHILDREN AT THORNTON ROAD,Peoples Services Directorate,Personal Requisites,F106,
http://opendatacommunities.org/id/london-borough-council/sutton,London Borough of Sutton,16/01/2021,1309674,55.52 , ASDA STORES,FOOD ORDER FOR CHILDREN AT THORNTON ROAD,Peoples Services Directorate,Personal Requisites,F106,
http://opendatacommunities.org/id/london-borough-council/sutton,London Borough of Sutton,16/01/2021,1309674,48.24 , B & Q 1191,ITEMS NEEDED FOR CHILDREN AT THORNTON ROAD,Peoples Services Directorate,Personal Requisites,F106,
http://opendatacommunities.org/id/london-borough-council/sutton,London Borough of Sutton,12/02/2021,1310864,1.67 , AMZNMKTPLACE,SPLIT - SHARPIE PERMANENT MARKERS | ULTRA-FINE POINT | BLACK | 2 COUNT (3.23%),Peoples Services Directorate,Personal Requisites,F106,
http://opendatacommunities.org/id/london-borough-council/sutton,London Borough of Sutton,11/02/2021,1310864,1.66 , BUDGENS,ITEMS NEEDED FOR THORNTON ROAD,Peoples Services Directorate,Personal Requisites,F106,
http://opendatacommunities.org/id/london-borough-council/sutton,London Borough of Sutton,11/02/2021,1310864,14.16 , AMZNMKTPLACE,"SPLIT - BEAUTIFUL DIAMOND CRUSH VELVET ROUND FILLED CUSHION TOUCH OF ELEGANCE TO ANY ROOM (SILVER, LARGE ROUND 18"" (45X45CM)) (104.4%)",Peoples Services Directorate,Personal Requisites,F106,
http://opendatacommunities.org/id/london-borough-council/sutton,London Borough of Sutton,11/02/2021,1310864,(0.71), AMZNMKTPLACE,BALANCING ENTRY AMOUNT (-13.2%),Peoples Services Directorate,Personal Requisites,F106,
http://opendatacommunities.org/id/london-borough-council/sutton,London Borough of Sutton,11/02/2021,1310864,2.49 , BUDGENS,ITEMS NEEDED FOR THORNTON ROAD,Peoples Services Directorate,Personal Requisites,F106,
http://opendatacommunities.org/id/london-borough-council/sutton,London Borough of Sutton,11/02/2021,1310864,11.85 , AMAZON.CO.UK MF1HF2X34,"SPLIT - ZERO GRAVITY SPORT'S TRAMPOLINE TIE DOWN GROUND ANCHOR FIXING KIT HEAVY DUTY, STRONG AND GALVANISED CORKSCREW STYLE (78.34%)",Peoples Services Directorate,Personal Requisites,F106,
http://opendatacommunities.org/id/london-borough-council/sutton,London Borough of Sutton,11/02/2021,1310864,4.16 , AMAZON.CO.UK MF1HF2X34,BALANCING ENTRY AMOUNT (21.66%),Peoples Services Directorate,Personal Requisites,F106,
http://opendatacommunities.org/id/london-borough-council/sutton,London Borough of Sutton,11/02/2021,1310864,5.00 , ASDA STORES 7134,FOOD NEEDED FOR CARE LEAVERS,Peoples Services Directorate,Personal Requisites,F106,
http://opendatacommunities.org/id/london-borough-council/sutton,London Borough of Sutton,11/02/2021,1310864,44.91 , AMZNMKTPLACE AMAZON.CO,"SPLIT - APROTII DOUBLE DANCE MAT FOR KIDS ADULTS, WIRELESS NON-SLIP DANCER STEP PADS USB DANCING MAT, LIGHT UP DANCING BLANKET DANCE MATS FOR PC COMPUTER TV (100%)",Peoples Services Directorate,Personal Requisites,F106,
http://opendatacommunities.org/id/london-borough-council/sutton,London Borough of Sutton,12/02/2021,1310864,16.65 , AMZNMKTPLACE AMAZON.CO,"SPLIT - ABERDOMIC 1000 PIECES JIGSAW PUZZLES, VIVID COLOR PSYCHEDELIC MANDALA FLORAL PATTERNS PUZZLE FOR ADULTS TEEN, DIFFICULT AND CHALLENGING (100%)",Peoples Services Directorate,Personal Requisites,F106,
http://opendatacommunities.org/id/london-borough-council/sutton,London Borough of Sutton,12/02/2021,1310864,41.46 , TESCO STORE 3235,FOOD NEEDED FOR CARE LEAVERS,Peoples Services Directorate,Personal Requisites,F106,
http://opendatacommunities.org/id/london-borough-council/sutton,London Borough of Sutton,12/02/2021,1310864,8.32 , AMZNMKTPLACE AMAZON.CO,SPLIT - 750 PIECES FOOD STORAGE LABELS ADHESIVE REMOVABLE FOOD LABELS FOOD STORAGE FREEZER STICKER FOR HOME RESTAURANT FOOD DATE SAFE SUPPLIES (15.28%),Peoples Services Directorate,Personal Requisites,F106,
http://opendatacommunities.org/id/london-borough-council/sutton,London Borough of Sutton,16/02/2021,1310864,112.32 , CARTRIDGESHOP.CO.UK,CARTRIDGE SHOP FOR CLIENT,Peoples Services Directorate,Personal Requisites,F106,
http://opendatacommunities.org/id/london-borough-council/sutton,London Borough of Sutton,15/02/2021,1310864,100.00 , STARTSELECT,NETFLIX ACCOUNT FOR CLIENT,Peoples Services Directorate,Personal Requisites,F106,
http://opendatacommunities.org/id/london-borough-council/sutton,London Borough of Sutton,10/02/2021,1310864,59.99 , DISNEY PLUS,DISNEY PLUS FOR CLIENT,Peoples Services Directorate,Personal Requisites,F106,
http://opendatacommunities.org/id/london-borough-council/sutton,London Borough of Sutton,25/02/2021,1310864,399.00 , WWW.JOHNLEWIS.COM,JOHN LEWIS FOR CLIENT,Peoples Services Directorate,Personal Requisites,F106,
http://opendatacommunities.org/id/london-borough-council/sutton,London Borough of Sutton,10/02/2021,1310864,8.39 , BUDGENS,ITEMS NEEDED FOR CARE LEAVERS,Peoples Services Directorate,Personal Requisites,F106,
http://opendatacommunities.org/id/london-borough-council/sutton,London Borough of Sutton,09/02/2021,1310864,21.88 , SAVERS HEALTH & BEAUTY,ITEMS NEEDED FOR CARE LEAVERS,Peoples Services Directorate,Personal Requisites,F106,
http://opendatacommunities.org/id/london-borough-council/sutton,London Borough of Sutton,09/02/2021,1310864,6.86 , BOOTS 0858,ITEMS NEEDED FOR CARE LEAVERS,Peoples Services Directorate,Personal Requisites,F106,
http://opendatacommunities.org/id/london-borough-council/sutton,London Borough of Sutton,09/02/2021,1310864,25.65 , BOOTS 0858,ITEMS NEEDED FOR CARE LEAVERS,Peoples Services Directorate,Personal Requisites,F106,
http://opendatacommunities.org/id/london-borough-council/sutton,London Borough of Sutton,09/02/2021,1310864,2.39 , AMZNMKTPLACE,OFFICE ITEMS NEEDED FOR THORNTON ROAD (100%),Peoples Services Directorate,Personal Requisites,F106,
http://opendatacommunities.org/id/london-borough-council/sutton,London Borough of Sutton,09/02/2021,1310864,(12.35), BOOTS 0858,ITEMS NEEDED FOR CARE LEAVERS,Peoples Services Directorate,Personal Requisites,F106,
http://opendatacommunities.org/id/london-borough-council/sutton,London Borough of Sutton,08/02/2021,1310864,4.37 , ASDA STORES,FOOD NEEDED FOR CARE LEAVERS,Peoples Services Directorate,Personal Requisites,F106,
http://opendatacommunities.org/id/london-borough-council/sutton,London Borough of Sutton,12/02/2021,1310864,8.24 , AMZNMKTPLACE,"SPLIT - 5D DIAMOND PAINTING KITS FOR ADULTS, JECANORI FULL ROUND DRILL RHINESTONE DIAMOND EMBROIDERY PAINTINGS, ARTS CRAFT SUPPLY FOR HOME WALL DECOR, 12X12 INCH(COLORFUL STAR GRAY ELEPHANT) (15.99%)",Peoples Services Directorate,Personal Requisites,F106,
http://opendatacommunities.org/id/london-borough-council/sutton,London Borough of Sutton,12/02/2021,1310864,34.98 , AMZNMKTPLACE,SPLIT - NERF N-STRIKE ELITE DISRUPTOR (67.86%),Peoples Services Directorate,Personal Requisites,F106,
http://opendatacommunities.org/id/london-borough-council/sutton,London Borough of Sutton,12/02/2021,1310864,6.66 , AMZNMKTPLACE,SPLIT - 100PCS 7.2CM REFILL DARTS BULLETS FOR NERF N-STRIKE ELITE SERIES BLASTERS CHILDREN TOY GUN BLUE SOFT BULLET FOAM GUNS ACCESSORIES (12.92%),Peoples Services Directorate,Personal Requisites,F106,
http://opendatacommunities.org/id/london-borough-council/sutton,London Borough of Sutton,19/02/2021,1310864,5.99 , BIG BOSS HEATING,ITEMS NEEDED FOR THORNTON ROAD,Peoples Services Directorate,Personal Requisites,F106,
http://opendatacommunities.org/id/london-borough-council/sutton,London Borough of Sutton,18/02/2021,1310864,13.49 , BUDGENS,FOOD REQUIRED FOR CARE LEAVERS,Peoples Services Directorate,Personal Requisites,F106,
http://opendatacommunities.org/id/london-borough-council/sutton,London Borough of Sutton,18/02/2021,1310864,3.99 , BUDGENS,FOOD REQUIRED FOR CARE LEAVERS,Peoples Services Directorate,Personal Requisites,F106,
http://opendatacommunities.org/id/london-borough-council/sutton,London Borough of Sutton,17/02/2021,1310864,8.37 , BUDGENS,FOOD REQUIRED FOR CARE LEAVERS,Peoples Services Directorate,Personal Requisites,F106,
http://opendatacommunities.org/id/london-borough-council/sutton,London Borough of Sutton,15/02/2021,1310864,91.42 , ASDA GROCERIES ONLINE,FOOD NEEDED FOR THORNTON ROAD CARE LEAVERS,Peoples Services Directorate,Personal Requisites,F106,
http://opendatacommunities.org/id/london-borough-council/sutton,London Borough of Sutton,15/02/2021,1310864,(0.49), ASDA GROCERIES ONLINE,FOOD NEEDED FOR THORNTON ROAD CARE LEAVERS,Peoples Services Directorate,Personal Requisites,F106,
http://opendatacommunities.org/id/london-borough-council/sutton,London Borough of Sutton,15/02/2021,1310864,(0.38), ASDA GROCERIES ONLINE,FOOD NEEDED FOR THORNTON ROAD CARE LEAVERS,Peoples Services Directorate,Personal Requisites,F106,
http://opendatacommunities.org/id/london-borough-council/sutton,London Borough of Sutton,14/02/2021,1310864,7.99 , AMZNMKTPLACE,"SPLIT - PINK FLORAL SCRAPBOOK PAPER FOR ARTS & CRAFTS: DOUBLE SIDED CRAFT PAPER FOR CARD MAKING, ORIGAMI & DIY PROJECTS | SCRAPBOOKING PAPER PAD (100%)",Peoples Services Directorate,Personal Requisites,F106,
http://opendatacommunities.org/id/london-borough-council/sutton,London Borough of Sutton,12/02/2021,1310864,5.77 , PPOINT_ SPARKS FOOD &,FOOD NEEDED FOR THORNTON ROAD CARE LEAVERS,Peoples Services Directorate,Personal Requisites,F106,
http://opendatacommunities.org/id/london-borough-council/sutton,London Borough of Sutton,12/02/2021,1310864,11.22 , BUDGENS,ITEMS NEEDED FOR THORNTON ROAD,Peoples Services Directorate,Personal Requisites,F106,
http://opendatacommunities.org/id/london-borough-council/sutton,London Borough of Sutton,12/02/2021,1310864,10.32 , AMZNMKTPLACE,SPLIT - SLUMBERDOWN COSY NIGHTS WHITE PILLOWS 2 PACK MEDIUM SUPPORT BED PILLOWS DESIGNED FOR BACK AND SIDE SLEEPERS (23.65%),Peoples Services Directorate,Personal Requisites,F106,
http://opendatacommunities.org/id/london-borough-council/sutton,London Borough of Sutton,12/02/2021,1310864,33.32 , AMZNMKTPLACE,"SPLIT - SLEEPDOWN SPARKLE SEQUIN SILVER GREY PANEL BAND BEDSPREAD THROW OVER SOFA BED SUPER SOFT WARM COSY LARGE BLANKET-150CM X 200CM, POLYESTER & COTTON (76.35%)",Peoples Services Directorate,Personal Requisites,F106,
http://opendatacommunities.org/id/london-borough-council/sutton,London Borough of Sutton,12/02/2021,1310864,12.91 , AMZNMKTPLACE,"SPLIT - IYAN LINENS LTD 4 PACK OF SIZE 18"" X 18"" CUSHION PAD - CUSHION INNER (45CM X 45CM) - PURE WHITE PLUMP LUXURY SHAM INSERTS WITH BOUNCE BACK HOLLOW FIBRE, STANDARD SQUARE - MADE IN UK (100%)",Peoples Services Directorate,Personal Requisites,F106,
http://opendatacommunities.org/id/london-borough-council/sutton,London Borough of Sutton,12/02/2021,1310864,7.49 , AMZNMKTPLACE AMAZON.CO,SPLIT - WEDO 262 801899 ASSORTED KEY FOBS (PACK OF 100) (13.75%),Peoples Services Directorate,Personal Requisites,F106,
http://opendatacommunities.org/id/london-borough-council/sutton,London Borough of Sutton,12/02/2021,1310864,33.33 , AMZNMKTPLACE AMAZON.CO,SPLIT - JACMOK -JUMBO TUMBLE TOWER-BIG TUMBLING TOWER-WOODEN BLOCK (60 PIECES 7 KG) POSSIBLE HEIGHT FROM 60 CM TO 100 CM (61.18%),Peoples Services Directorate,Personal Requisites,F106,
http://opendatacommunities.org/id/london-borough-council/sutton,London Borough of Sutton,12/02/2021,1310864,5.33 , AMZNMKTPLACE AMAZON.CO,"SPLIT - MITRE IMPEL TRAINING FOOTBALL WITHOUT BALL PUMP, ORANGE, SIZE 5 (9.79%)",Peoples Services Directorate,Personal Requisites,F106,
http://opendatacommunities.org/id/london-borough-council/sutton,London Borough of Sutton,12/02/2021,1310864,33.34 , AMZNMKTPLACE,"SPLIT - NERF ELITE 2.0 WARDEN DB-8 BLASTER, 16 OFFICIAL NERF DARTS, BLAST 2 DARTS AT ONCE, TACTICAL RAIL FOR CUSTOMISING CAPABILITY, SLAM FIRE (100%)",Peoples Services Directorate,Personal Requisites,F106,
http://opendatacommunities.org/id/london-borough-council/sutton,London Borough of Sutton,01/02/2021,1310864,(0.87), ASDA GROCERIES ONLINE,FOOD ORDER FOR CHILDREN AT THORNTON ROAD,Peoples Services Directorate,Personal Requisites,F106,
http://opendatacommunities.org/id/london-borough-council/sutton,London Borough of Sutton,30/01/2021,1310864,4.74 , B AND B STORE,ITEMS NEEDED FOR CHILDREN AT THORNTON ROAD,Peoples Services Directorate,Personal Requisites,F106,
http://opendatacommunities.org/id/london-borough-council/sutton,London Borough of Sutton,08/02/2021,1310864,23.65 , ASDA STORES,FOOD NEEDED FOR CARE LEAVERS,Peoples Services Directorate,Personal Requisites,F106,
http://opendatacommunities.org/id/london-borough-council/sutton,London Borough of Sutton,08/02/2021,1310864,304.55 , AMAZON.CO.UK MF4H93EJ4,SPLIT - UPPER BOUNCE PREMIUM 14FT TRAMPOLINE AND ENCLOSURE SET EQUIPPED WITH EASY ASSEMBLY FEATURE | OUTDOOR TRAMPOLINE WITH SAFETY ENCLOSURE NET | ULTRA DURABLE FOAM MAT AND SAFETY PADS (100%),Peoples Services Directorate,Personal Requisites,F106,
http://opendatacommunities.org/id/london-borough-council/sutton,London Borough of Sutton,08/02/2021,1310864,21.87 , SUPERDRUG STORES PLC,ITEMS NEEDED FOR CARE LEAVERS,Peoples Services Directorate,Personal Requisites,F106,
http://opendatacommunities.org/id/london-borough-council/sutton,London Borough of Sutton,07/02/2021,1310864,7.08 , ASDA STORES,FOOD FOR CARE LEAVERS,Peoples Services Directorate,Personal Requisites,F106,
http://opendatacommunities.org/id/london-borough-council/sutton,London Borough of Sutton,07/02/2021,1310864,20.94 , ASDA STORES,FOOD FOR CARE LEAVERS,Peoples Services Directorate,Personal Requisites,F106,
http://opendatacommunities.org/id/london-borough-council/sutton,London Borough of Sutton,07/02/2021,1310864,14.53 , BUDGENS,FOOD FOR CARE LEAVERS,Peoples Services Directorate,Personal Requisites,F106,
http://opendatacommunities.org/id/london-borough-council/sutton,London Borough of Sutton,28/01/2021,1310864,35.00 , SAINSBURYS SACAT 2331,FOOD ORDER FOR CHILDREN AT THORNTON ROAD,Peoples Services Directorate,Personal Requisites,F106,
http://opendatacommunities.org/id/london-borough-council/sutton,London Borough of Sutton,28/01/2021,1310864,6.47 , BUDGENS,FOOD ORDER FOR CHILDREN AT THORNTON ROAD,Peoples Services Directorate,Personal Requisites,F106,
http://opendatacommunities.org/id/london-borough-council/sutton,London Borough of Sutton,22/02/2021,1310864,(2.25), ASDA GROCERIES ONLINE,FOOD REQUIRED FOR CARE LEAVERS,Peoples Services Directorate,Personal Requisites,F106,
http://opendatacommunities.org/id/london-borough-council/sutton,London Borough of Sutton,22/02/2021,1310864,0.95 , B AND B STORE,ITEMS NEEDED THORNTON ROAD,Peoples Services Directorate,Personal Requisites,F106,
http://opendatacommunities.org/id/london-borough-council/sutton,London Borough of Sutton,20/02/2021,1310864,5.18 , PPOINT_ SPARKS FOOD &,FOOD REQUIRED FOR CARE LEAVERS,Peoples Services Directorate,Personal Requisites,F106,
http://opendatacommunities.org/id/london-borough-council/sutton,London Borough of Sutton,19/02/2021,1310864,6.66 , AMZNMKTPLACE AMAZON.CO,SPLIT - NICE STYLE PACK OF 50 - MEDIUM TIP FLUENT SMOOTH WRITING BLACK BIRO BALLPOINT PENS (15.79%),Peoples Services Directorate,Personal Requisites,F106,
http://opendatacommunities.org/id/london-borough-council/sutton,London Borough of Sutton,19/02/2021,1310864,5.00 , AMZNMKTPLACE AMAZON.CO,"SPLIT - STAEDTLER TEXTSURFER CLASSIC 364 HIGHLIGHTER - ASSORTED COLOURS, PACK OF 8 (11.86%)",Peoples Services Directorate,Personal Requisites,F106,
http://opendatacommunities.org/id/london-borough-council/sutton,London Borough of Sutton,19/02/2021,1310864,5.99 , AMZNMKTPLACE AMAZON.CO,"SPLIT - POST-IT, SUPER STICKY NOTES PAD, COLOURED NOTES RIO COLLECTION, MEMO NOTE PAD FOR NOTES TAKING AND TO DO LIST, 6 PADS OF 90 SHEETS, POST-IT NOTE CLASSIC 76 X 76 MM (14.21%)",Peoples Services Directorate,Personal Requisites,F106,
http://opendatacommunities.org/id/london-borough-council/sutton,London Borough of Sutton,19/02/2021,1310864,12.88 , AMZNMKTPLACE AMAZON.CO,SPLIT - CATHEDRAL PRODUCTS CBDLBK 12-INCH THE ULTIMATE CASH BOX SECURE LOCK WITH COIN TRAY FOR PETTY CASH - BLACK (30.55%),Peoples Services Directorate,Personal Requisites,F106,
http://opendatacommunities.org/id/london-borough-council/sutton,London Borough of Sutton,19/02/2021,1310864,11.63 , AMZNMKTPLACE AMAZON.CO,"SPLIT - MESH DESK ORGANIZER MULTIFUNCTIONAL DESKTOP ORGANIZER OFFICE SUPPLIES HOLDER WITH 6 COMPARTMENTS AND 1 DRAWER FOR HOME, OFFICE, SCHOOL, CLASSROOM, WORKSHOP BY PIPISHELL (27.59%)",Peoples Services Directorate,Personal Requisites,F106,
http://opendatacommunities.org/id/london-borough-council/sutton,London Borough of Sutton,19/02/2021,1310864,49.99 , PLAYSTATIONNETWORK,TREAT FOR CARE LEAVER,Peoples Services Directorate,Personal Requisites,F106,
http://opendatacommunities.org/id/london-borough-council/sutton,London Borough of Sutton,19/02/2021,1310864,2.21 , AMZNMKTPLACE AMAZON.CO,SPLIT - 100 NO MIXED COIN/MONEY BANK BAGS (100%),Peoples Services Directorate,Personal Requisites,F106,
http://opendatacommunities.org/id/london-borough-council/sutton,London Borough of Sutton,02/02/2021,1310864,(15.66), FEMME LUXE,CLOTHING ALLOWANCE FOR CHILDREN AT THORNTON ROAD,Peoples Services Directorate,C.C.A Travel & Subsistance,H212,
http://opendatacommunities.org/id/london-borough-council/sutton,London Borough of Sutton,27/01/2021,1310864,9.17 , WALLINGTON CARS AND CO,CAB JOURNEY NEEDED FOR AN OUTING,Peoples Services Directorate,C.C.A Travel & Subsistance,H212,
http://opendatacommunities.org/id/london-borough-council/sutton,London Borough of Sutton,27/01/2021,1310864,9.17 , WALLINGTON CARS AND CO,CAB JOURNEY NEEDED FOR AN OUTING,Peoples Services Directorate,C.C.A Travel & Subsistance,H212,
http://opendatacommunities.org/id/london-borough-council/sutton,London Borough of Sutton,06/01/2021,1309674,14.12 , FEMME LUXE,CLOTHING ALLOWANCE FOR CHILD AT THORNTON ROAD,Peoples Services Directorate,C.C.A Travel & Subsistance,H212,
http://opendatacommunities.org/id/london-borough-council/sutton,London Borough of Sutton,06/01/2021,1309674,34.12 , BOOHOO.COM,ITEMS NEEDED FOR CHILDREN AT THORNTON ROAD,Peoples Services Directorate,C.C.A Travel & Subsistance,H212,
http://opendatacommunities.org/id/london-borough-council/sutton,London Borough of Sutton,06/01/2021,1309674,21.66 , SP   ISAWITFIRST.COM,CLOTHING ALLOWANCE FOR CHILD AT THORNTON ROAD,Peoples Services Directorate,C.C.A Travel & Subsistance,H212,
http://opendatacommunities.org/id/london-borough-council/sutton,London Borough of Sutton,13/01/2021,1309674,9.46 , UBER  TRIP HELP.UBER.C,CAB JOURNEY NEEDED FOR AN OUTING,Peoples Services Directorate,C.C.A Travel & Subsistance,H212,
http://opendatacommunities.org/id/london-borough-council/sutton,London Borough of Sutton,13/01/2021,1309674,8.27 , UBER    TRIP,CAB JOURNEY NEEDED FOR AN OUTING,Peoples Services Directorate,C.C.A Travel & Subsistance,H212,
http://opendatacommunities.org/id/london-borough-council/sutton,London Borough of Sutton,13/01/2021,1309674,8.19 , UBER TRIP HELP.UBER.CO,CAB JOURNEY NEEDED FOR AN OUTING,Peoples Services Directorate,C.C.A Travel & Subsistance,H212,
http://opendatacommunities.org/id/london-borough-council/sutton,London Borough of Sutton,10/02/2021,1310864,(10.00), SP   ISAWITFIRST.COM,REFUND FOR CARE LEAVER CLOTHING ALLOWANCE,Peoples Services Directorate,C.C.A Food & Clothing,H213,
http://opendatacommunities.org/id/london-borough-council/sutton,London Borough of Sutton,01/02/2021,1310864,77.96 , ASDA GROCERIES ONLINE,FOOD ORDER FOR CHILDREN AT THORNTON ROAD,Peoples Services Directorate,C.C.A Food & Clothing,H213,
http://opendatacommunities.org/id/london-borough-council/sutton,London Borough of Sutton,02/02/2021,1310864,9.99 , PRETTYLITTLETHING.COM,CLOTHING ALLOWANCE FOR A CARE LEAVER,Peoples Services Directorate,C.C.A Food & Clothing,H213,
http://opendatacommunities.org/id/london-borough-council/sutton,London Borough of Sutton,02/02/2021,1310864,53.03 , FEMME LUXE,CLOTHING ALLOWANCE FOR A CARE LEAVER,Peoples Services Directorate,C.C.A Food & Clothing,H213,
http://opendatacommunities.org/id/london-borough-council/sutton,London Borough of Sutton,01/02/2021,1310864,21.23 , SHEIN.COM,CLOTHING ALLOWANCE FOR CHILDREN AT THORNTON ROAD,Peoples Services Directorate,C.C.A Food & Clothing,H213,
http://opendatacommunities.org/id/london-borough-council/sutton,London Borough of Sutton,25/02/2021,1310864,5.99 , SUBWAY68205,SUPPLIES,Peoples Services Directorate,C.C.A Food & Clothing,H213,
http://opendatacommunities.org/id/london-borough-council/sutton,London Borough of Sutton,25/02/2021,1310864,3.65 , TESCO STORES 6664,SUPPLIES,Peoples Services Directorate,C.C.A Food & Clothing,H213,
http://opendatacommunities.org/id/london-borough-council/sutton,London Borough of Sutton,24/02/2021,1310864,22.74 , ASDA STORES,SUPPLIES,Peoples Services Directorate,C.C.A Food & Clothing,H213,
http://opendatacommunities.org/id/london-borough-council/sutton,London Borough of Sutton,24/02/2021,1310864,17.28 , BUDGENS,SUPPLIES,Peoples Services Directorate,C.C.A Food & Clothing,H213,
http://opendatacommunities.org/id/london-borough-council/sutton,London Borough of Sutton,24/02/2021,1310864,11.52 , TESCO STORES 6664,SUPPLIES,Peoples Services Directorate,C.C.A Food & Clothing,H213,
http://opendatacommunities.org/id/london-borough-council/sutton,London Borough of Sutton,22/02/2021,1310864,108.65 , ASDA GROCERIES ONLINE,SUPPLIES,Peoples Services Directorate,C.C.A Food & Clothing,H213,
http://opendatacommunities.org/id/london-borough-council/sutton,London Borough of Sutton,27/01/2021,1310864,11.02 , BIG BOSS HALAL MEAT,FOOD TAKEAWAY FOR CHILDREN AT THORNTON ROAD,Peoples Services Directorate,C.C.A Food & Clothing,H213,
http://opendatacommunities.org/id/london-borough-council/sutton,London Borough of Sutton,27/01/2021,1310864,8.31 , BUDGENS,FOOD ORDER FOR CHILDREN AT THORNTON ROAD,Peoples Services Directorate,C.C.A Food & Clothing,H213,
http://opendatacommunities.org/id/london-borough-council/sutton,London Borough of Sutton,01/02/2021,1310864,20.20 , SP   ISAWITFIRST.COM,CLOTHING ALLOWANCE FOR CHILDREN AT THORNTON ROAD,Peoples Services Directorate,C.C.A Food & Clothing,H213,
http://opendatacommunities.org/id/london-borough-council/sutton,London Borough of Sutton,21/01/2021,1309674,29.37 , SP   ISAWITFIRST.COM,CLOTHING ALLOWANCE FOR CHILDREN AT THORNTON ROAD,Peoples Services Directorate,C.C.A Food & Clothing,H213,
http://opendatacommunities.org/id/london-borough-council/sutton,London Borough of Sutton,16/01/2021,1309674,7.83 , MCDONALDS911,FOOD TAKEAWAY FOR CHILDREN AT THORNTON ROAD,Peoples Services Directorate,C.C.A Food & Clothing,H213,
http://opendatacommunities.org/id/london-borough-council/sutton,London Borough of Sutton,15/01/2021,1309674,1.24 , PPOINT_ SPARKS FOOD &,ITEMS NEEDED FOR CHILDREN AT THORNTON ROAD,Peoples Services Directorate,C.C.A Food & Clothing,H213,
http://opendatacommunities.org/id/london-borough-council/sutton,London Borough of Sutton,12/01/2021,1309674,11.92 , JUST EAT,FOOD TAKEAWAY FOR CHILDREN AT THORNTON ROAD,Peoples Services Directorate,C.C.A Food & Clothing,H213,
http://opendatacommunities.org/id/london-borough-council/sutton,London Borough of Sutton,13/01/2021,1309674,1.42 , RINGGO,CAR PARK NEEDED FOR AN OUTING,Peoples Services Directorate,Client Care/Assistance,H301,
http://opendatacommunities.org/id/london-borough-council/sutton,London Borough of Sutton,11/02/2021,1310864,4.82 , BUDGENS,ITEMS NEEDED FOR THORNTON ROAD,Peoples Services Directorate,Personal Requisites,F106,
http://opendatacommunities.org/id/london-borough-council/sutton,London Borough of Sutton,20/02/2021,1310864,2.29 , BUDGENS,FOOD REQUIRED FOR CARE LEAVERS,Peoples Services Directorate,Personal Requisites,F106,
http://opendatacommunities.org/id/london-borough-council/sutton,London Borough of Sutton,21/12/2020,1309207,125.00 , AMZNMKTPLACE AMAZON.CO,MATTRESS REQUESTED FOR CARE LEAVER (38.58%),Peoples Services Directorate,Personal Requisites,F106,
http://opendatacommunities.org/id/london-borough-council/sutton,London Borough of Sutton,21/12/2020,1309207,199.00 , AMZNMKTPLACE AMAZON.CO,BED REQUESTED FOR CARE LEAVER (61.42%),Peoples Services Directorate,Personal Requisites,F106,
http://opendatacommunities.org/id/london-borough-council/sutton,London Borough of Sutton,24/11/2020,1309204,219.12 , ARGOS LTD,ITEMS REQUESTED BY CLIENT,Peoples Services Directorate,Client Care/Assistance,H301,
http://opendatacommunities.org/id/london-borough-council/sutton,London Borough of Sutton,21/02/2021,1310864,20.00 , OYSTER BUS AUTOLOAD,OYSTER CARD AUTO TOP-UP,Peoples Services Directorate,Travelling and Subsistence Allowances,A530,
http://opendatacommunities.org/id/london-borough-council/sutton,London Borough of Sutton,20/02/2021,1310864,20.00 , OYSTER BUS AUTOLOAD,OYSTER CARD AUTO TOP-UP,Peoples Services Directorate,Travelling and Subsistence Allowances,A530,
http://opendatacommunities.org/id/london-borough-council/sutton,London Borough of Sutton,20/02/2021,1310864,20.00 , OYSTER BUS AUTOLOAD,OYSTER CARD AUTO TOP-UP,Peoples Services Directorate,Travelling and Subsistence Allowances,A530,
http://opendatacommunities.org/id/london-borough-council/sutton,London Borough of Sutton,05/02/2021,1310864,20.00 , OYSTER AUTO TOPUP,OYSTER CARD AUTO TOP-UP,Peoples Services Directorate,Travelling and Subsistence Allowances,A530,
http://opendatacommunities.org/id/london-borough-council/sutton,London Borough of Sutton,20/12/2020,1309207,20.00 , OYSTER BUS AUTOLOAD,OYSTER CARD AUTO TOP-UP,Peoples Services Directorate,Travelling and Subsistence Allowances,A530,
http://opendatacommunities.org/id/london-borough-council/sutton,London Borough of Sutton,17/12/2020,1309207,20.00 , OYSTER BUS AUTOLOAD,OYSTER CARD AUTO TOP-UP,Peoples Services Directorate,Travelling and Subsistence Allowances,A530,
http://opendatacommunities.org/id/london-borough-council/sutton,London Borough of Sutton,13/12/2020,1309207,20.00 , OYSTER AUTO TOPUP,OYSTER CARD AUTO TOP-UP,Peoples Services Directorate,Travelling and Subsistence Allowances,A530,
http://opendatacommunities.org/id/london-borough-council/sutton,London Borough of Sutton,12/12/2020,1309207,20.00 , OYSTER BUS AUTOLOAD,OYSTER CARD AUTO TOP-UP,Peoples Services Directorate,Travelling and Subsistence Allowances,A530,
http://opendatacommunities.org/id/london-borough-council/sutton,London Borough of Sutton,06/12/2020,1309207,20.00 , OYSTER BUS AUTOLOAD,OYSTER CARD AUTO-TOP UP,Peoples Services Directorate,Travelling and Subsistence Allowances,A530,
http://opendatacommunities.org/id/london-borough-council/sutton,London Borough of Sutton,20/11/2020,1309204,16.67 , OYSTER BUS AUTOLOAD,AUTO TOP - UP,Peoples Services Directorate,Travelling and Subsistence Allowances,A530,
http://opendatacommunities.org/id/london-borough-council/sutton,London Borough of Sutton,30/10/2020,1309204,16.67 , OYSTER BUS AUTOLOAD,AUTO TOP - UP,Peoples Services Directorate,Travelling and Subsistence Allowances,A530,
http://opendatacommunities.org/id/london-borough-council/sutton,London Borough of Sutton,14/01/2021,1309674,20.00 , OYSTER AUTO TOPUP,OYSTER CARD AUTO TOP UP,Peoples Services Directorate,Travelling and Subsistence Allowances,A530,
http://opendatacommunities.org/id/london-borough-council/sutton,London Borough of Sutton,13/11/2020,1309204,16.67 , OYSTER AUTO TOPUP,AUTO TOP-UP,Peoples Services Directorate,Travelling and Subsistence Allowances,A530,
http://opendatacommunities.org/id/london-borough-council/sutton,London Borough of Sutton,29/10/2020,1309204,16.67 , OYSTER BUS AUTOLOAD,AUTO TOP-UP,Peoples Services Directorate,Travelling and Subsistence Allowances,A530,
http://opendatacommunities.org/id/london-borough-council/sutton,London Borough of Sutton,19/11/2020,1309204,16.67 , OYSTER BUS AUTOLOAD,AUTO TOP - UP,Peoples Services Directorate,Travelling and Subsistence Allowances,A530,
http://opendatacommunities.org/id/london-borough-council/sutton,London Borough of Sutton,26/01/2021,1310864,235.83 , PREMIER INN,HOTEL REQUIRED FOR CLIENT,Peoples Services Directorate,Accommodation - Bed and Breakfast,H202,
http://opendatacommunities.org/id/london-borough-council/sutton,London Borough of Sutton,03/12/2020,1309207,245.00 , HOTEL ON BOOKING.COM,HOTEL BOOKING FOR A CLIENT,Peoples Services Directorate,Accommodation - Bed and Breakfast,H202,
http://opendatacommunities.org/id/london-borough-council/sutton,London Borough of Sutton,17/02/2021,1310864,169.00 , PREMIER INN,PREMIER INN FOR CLIENT,Peoples Services Directorate,C.C.A Travel & Subsistance,H212,
http://opendatacommunities.org/id/london-borough-council/sutton,London Borough of Sutton,17/02/2021,1310864,420.00 , PREMIER INN,PREMIER INN FOR CLIENT,Peoples Services Directorate,C.C.A Travel & Subsistance,H212,
http://opendatacommunities.org/id/london-borough-council/sutton,London Borough of Sutton,02/02/2021,1310864,130.83 , PREMIER INN,PREMIER INN NEEDED FOR CLIENT,Peoples Services Directorate,C.C.A Travel & Subsistance,H212,
http://opendatacommunities.org/id/london-borough-council/sutton,London Borough of Sutton,02/02/2021,1310864,393.33 , PREMIER INN,PREMIER INN NEEDED FOR CLIENT,Peoples Services Directorate,C.C.A Travel & Subsistance,H212,
http://opendatacommunities.org/id/london-borough-council/sutton,London Borough of Sutton,05/01/2021,1309674,487.08 , PREMIER INN,HOTEL REQUESTED BY SOCIAL WORKER,Peoples Services Directorate,C.C.A Travel & Subsistance,H212,
http://opendatacommunities.org/id/london-borough-council/sutton,London Borough of Sutton,04/12/2020,1309207,9.17 , WALLINGTON CARS AND CO,TRAVEL NEEDED FOR BUSINESS SUPPORT OFFICER,Peoples Services Directorate,Client Care/Assistance,H301,
http://opendatacommunities.org/id/london-borough-council/sutton,London Borough of Sutton,26/11/2020,1309207,214.13 , HOTEL ON BOOKING.COM,214.13 - H301 0310 9999 - EMERGENCY ACCOMMODATION.PDF,Peoples Services Directorate,Client Care/Assistance,H301,
http://opendatacommunities.org/id/london-borough-council/sutton,London Borough of Sutton,05/01/2021,1309674,147.08 , PREMIER INN,CLIENT REQUIRES HOTEL TO STAY IN,Peoples Services Directorate,Set Up Costs - Children Leaving Care,H336,
http://opendatacommunities.org/id/london-borough-council/sutton,London Borough of Sutton,22/01/2021,1309674,10.00 , AMAZON.CO.UK MV66R8GM4,GIFT VOUCHER FOR A CARE LEAVER (6.67%),Peoples Services Directorate,Personal Requisites,F106,
http://opendatacommunities.org/id/london-borough-council/sutton,London Borough of Sutton,15/01/2021,1309674,124.99 , PAYPAL  ORCHIDCELLM,REQUESTED BY SOCIAL WORKER,Peoples Services Directorate,Personal Requisites,F106,
http://opendatacommunities.org/id/london-borough-council/sutton,London Borough of Sutton,21/01/2021,1309674,3.00 , WILKO RETAIL LIMITED,POST ENVELOPES,Peoples Services Directorate,Personal Requisites,F106,
http://opendatacommunities.org/id/london-borough-council/sutton,London Borough of Sutton,15/01/2021,1309674,3.00 , WILKO RETAIL LIMITED,POST ENVELOPES,Peoples Services Directorate,Personal Requisites,F106,
http://opendatacommunities.org/id/london-borough-council/sutton,London Borough of Sutton,18/11/2020,1309204,27.50 , LBS REGISTRARS,BIRTH CERTIFICATE NEEDED FOR LEGAL PROCEEDINGS,Peoples Services Directorate,Personal Requisites,F106,
http://opendatacommunities.org/id/london-borough-council/sutton,London Borough of Sutton,17/11/2020,1309204,9.99 , AMAZON.CO.UK M77EB0934,"SPLIT - THE MOOD CARDS: MAKE SENSE OF YOUR MOODS AND EMOTIONS FOR CLARITY, CONFIDENCE AND WELL-BEING (MOOD SERIES) (83.38%)",Peoples Services Directorate,Personal Requisites,F106,
http://opendatacommunities.org/id/london-borough-council/sutton,London Borough of Sutton,17/11/2020,1309204,2.49 , AMAZON.CO.UK M77EB0934,BALANCING ENTRY AMOUNT (16.62%),Peoples Services Directorate,Personal Requisites,F106,
http://opendatacommunities.org/id/london-borough-council/sutton,London Borough of Sutton,22/01/2021,1309674,10.00 , AMAZON.CO.UK MV66R8GM4,GIFT VOUCHER FOR A CARE LEAVER (6.67%),Peoples Services Directorate,Personal Requisites,F106,
http://opendatacommunities.org/id/london-borough-council/sutton,London Borough of Sutton,22/01/2021,1309674,10.00 , AMAZON.CO.UK MV66R8GM4,GIFT VOUCHER FOR A CARE LEAVER (6.67%),Peoples Services Directorate,Personal Requisites,F106,
http://opendatacommunities.org/id/london-borough-council/sutton,London Borough of Sutton,22/01/2021,1309674,10.00 , AMAZON.CO.UK MV66R8GM4,GIFT VOUCHER FOR A CARE LEAVER (6.67%),Peoples Services Directorate,Personal Requisites,F106,
http://opendatacommunities.org/id/london-borough-council/sutton,London Borough of Sutton,22/01/2021,1309674,10.00 , AMAZON.CO.UK MV66R8GM4,GIFT VOUCHER FOR A CARE LEAVER (6.67%),Peoples Services Directorate,Personal Requisites,F106,
http://opendatacommunities.org/id/london-borough-council/sutton,London Borough of Sutton,22/01/2021,1309674,10.00 , AMAZON.CO.UK MV66R8GM4,GIFT VOUCHER FOR A CARE LEAVER (6.62%),Peoples Services Directorate,Personal Requisites,F106,
http://opendatacommunities.org/id/london-borough-council/sutton,London Borough of Sutton,22/01/2021,1309674,10.00 , AMAZON.CO.UK MV66R8GM4,GIFT VOUCHER FOR A CARE LEAVER (6.67%),Peoples Services Directorate,Personal Requisites,F106,
http://opendatacommunities.org/id/london-borough-council/sutton,London Borough of Sutton,22/01/2021,1309674,10.00 , AMAZON.CO.UK MV66R8GM4,GIFT VOUCHER FOR A CARE LEAVER (6.67%),Peoples Services Directorate,Personal Requisites,F106,
http://opendatacommunities.org/id/london-borough-council/sutton,London Borough of Sutton,22/01/2021,1309674,10.00 , AMAZON.CO.UK MV66R8GM4,GIFT VOUCHER FOR A CARE LEAVER (6.67%),Peoples Services Directorate,Personal Requisites,F106,
http://opendatacommunities.org/id/london-borough-council/sutton,London Borough of Sutton,22/01/2021,1309674,10.00 , AMAZON.CO.UK MV66R8GM4,GIFT VOUCHER FOR A CARE LEAVER (6.67%),Peoples Services Directorate,Personal Requisites,F106,
http://opendatacommunities.org/id/london-borough-council/sutton,London Borough of Sutton,22/01/2021,1309674,10.00 , AMAZON.CO.UK MV66R8GM4,GIFT VOUCHER FOR A CARE LEAVER (6.67%),Peoples Services Directorate,Personal Requisites,F106,
http://opendatacommunities.org/id/london-borough-council/sutton,London Borough of Sutton,22/01/2021,1309674,10.00 , AMAZON.CO.UK MV66R8GM4,GIFT VOUCHER FOR A CARE LEAVER (6.67%),Peoples Services Directorate,Personal Requisites,F106,
http://opendatacommunities.org/id/london-borough-council/sutton,London Borough of Sutton,22/01/2021,1309674,10.00 , AMAZON.CO.UK MV66R8GM4,GIFT VOUCHER FOR A CARE LEAVER (6.67%),Peoples Services Directorate,Personal Requisites,F106,
http://opendatacommunities.org/id/london-borough-council/sutton,London Borough of Sutton,22/01/2021,1309674,10.00 , AMAZON.CO.UK MV66R8GM4,GIFT VOUCHER FOR A CARE LEAVER (6.67%),Peoples Services Directorate,Personal Requisites,F106,
http://opendatacommunities.org/id/london-borough-council/sutton,London Borough of Sutton,22/01/2021,1309674,10.00 , AMAZON.CO.UK MV66R8GM4,GIFT VOUCHER FOR A CARE LEAVER (6.67%),Peoples Services Directorate,Personal Requisites,F106,
http://opendatacommunities.org/id/london-borough-council/sutton,London Borough of Sutton,19/02/2021,1310864,33.00 , LBS REGISTRARS,BIRTH CERT FOR STAFF,Peoples Services Directorate,Personal Requisites,F106,
http://opendatacommunities.org/id/london-borough-council/sutton,London Borough of Sutton,08/02/2021,1310864,27.50 , LBS REGISTRARS,BIRTH CERT FOR SW,Peoples Services Directorate,Personal Requisites,F106,
http://opendatacommunities.org/id/london-borough-council/sutton,London Borough of Sutton,24/02/2021,1310864,4.00 , POUNDLAND LTD 1211,POUNDLAND WRAPPING PAPER,Peoples Services Directorate,Personal Requisites,F106,
http://opendatacommunities.org/id/london-borough-council/sutton,London Borough of Sutton,29/01/2021,1310864,30.00 , GEN REGISTER OFFICE,BIRTH CERTIFICATE NEEDED FOR CLIENT FOR LEGAL REASONS,Peoples Services Directorate,Personal Requisites,F106,
http://opendatacommunities.org/id/london-borough-council/sutton,London Borough of Sutton,17/12/2020,1309207,5.45 , WILKO RETAIL LIMITED,REUSABLE SACKS PURCHASE,Peoples Services Directorate,Personal Requisites,F106,
http://opendatacommunities.org/id/london-borough-council/sutton,London Borough of Sutton,18/12/2020,1309207,2.00 , POUNDLAND LTD 1211,2 X PACK OF PRESENT TAGS,Peoples Services Directorate,Personal Requisites,F106,
http://opendatacommunities.org/id/london-borough-council/sutton,London Borough of Sutton,09/12/2020,1309207,4.20 , THE WORKS,BROWN WRAPPING PAPER,Peoples Services Directorate,Personal Requisites,F106,
http://opendatacommunities.org/id/london-borough-council/sutton,London Borough of Sutton,08/12/2020,1309207,33.00 , SURREY CC CARD PAY,BIRTH CERTIFICATE ORDER,Peoples Services Directorate,Personal Requisites,F106,
http://opendatacommunities.org/id/london-borough-council/sutton,London Borough of Sutton,17/12/2020,1309207,34.30 , POUNDLAND LTD 1211,34.30 - F106 0311 9999 - WRAPPING PAPER FOR LAC PRESENTS.PNG,Peoples Services Directorate,Personal Requisites,F106,
http://opendatacommunities.org/id/london-borough-council/sutton,London Borough of Sutton,22/12/2020,1309207,58.33 , LBS REGISTRARS,BIRTH CERT NEEDED FOR LEGAL PROCEEDINGS,Peoples Services Directorate,Personal Requisites,F106,
http://opendatacommunities.org/id/london-borough-council/sutton,London Borough of Sutton,21/12/2020,1309207,10.00 , AMAZON.CO.UK MS3SA7I44,GIFT CARD AMAZON.CO.UK EGIFT VOUCHER (100%),Peoples Services Directorate,Personal Requisites,F106,
http://opendatacommunities.org/id/london-borough-council/sutton,London Borough of Sutton,25/11/2020,1309204,15.79 , AMAZON.CO.UK MY1287TD4,SPLIT - THE A-Z OF THERAPEUTIC PARENTING: STRATEGIES AND SOLUTIONS (THERAPEUTIC PARENTING BOOKS (84.08%),Peoples Services Directorate,Personal Requisites,F106,
http://opendatacommunities.org/id/london-borough-council/sutton,London Borough of Sutton,25/11/2020,1309204,2.99 , AMAZON.CO.UK MY1287TD4,BALANCING ENTRY AMOUNT (15.92%),Peoples Services Directorate,Personal Requisites,F106,
http://opendatacommunities.org/id/london-borough-council/sutton,London Borough of Sutton,04/12/2020,1309207,23.20 , WILKO RETAIL LIMITED,WILKO GIFTS FRO SALVATION ARMY AND POLICE,Peoples Services Directorate,Refreshments,F155,
http://opendatacommunities.org/id/london-borough-council/sutton,London Borough of Sutton,07/01/2021,1309674,240.00 , DOCUSIGN INC. GBP,SPECIAL GUARDIAN DOCUSIGN,Peoples Services Directorate,Printing - General,F215,
http://opendatacommunities.org/id/london-borough-council/sutton,London Borough of Sutton,24/11/2020,1309204,59.95 , ZOOM.US 888-799-9666,SUBSCRIPTION NEEDED FOR A TEAM,Peoples Services Directorate,Subscriptions - General,F450,
http://opendatacommunities.org/id/london-borough-council/sutton,London Borough of Sutton,24/02/2021,1310864,62.25 , WWW.WIGHTLINK.CO.UK, WRIGHTLINK FOR STAFF TRAVEL,Peoples Services Directorate,Travelling and Subsistence Allowances,A530,
http://opendatacommunities.org/id/london-borough-council/sutton,London Borough of Sutton,27/01/2021,1310864,163.98 , CFS BLUEAIRWEB.COM,FLIGHTS NEEDED FOR CLIENTS TO RETURN BACK TO COUNTRY,Peoples Services Directorate,Travelling and Subsistence Allowances,A530,
http://opendatacommunities.org/id/london-borough-council/sutton,London Borough of Sutton,12/12/2020,1309207,20.00 , OYSTER BUS AUTOLOAD,OYSTER CARD AUTO TOP-UP,Peoples Services Directorate,Travelling and Subsistence Allowances,A530,
http://opendatacommunities.org/id/london-borough-council/sutton,London Borough of Sutton,29/11/2020,1309207,16.67 , OYSTER AUTO TOPUP,AUTO TOP - UP,Peoples Services Directorate,Travelling and Subsistence Allowances,A530,
http://opendatacommunities.org/id/london-borough-council/sutton,London Borough of Sutton,31/10/2020,1309204,16.67 , OYSTER BUS AUTOLOAD,AUTO TOP - UP,Peoples Services Directorate,Travelling and Subsistence Allowances,A530,
http://opendatacommunities.org/id/london-borough-council/sutton,London Borough of Sutton,14/11/2020,1309204,16.67 , OYSTER BUS AUTOLOAD,AUTO TOP-UP,Peoples Services Directorate,Travelling and Subsistence Allowances,A530,
http://opendatacommunities.org/id/london-borough-council/sutton,London Borough of Sutton,17/11/2020,1309204,65.00 , WWW.TAXICODE.COM,ITEMS TO BE MOVED TO A PLACEMENT,Peoples Services Directorate,Hired Peoples Transport (Children),E072,
http://opendatacommunities.org/id/london-borough-council/sutton,London Borough of Sutton,12/01/2021,1309674,2.44 , NETNANNY- 484-856-2789,NET NANNY EXCHANGE FEE,Peoples Services Directorate,Health and Safety Equipment,F005,
http://opendatacommunities.org/id/london-borough-council/sutton,London Borough of Sutton,11/01/2021,1309674,88.66 , NETNANNY- 484-856-2789,NET NANNY FOR LAC LAPTOPS,Peoples Services Directorate,Health and Safety Equipment,F005,
http://opendatacommunities.org/id/london-borough-council/sutton,London Borough of Sutton,11/01/2021,1309674,(89.20), NETNANNY- 484-856-2789,NET NANNY FOR LAC LAPTOPS,Peoples Services Directorate,Health and Safety Equipment,F005,
http://opendatacommunities.org/id/london-borough-council/sutton,London Borough of Sutton,10/02/2021,1310864,22.86 , AMAZON.CO.UK MF3U07P64,"SPLIT - OFFICE ESSENTIALS OFFICE CHAIR FOR HOME NO ARMS, SMALL OFFICE COMPUTER CHAIR, HEIGHT ADJUSTABLE DESK CHAIR, FABRIC, BLACK (100%)",Peoples Services Directorate,Personal Requisites,F106,
http://opendatacommunities.org/id/london-borough-council/sutton,London Borough of Sutton,19/02/2021,1310864,33.00 , LBS REGISTRARS,BIRTH CERT FOR STAFF,Peoples Services Directorate,Personal Requisites,F106,
http://opendatacommunities.org/id/london-borough-council/sutton,London Borough of Sutton,08/02/2021,1310864,27.50 , LBS REGISTRARS,BIRTH CERT FOR SW,Peoples Services Directorate,Personal Requisites,F106,
http://opendatacommunities.org/id/london-borough-council/sutton,London Borough of Sutton,29/01/2021,1310864,20.83 , GEN REGISTER OFFICE,BIRTH CERTIFICATE NEEDED FOR CLIENT FOR LEGAL REASONS,Peoples Services Directorate,Personal Requisites,F106,
http://opendatacommunities.org/id/london-borough-council/sutton,London Borough of Sutton,04/12/2020,1309207,30.00 , GEN REGISTER OFFICE,BIRTH CERT REQUIRED FOR LEGAL PROCEEDINGS,Peoples Services Directorate,Personal Requisites,F106,
http://opendatacommunities.org/id/london-borough-council/sutton,London Borough of Sutton,03/12/2020,1309207,(22.92), ESSEX CC CARD PAYMENT,REFUND FOR BIRTH CERT,Peoples Services Directorate,Personal Requisites,F106,
http://opendatacommunities.org/id/london-borough-council/sutton,London Borough of Sutton,26/11/2020,1309207,27.50 , LBS REGISTRARS,BIRTH CERTIFICATE PURCHASE,Peoples Services Directorate,Personal Requisites,F106,
http://opendatacommunities.org/id/london-borough-council/sutton,London Borough of Sutton,26/11/2020,1309207,27.50 , LBS REGISTRARS,BIRTH CERTIFICATE PURCHASE,Peoples Services Directorate,Personal Requisites,F106,
http://opendatacommunities.org/id/london-borough-council/sutton,London Borough of Sutton,26/11/2020,1309207,27.50 , LBS REGISTRARS,BIRTH CERTIFICATE PURCHASE,Peoples Services Directorate,Personal Requisites,F106,
http://opendatacommunities.org/id/london-borough-council/sutton,London Borough of Sutton,27/10/2020,1309204,33.00 , LBSUTTON,SOCIAL WORKER REQUEST FOR BIRTH CERTIFICATE,Peoples Services Directorate,Personal Requisites,F106,
http://opendatacommunities.org/id/london-borough-council/sutton,London Borough of Sutton,23/12/2020,1309207,20.83 , GEN REGISTER OFFICE,BIRTH CERT NEEDED FOR LEGAL PROCEEDINGS,Peoples Services Directorate,Personal Requisites,F106,
http://opendatacommunities.org/id/london-borough-council/sutton,London Borough of Sutton,16/12/2020,1309207,90.00 , GEN REGISTER OFFICE,BIRTH CERT NEEDED FOR LEGAL PROCEEDINGS,Peoples Services Directorate,Personal Requisites,F106,
http://opendatacommunities.org/id/london-borough-council/sutton,London Borough of Sutton,25/11/2020,1309204,27.50 , LBS REGISTRARS,BIRTH CERTIFICATE PURCHASE,Peoples Services Directorate,Personal Requisites,F106,
http://opendatacommunities.org/id/london-borough-council/sutton,London Borough of Sutton,22/01/2021,1309674,30.00 , GEN REGISTER OFFICE,BIRTH CERT REQUIRED FOR LEGAL PROCEEDINGS,Peoples Services Directorate,Personal Requisites,F106,
http://opendatacommunities.org/id/london-borough-council/sutton,London Borough of Sutton,08/01/2021,1309674,33.00 , LBSUTTON,BIRTH CERTIFICATES,Peoples Services Directorate,Personal Requisites,F106,
http://opendatacommunities.org/id/london-borough-council/sutton,London Borough of Sutton,30/12/2020,1309674,30.00 , GEN REGISTER OFFICE,BIRTH CERT REQUIRED FOR LEGAL PROCEEDINGS,Peoples Services Directorate,Personal Requisites,F106,
http://opendatacommunities.org/id/london-borough-council/sutton,London Borough of Sutton,30/12/2020,1309674,27.50 , KENT COUNTY COUNCIL,BIRTH CERT REQUIRED FOR LEGAL PROCEEDINGS,Peoples Services Directorate,Personal Requisites,F106,
http://opendatacommunities.org/id/london-borough-council/sutton,London Borough of Sutton,09/10/2020,1309204,(15.42), GEN REGISTER OFFICE,BIRTH CERTIFICATE REQUESTED BY SOCIAL WORKER FOR LEGAL PROCEEDINGS,Peoples Services Directorate,Personal Requisites,F106,
http://opendatacommunities.org/id/london-borough-council/sutton,London Borough of Sutton,18/11/2020,1309204,30.00 , LAMBETH INTERNET PAYM,BIRTH CERTIFICATE NEEDED FOR LEGAL PROCEEDINGS,Peoples Services Directorate,Personal Requisites,F106,
http://opendatacommunities.org/id/london-borough-council/sutton,London Borough of Sutton,23/11/2020,1309204,27.50 , LBS REGISTRARS,BIRTH CERTIFICATE FOR LEGAL PROCEEDINGS,Peoples Services Directorate,Personal Requisites,F106,
http://opendatacommunities.org/id/london-borough-council/sutton,London Borough of Sutton,23/11/2020,1309204,27.50 , ESSEX COUNTY COUNCI EC,BIRTH CERTIFICATE FOR LEGAL PROCEEDINGS,Peoples Services Directorate,Personal Requisites,F106,
http://opendatacommunities.org/id/london-borough-council/sutton,London Borough of Sutton,13/11/2020,1309204,33.33 , LAMBETH INTERNET PAYM,BIRTH CERTIFICATE NEEDED FOR LEGAL PROCEEDINGS,Peoples Services Directorate,Personal Requisites,F106,
http://opendatacommunities.org/id/london-borough-council/sutton,London Borough of Sutton,02/02/2021,1310864,(174.17), PRIVATE CORONA VIRUS T,PRIVATE COVID TEST REFUND,Peoples Services Directorate,Fees - Other,F299,
http://opendatacommunities.org/id/london-borough-council/sutton,London Borough of Sutton,26/01/2021,1310864,130.83 , DOCTORCALL LTD,PRIVATE COVID TEST FOR CLIENT TO FLY OUT,Peoples Services Directorate,Fees - Other,F299,
http://opendatacommunities.org/id/london-borough-council/sutton,London Borough of Sutton,26/01/2021,1310864,137.50 , DOCTORCALL LTD,PRIVATE COVID TEST FOR CLIENT TO FLY OUT,Peoples Services Directorate,Fees - Other,F299,
http://opendatacommunities.org/id/london-borough-council/sutton,London Borough of Sutton,25/01/2021,1309674,174.17 , PRIVATE CORONA VIRUS T,PRIVATE COVID TEST FOR CLIENT TO FLY OUT,Peoples Services Directorate,Fees - Other,F299,
http://opendatacommunities.org/id/london-borough-council/sutton,London Borough of Sutton,09/12/2020,1309207,65.79 , WWW.PEELHOTELS.CO.UK,HOTEL NEEDED FOR CLIENT,Peoples Services Directorate,C.C.A Travel & Subsistance,H212,
http://opendatacommunities.org/id/london-borough-council/sutton,London Borough of Sutton,01/12/2020,1309207,10.00 , WALLINGTON CARS AND CO,REQUEST FOR A TAXI/CAB,Peoples Services Directorate,C.C.A Travel & Subsistance,H212,
http://opendatacommunities.org/id/london-borough-council/sutton,London Borough of Sutton,01/12/2020,1309207,100.00 , WALLINGTON CARS AND CO,CAB REQUIRED FOR CLIENT,Peoples Services Directorate,C.C.A Travel & Subsistance,H212,
http://opendatacommunities.org/id/london-borough-council/sutton,London Borough of Sutton,19/11/2020,1309204,96.67 , OTH MINI CABS,TAXI NEEDED TO ATTEND CONTACT,Peoples Services Directorate,C.C.A Travel & Subsistance,H212,
http://opendatacommunities.org/id/london-borough-council/sutton,London Borough of Sutton,18/11/2020,1309204,41.67 , PAYPAL  LONDONTRANS,TAXI EXTRA PAYMENT FOR A LARGER VEHICLE / WAITING TIME,Peoples Services Directorate,C.C.A Travel & Subsistance,H212,
http://opendatacommunities.org/id/london-borough-council/sutton,London Borough of Sutton,18/11/2020,1309204,774.00 , ALPHA TAXIS,TAXI NEEDED TO ATTEND CONTACT,Peoples Services Directorate,C.C.A Travel & Subsistance,H212,
http://opendatacommunities.org/id/london-borough-council/sutton,London Borough of Sutton,12/11/2020,1309204,54.17 , THE CROWN MITRE HOTEL,HOTEL NEEDED FOR SOCIAL WORKER ATTENDING CONTACT,Peoples Services Directorate,Client Care/Assistance,H301,
http://opendatacommunities.org/id/london-borough-council/sutton,London Borough of Sutton,12/01/2021,1309674,(2.45), NETNANNY- 484-856-2789,NET NANNY EXCHANGE FEE,Peoples Services Directorate,Health and Safety Equipment,F005,
http://opendatacommunities.org/id/london-borough-council/sutton,London Borough of Sutton,19/01/2021,1309674,238.75 , PREMIER INN,HOTEL REQUESTED BY SOCIAL WORKER,Peoples Services Directorate,C.C.A Travel & Subsistance,H212,
http://opendatacommunities.org/id/london-borough-council/sutton,London Borough of Sutton,11/11/2020,1309204,16.40 , MINICABIT,TRAVEL TO CONTACT,Peoples Services Directorate,C.C.A Travel & Subsistance,H212,
http://opendatacommunities.org/id/london-borough-council/sutton,London Borough of Sutton,18/12/2020,1309207,76.67 , PARTRIDGE & PRINT,BOOKS NEEDED FOR SOCIAL WORKER,Peoples Services Directorate,Personal Requisites,F106,
http://opendatacommunities.org/id/london-borough-council/sutton,London Borough of Sutton,21/02/2021,1310864,25.00 , FACEBK  J6BB4ZJH32,FACEBOOK ADVERTISING,Peoples Services Directorate,Advertising/Publicity (non Staff),F240,
http://opendatacommunities.org/id/london-borough-council/sutton,London Borough of Sutton,12/02/2021,1310864,25.00 , FACEBK  8CU6KYWG32,FACEBOOK ADVERTISING,Peoples Services Directorate,Advertising/Publicity (non Staff),F240,
http://opendatacommunities.org/id/london-borough-council/sutton,London Borough of Sutton,03/02/2021,1310864,17.00 , FACEBK  WGJN5YSG32,FACEBOOK ADVERTISING,Peoples Services Directorate,Advertising/Publicity (non Staff),F240,
http://opendatacommunities.org/id/london-borough-council/sutton,London Borough of Sutton,01/02/2021,1310864,17.00 , FACEBK  PSVNMYJH32,FACEBOOK ADVERTISING,Peoples Services Directorate,Advertising/Publicity (non Staff),F240,
http://opendatacommunities.org/id/london-borough-council/sutton,London Borough of Sutton,30/01/2021,1310864,17.00 , FACEBK  SQFKXYEG32,FACEBOOK ADVERTISEMENT,Peoples Services Directorate,Advertising/Publicity (non Staff),F240,
http://opendatacommunities.org/id/london-borough-council/sutton,London Borough of Sutton,26/11/2020,1309204,71.14 , GOOGLE  ADS5058737870,FOSTERING SONS AND DAUGHTERS CAMPAIGN,Peoples Services Directorate,Fees - Other,F299,
http://opendatacommunities.org/id/london-borough-council/sutton,London Borough of Sutton,31/12/2020,1309674,0.31 , BUFFER PUBLISH PRO YR,SPLIT - PRO8 V1 - MONTHLY,Peoples Services Directorate,Fees - Other,F299,
http://opendatacommunities.org/id/london-borough-council/sutton,London Borough of Sutton,31/12/2020,1309674,2.64 , BUFFER PUBLISH PRO YR,SPLIT - PRO8 V1 - MONTHLY,Peoples Services Directorate,Fees - Other,F299,
http://opendatacommunities.org/id/london-borough-council/sutton,London Borough of Sutton,30/12/2020,1309674,15.00 , BUFFER PUBLISH PRO YR,SPLIT - PRO8 V1 - MONTHLY (134.29%),Peoples Services Directorate,Fees - Other,F299,
http://opendatacommunities.org/id/london-borough-council/sutton,London Borough of Sutton,30/12/2020,1309674,(3.83), BUFFER PUBLISH PRO YR,BALANCING ENTRY AMOUNT (-102.87%),Peoples Services Directorate,Fees - Other,F299,
http://opendatacommunities.org/id/london-borough-council/sutton,London Borough of Sutton,30/12/2020,1309674,144.00 , BUFFER PUBLISH PRO YR,SPLIT - PRO8 V1 - YEARLY (149.94%),Peoples Services Directorate,Fees - Other,F299,
http://opendatacommunities.org/id/london-borough-council/sutton,London Borough of Sutton,30/12/2020,1309674,(47.96), BUFFER PUBLISH PRO YR,BALANCING ENTRY AMOUNT (-149.82%),Peoples Services Directorate,Fees - Other,F299,
http://opendatacommunities.org/id/london-borough-council/sutton,London Borough of Sutton,10/11/2020,1309204,1.27 , FACEBK 73MDQXEAL2,SPLIT - FOSTERING CAMPAIGN AD (0.64%),Peoples Services Directorate,Fees - Other,F299,
http://opendatacommunities.org/id/london-borough-council/sutton,London Borough of Sutton,30/01/2021,1310864,159.90 , ZOOM.US 888-799-9666,SUBSCRIPTION NEEDED FOR TEAM,Peoples Services Directorate,Subscriptions - General,F450,
http://opendatacommunities.org/id/london-borough-council/sutton,London Borough of Sutton,24/12/2020,1309207,59.95 , ZOOM.US 888-799-9666,ZOOM LICENSE NEEDED FOR MEETINGS,Peoples Services Directorate,Subscriptions - General,F450,
http://opendatacommunities.org/id/london-borough-council/sutton,London Borough of Sutton,30/11/2020,1309207,159.90 , ZOOM.US 888-799-9666,ZOOM SUBSCRIPTION NEEDED FOR TEAM,Peoples Services Directorate,Subscriptions - General,F450,
http://opendatacommunities.org/id/london-borough-council/sutton,London Borough of Sutton,24/01/2021,1309674,59.95 , ZOOM.US 888-799-9666,SUBSCRIPTION REQUIRED FOR SOCIAL WORKER,Peoples Services Directorate,Subscriptions - General,F450,
http://opendatacommunities.org/id/london-borough-council/sutton,London Borough of Sutton,30/12/2020,1309674,159.90 , ZOOM.US 888-799-9666,SUBSCRIPTION NEEDED FOR STAFF MEMBER,Peoples Services Directorate,Subscriptions - General,F450,
http://opendatacommunities.org/id/london-borough-council/sutton,London Borough of Sutton,30/10/2020,1309204,159.90 , ZOOM.US 888-799-9666,SUBSCRIPTION FOR A TEAM,Peoples Services Directorate,Subscriptions - General,F450,
http://opendatacommunities.org/id/london-borough-council/sutton,London Borough of Sutton,28/01/2021,1310864,27.48 , SERENATAFLOWERS,REQUESTED BY SOCIAL WORKER,Peoples Services Directorate,Personal Requisites,F106,
http://opendatacommunities.org/id/london-borough-council/sutton,London Borough of Sutton,05/11/2020,1309204,20.83 , OYSTER ONLINE,NEW OYSTER PURCHASE,Peoples Services Directorate,Travelling and Subsistence Allowances,A530,
http://opendatacommunities.org/id/london-borough-council/sutton,London Borough of Sutton,05/11/2020,1309204,20.83 , OYSTER ONLINE,NEW OYSTER PURCHASE,Peoples Services Directorate,Travelling and Subsistence Allowances,A530,
http://opendatacommunities.org/id/london-borough-council/sutton,London Borough of Sutton,05/11/2020,1309204,20.83 , OYSTER ONLINE,NEW OYSTER PURCHASE,Peoples Services Directorate,Travelling and Subsistence Allowances,A530,
http://opendatacommunities.org/id/london-borough-council/sutton,London Borough of Sutton,12/01/2021,1309674,4.63 , INFOGRAM.COM,THIS IS FOR INFOGRAM.COM 273.60 USD REQUEST,Peoples Services Directorate,Personal Requisites,F106,
http://opendatacommunities.org/id/london-borough-council/sutton,London Borough of Sutton,11/01/2021,1309674,168.47 , INFOGRAM.COM,REQUESTED BY SOCIAL WORKER,Peoples Services Directorate,Personal Requisites,F106,
http://opendatacommunities.org/id/london-borough-council/sutton,London Borough of Sutton,23/02/2021,1310864,193.73 , FACEBK 4SW6Q3PAL2,SPLIT - DOMESTIC ABUSE VALENTINES SOCIAL MEDIA (53.95%),Peoples Services Directorate,Advertising/Publicity (non Staff),F240,
http://opendatacommunities.org/id/london-borough-council/sutton,London Borough of Sutton,02/02/2021,1310864,6.27 , FACEBK TTJU92BAL2,SPLIT - DA CAMPAIGN (2.09%),Peoples Services Directorate,Advertising/Publicity (non Staff),F240,
http://opendatacommunities.org/id/london-borough-council/sutton,London Borough of Sutton,01/02/2021,1310864,2.11 , GOOGLE  ADS8517410550,DOMESTIC ABUSE AD,Peoples Services Directorate,Advertising/Publicity (non Staff),F240,
http://opendatacommunities.org/id/london-borough-council/sutton,London Borough of Sutton,23/12/2020,1309207,156.02 , FACEBK 73X7MYWAL2,CHRISTMAS DOMESTIC ABUSE CAMPAIGN,Peoples Services Directorate,Advertising/Publicity (non Staff),F240,
http://opendatacommunities.org/id/london-borough-council/sutton,London Borough of Sutton,19/12/2020,1309207,200.00 , FACEBK 9EPGJYWAL2,XMAS DOMESTIC ABUSE CAMPAIGN,Peoples Services Directorate,Advertising/Publicity (non Staff),F240,
http://opendatacommunities.org/id/london-borough-council/sutton,London Borough of Sutton,20/01/2021,1309674,6.27 , FACEBK XDBGT23BL2,SPLIT - DA CAMPAIGN (2.09%),Peoples Services Directorate,Advertising/Publicity (non Staff),F240,
http://opendatacommunities.org/id/london-borough-council/sutton,London Borough of Sutton,01/01/2021,1309674,108.24 , GOOGLE  ADS8517410550,DECEMBER DA CAMPAIGN,Peoples Services Directorate,Advertising/Publicity (non Staff),F240,
http://opendatacommunities.org/id/london-borough-council/sutton,London Borough of Sutton,24/02/2021,1310864,59.95 , ZOOM.US 888-799-9666,ZOOM NEEDED TO COMPLETE MEETINGS,Peoples Services Directorate,Personal Requisites,F106,
http://opendatacommunities.org/id/london-borough-council/sutton,London Borough of Sutton,14/12/2020,1309207,35.00 , MARKS&SPENCER PLC,REQUESTED BY SOCIAL WORKER,Peoples Services Directorate,Personal Requisites,F106,
http://opendatacommunities.org/id/london-borough-council/sutton,London Borough of Sutton,26/10/2020,1309204,92.75 , WWW.RAJAPACK.CO.UK,STATIONERY ENVELOPES FOR SAFEGUARDING LETTERS,Peoples Services Directorate,Stationery,F220,
http://opendatacommunities.org/id/london-borough-council/sutton,London Borough of Sutton,12/01/2021,1309674,28.98 , EFLORIST,FLOWERS,Peoples Services Directorate,Client Care/Assistance,H301,
http://opendatacommunities.org/id/london-borough-council/sutton,London Borough of Sutton,07/02/2021,1310864,36.99 , AMZNMKTPLACE,"SPLIT - 2021 NEW LCD SMART CLOTHES STEAMER, 2000W POWERFUL GARMENT STEAMER FOR CLOTHES WITH 2 STEAM MODE, 350ML LARGE WATER TANK PORTABLE HANDHELD FABRIC STEAMER FOR TRAVEL, HOME AND OFFICE, 20S FAST HEAT (76.66%)",Peoples Services Directorate,Personal Requisites,F106,
http://opendatacommunities.org/id/london-borough-council/sutton,London Borough of Sutton,07/02/2021,1310864,11.26 , AMZNMKTPLACE,SPLIT - 3 X 28 TABLETS MILTON STERILISING BABY BOTTLES TEATS SPOONS SOOTHERS PACIFIER (23.34%),Peoples Services Directorate,Personal Requisites,F106,
http://opendatacommunities.org/id/london-borough-council/sutton,London Borough of Sutton,07/02/2021,1310864,23.99 , AMZNMKTPLACE,SPLIT - FOAM CAR ROAD PLAY MAT WIPE CLEAN EVA MATERIAL - GIANT SIZE KIDS CITY DESIGN FOR INDOOR OR OUTDOOR - 172CM X 120CM (100%),Peoples Services Directorate,Personal Requisites,F106,
http://opendatacommunities.org/id/london-borough-council/sutton,London Borough of Sutton,07/02/2021,1310864,23.99 , AMZNMKTPLACE,SPLIT - FOAM CAR ROAD PLAY MAT WIPE CLEAN EVA MATERIAL - GIANT SIZE KIDS CITY DESIGN FOR INDOOR OR OUTDOOR - 172CM X 120CM (100%),Peoples Services Directorate,Personal Requisites,F106,
http://opendatacommunities.org/id/london-borough-council/sutton,London Borough of Sutton,07/02/2021,1310864,23.99 , AMZNMKTPLACE,SPLIT - FOAM CAR ROAD PLAY MAT WIPE CLEAN EVA MATERIAL - GIANT SIZE KIDS CITY DESIGN FOR INDOOR OR OUTDOOR - 172CM X 120CM (100%),Peoples Services Directorate,Personal Requisites,F106,
http://opendatacommunities.org/id/london-borough-council/sutton,London Borough of Sutton,03/02/2021,1310864,20.80 , AMZNMKTPLACE,"SPLIT - FAIRY ANTI-BACTERIAL EUCALYPTUS WASHING UP LIQUID 383ML, 4 PACK (100%)",Peoples Services Directorate,Personal Requisites,F106,
http://opendatacommunities.org/id/london-borough-council/sutton,London Borough of Sutton,03/02/2021,1310864,29.90 , AMZNMKTPLACE,SPLIT - 6 X 480ML HAND SANITISER GEL BY PEPPYPURE - MADE WITH 75% PLANT-BASED ALCOHOL - KILLS 99.9% OF BACTERIA - EU COMPLIANT (100%),Peoples Services Directorate,Personal Requisites,F106,
http://opendatacommunities.org/id/london-borough-council/sutton,London Borough of Sutton,27/01/2021,1310864,65.68 , TESCO STORES 5999,TESCO ORDER REQUIRED FOR CENTRE,Peoples Services Directorate,Personal Requisites,F106,
http://opendatacommunities.org/id/london-borough-council/sutton,London Borough of Sutton,26/01/2021,1310864,84.99 , AMZNMKTPLACE,SPLIT - MATTRESS-HAVEN COMFY MEMORY FOAM BONNELL 10 MATTRESS 4FT6 DOUBLE MATTRESS (100%),Peoples Services Directorate,Personal Requisites,F106,
http://opendatacommunities.org/id/london-borough-council/sutton,London Borough of Sutton,10/01/2021,1309674,21.90 , AMZNMKTPLACE,CLOCK REQUIRED FOR SUTTON FAMILY CENTRE (100%),Peoples Services Directorate,Personal Requisites,F106,
http://opendatacommunities.org/id/london-borough-council/sutton,London Borough of Sutton,20/02/2021,1310864,20.00 , OYSTER AUTO TOPUP,OYSTER CARD AUTO TOP-UP,Peoples Services Directorate,Travelling and Subsistence Allowances,A530,
http://opendatacommunities.org/id/london-borough-council/sutton,London Borough of Sutton,05/02/2021,1310864,20.00 , OYSTER BUS AUTOLOAD,OYSTER CARD AUTO TOP-UP,Peoples Services Directorate,Travelling and Subsistence Allowances,A530,
http://opendatacommunities.org/id/london-borough-council/sutton,London Borough of Sutton,29/11/2020,1309207,16.67 , OYSTER BUS AUTOLOAD,AUTO TOP - UP,Peoples Services Directorate,Travelling and Subsistence Allowances,A530,
http://opendatacommunities.org/id/london-borough-council/sutton,London Borough of Sutton,01/11/2020,1309204,16.67 , OYSTER AUTO TOPUP,AUTO TOP-UP,Peoples Services Directorate,Travelling and Subsistence Allowances,A530,
http://opendatacommunities.org/id/london-borough-council/sutton,London Borough of Sutton,15/11/2020,1309204,16.67 , OYSTER BUS AUTOLOAD,AUTO TOP - UP,Peoples Services Directorate,Travelling and Subsistence Allowances,A530,
http://opendatacommunities.org/id/london-borough-council/sutton,London Borough of Sutton,12/11/2020,1309204,16.67 , OYSTER BUS AUTOLOAD,AUTO TOP-UP,Peoples Services Directorate,Travelling and Subsistence Allowances,A530,
http://opendatacommunities.org/id/london-borough-council/sutton,London Borough of Sutton,28/10/2020,1309204,16.67 , OYSTER AUTO TOPUP,AUTO TOP UP,Peoples Services Directorate,Travelling and Subsistence Allowances,A530,
http://opendatacommunities.org/id/london-borough-council/sutton,London Borough of Sutton,11/12/2020,1309207,15.99 , ONE4ALL,THANK YOU ONE4ALL GIFT CARD,Peoples Services Directorate,Personal Requisites,F106,
http://opendatacommunities.org/id/london-borough-council/sutton,London Borough of Sutton,24/11/2020,1309204,16.64 , WATERSTONES,BOOK PRESENT FOR A CARE LEAVER,Peoples Services Directorate,Personal Requisites,F106,
http://opendatacommunities.org/id/london-borough-council/sutton,London Borough of Sutton,24/11/2020,1309204,102.84 , FINDEL EDUCATION,REQUESTED BY SOCIAL WORKER,Peoples Services Directorate,Personal Requisites,F106,
http://opendatacommunities.org/id/london-borough-council/sutton,London Borough of Sutton,13/02/2021,1310864,11.99 , ZOOM.US 888-799-9666,ZOOM ACCOUNT FOR CHILDREN IN CARE COUNCIL,Peoples Services Directorate,LAC - Education,F269,
http://opendatacommunities.org/id/london-borough-council/sutton,London Borough of Sutton,13/12/2020,1309207,11.99 , ZOOM.US 888-799-9666,ZOOM SUBSCRIPTION FOR CARE LEAVERS,Peoples Services Directorate,LAC - Education,F269,
http://opendatacommunities.org/id/london-borough-council/sutton,London Borough of Sutton,13/01/2021,1309674,11.99 , ZOOM.US 888-799-9666,ZOOM SUBSCRIPTION FOR CHILDREN IN CARE COUNCIL,Peoples Services Directorate,LAC - Education,F269,
http://opendatacommunities.org/id/london-borough-council/sutton,London Borough of Sutton,14/11/2020,1309204,11.99 , ZOOM.GBP,ZOOM SUBSCRIPTION FOR CHILDREN IN CARE COUNCIL,Peoples Services Directorate,LAC - Education,F269,
http://opendatacommunities.org/id/london-borough-council/sutton,London Borough of Sutton,03/12/2020,1309207,10.00 , AMAZON.CO.UK MY57H3S14,SPLIT - AMAZON.CO.UK GIFT CARD IN A GREETING CARD (CONGRATS CIRCLES) (100%),Peoples Services Directorate,Client Care/Assistance,H301,
http://opendatacommunities.org/id/london-borough-council/sutton,London Borough of Sutton,03/12/2020,1309207,180.00 , AMAZON.CO.UK MY5CK0SV4,SPLIT - AMAZON.CO.UK GIFT CARD IN A GREETING CARD (CONGRATS CIRCLES) (100%),Peoples Services Directorate,Client Care/Assistance,H301,
http://opendatacommunities.org/id/london-borough-council/sutton,London Borough of Sutton,03/12/2020,1309207,500.00 , AMAZON.CO.UK MY3N44SK4,SPLIT - AMAZON.CO.UK GIFT CARD IN A GREETING CARD (CONGRATS CIRCLES) (100%),Peoples Services Directorate,Client Care/Assistance,H301,
http://opendatacommunities.org/id/london-borough-council/sutton,London Borough of Sutton,03/12/2020,1309207,500.00 , AMAZON.CO.UK MY6NY0SC4,SPLIT - AMAZON.CO.UK GIFT CARD IN A GREETING CARD (CONGRATS CIRCLES) (100%),Peoples Services Directorate,Client Care/Assistance,H301,
http://opendatacommunities.org/id/london-borough-council/sutton,London Borough of Sutton,03/12/2020,1309207,500.00 , AMAZON.CO.UK MY4NO9S04,SPLIT - AMAZON.CO.UK GIFT CARD IN A GREETING CARD (CONGRATS CIRCLES) (100%),Peoples Services Directorate,Client Care/Assistance,H301,
http://opendatacommunities.org/id/london-borough-council/sutton,London Borough of Sutton,03/12/2020,1309207,500.00 , AMAZON.CO.UK MY4PD9S24,SPLIT - AMAZON.CO.UK GIFT CARD IN A GREETING CARD (CONGRATS CIRCLES) (100%),Peoples Services Directorate,Client Care/Assistance,H301,
http://opendatacommunities.org/id/london-borough-council/sutton,London Borough of Sutton,03/12/2020,1309207,500.00 , AMAZON.CO.UK MY8ZH92B4,SPLIT - AMAZON.CO.UK GIFT CARD - IN A GREETING CARD - £10 (CONGRATS CIRCLES) (100%),Peoples Services Directorate,Client Care/Assistance,H301,
http://opendatacommunities.org/id/london-borough-council/sutton,London Borough of Sutton,11/11/2020,1309204,(50.00), EB  HOW SAFE 2020,REFUND,Peoples Services Directorate,Training - Course Fees,A520,
http://opendatacommunities.org/id/london-borough-council/sutton,London Borough of Sutton,12/11/2020,1309204,20.83 , OYSTER ONLINE,NEW OYSTER CARD PURCHASE,Peoples Services Directorate,Travelling and Subsistence Allowances,A530,
http://opendatacommunities.org/id/london-borough-council/sutton,London Borough of Sutton,15/12/2020,1309207,270.82 , ARGOS LTD,ITEMS NEEDED FOR CARE LEAVER,Peoples Services Directorate,Personal Requisites,F106,
http://opendatacommunities.org/id/london-borough-council/sutton,London Borough of Sutton,02/12/2020,1309207,46.62 , ISHOP,NAPPIES REQUIRED FOR A CARE LEAVER,Peoples Services Directorate,Personal Requisites,F106,
http://opendatacommunities.org/id/london-borough-council/sutton,London Borough of Sutton,17/12/2020,1309207,29.17 , PREMIER INN,HOTEL REQUESTED FOR CLIENT,Peoples Services Directorate,Accommodation - Bed and Breakfast,H202,
http://opendatacommunities.org/id/london-borough-council/sutton,London Borough of Sutton,30/11/2020,1309207,408.33 , PREMIER INN,HOTEL NEEDED FOR CLIENT,Peoples Services Directorate,Accommodation - Bed and Breakfast,H202,
http://opendatacommunities.org/id/london-borough-council/sutton,London Borough of Sutton,07/12/2020,1309207,466.67 , PREMIER INN,HOTEL NEEDED FOR CLIENT,Peoples Services Directorate,C.C.A Travel & Subsistance,H212,
http://opendatacommunities.org/id/london-borough-council/sutton,London Borough of Sutton,15/12/2020,1309207,525.00 , PREMIER INN,HOTEL EXTENSION NEEDED FOR CLIENT,Peoples Services Directorate,C.C.A Travel & Subsistance,H212,
http://opendatacommunities.org/id/london-borough-council/sutton,London Borough of Sutton,24/12/2020,1309207,63.33 , PREMIER INN,HOTEL NEEDED FOR CLIENT,Peoples Services Directorate,C.C.A Travel & Subsistance,H212,
http://opendatacommunities.org/id/london-borough-council/sutton,London Borough of Sutton,18/12/2020,1309207,96.67 , PREMIER INN,HOTEL REQUESTED FOR CLIENT,Peoples Services Directorate,C.C.A Travel & Subsistance,H212,
http://opendatacommunities.org/id/london-borough-council/sutton,London Borough of Sutton,18/12/2020,1309207,478.33 , PREMIER INN,HOTEL REQUESTED FOR CLIENT,Peoples Services Directorate,C.C.A Travel & Subsistance,H212,
http://opendatacommunities.org/id/london-borough-council/sutton,London Borough of Sutton,02/12/2020,1309207,57.45 , ARGOS LTD,ITEMS NEEDED FOR A CARE LEAVER,Peoples Services Directorate,Client Care/Assistance,H301,
http://opendatacommunities.org/id/london-borough-council/sutton,London Borough of Sutton,14/12/2020,1309207,87.50 , PREMIER INN,HOTEL EXTENSION NEEDED FOR CLIENT,Peoples Services Directorate,Client Care/Assistance,H301,
http://opendatacommunities.org/id/london-borough-council/sutton,London Borough of Sutton,08/12/2020,1309207,221.50 , PREMIER INN,221.50 H 3010371 9999 PREMIRE INN.PDF,Peoples Services Directorate,Client Care/Assistance,H301,
http://opendatacommunities.org/id/london-borough-council/sutton,London Borough of Sutton,22/12/2020,1309207,160.00 , EQUALS.ACCAGLOBAL.,COURSE NEEDED FOR SOCIAL WORKER,Peoples Services Directorate,Training - Course Fees,A520,
http://opendatacommunities.org/id/london-borough-council/sutton,London Borough of Sutton,10/11/2020,1309204,50.00 , AMAZON.CO.UK M727T7P34,SPLIT - THANK YOU (WHIMSICAL) - AMAZON.CO.UK EGIFT VOUCHER (100%),Peoples Services Directorate,Personal Requisites,F106,
http://opendatacommunities.org/id/london-borough-council/sutton,London Borough of Sutton,31/01/2021,1310864,799.90 , LINKEDIN 6077530583,RECRUITER LITE (ANNUAL) RENEWAL 31/01/2021 - 31/01/2022,Peoples Services Directorate,Subscriptions - General,F450,
http://opendatacommunities.org/id/london-borough-council/sutton,London Borough of Sutton,19/02/2021,1310864,79.75 , WWW.WIGHTLINK.CO.UK,WHITELINK FERRIES FOR STAFF TRAVEL,Peoples Services Directorate,Travelling and Subsistence Allowances,A530,
http://opendatacommunities.org/id/london-borough-council/sutton,London Borough of Sutton,31/01/2021,1310864,20.00 , OYSTER BUS AUTOLOAD,OYSTER CARD AUTO TOP UP,Peoples Services Directorate,Travelling and Subsistence Allowances,A530,
http://opendatacommunities.org/id/london-borough-council/sutton,London Borough of Sutton,29/01/2021,1310864,20.00 , OYSTER BUS AUTOLOAD,OYSTER CARD AUTO TOP UP,Peoples Services Directorate,Travelling and Subsistence Allowances,A530,
http://opendatacommunities.org/id/london-borough-council/sutton,London Borough of Sutton,16/12/2020,1309207,20.00 , OYSTER BUS AUTOLOAD,OYSTER CARD AUTO TOP-UP,Peoples Services Directorate,Travelling and Subsistence Allowances,A530,
http://opendatacommunities.org/id/london-borough-council/sutton,London Borough of Sutton,02/12/2020,1309207,20.00 , OYSTER BUS AUTOLOAD,OYSTER CARD AUTO TOP-UP,Peoples Services Directorate,Travelling and Subsistence Allowances,A530,
http://opendatacommunities.org/id/london-borough-council/sutton,London Borough of Sutton,02/12/2020,1309207,20.00 , OYSTER BUS AUTOLOAD,OYSTER CARD AUTO TOP-UP,Peoples Services Directorate,Travelling and Subsistence Allowances,A530,
http://opendatacommunities.org/id/london-borough-council/sutton,London Borough of Sutton,11/01/2021,1309674,25.00 , OYSTER ONLINE,NEW OYSTER CARD PURCHASE,Peoples Services Directorate,Travelling and Subsistence Allowances,A530,
http://opendatacommunities.org/id/london-borough-council/sutton,London Borough of Sutton,11/01/2021,1309674,25.00 , OYSTER ONLINE,NEW OYSTER CARD PURCHASE,Peoples Services Directorate,Travelling and Subsistence Allowances,A530,
http://opendatacommunities.org/id/london-borough-council/sutton,London Borough of Sutton,14/11/2020,1309204,16.67 , OYSTER BUS AUTOLOAD,AUTO TOP - UP,Peoples Services Directorate,Travelling and Subsistence Allowances,A530,
http://opendatacommunities.org/id/london-borough-council/sutton,London Borough of Sutton,28/10/2020,1309204,16.67 , OYSTER BUS AUTOLOAD,AUTO TOP UP,Peoples Services Directorate,Travelling and Subsistence Allowances,A530,
http://opendatacommunities.org/id/london-borough-council/sutton,London Borough of Sutton,18/11/2020,1309204,16.67 , OYSTER BUS AUTOLOAD,AUTO TOP - UP,Peoples Services Directorate,Travelling and Subsistence Allowances,A530,
http://opendatacommunities.org/id/london-borough-council/sutton,London Borough of Sutton,18/02/2021,1310864,304.05 , SMART KID STORE, TRIPLE BUGGY FOR CLIENT,Peoples Services Directorate,Personal Requisites,F106,
http://opendatacommunities.org/id/london-borough-council/sutton,London Borough of Sutton,03/02/2021,1310864,20.00 , OYSTER BUS AUTOLOAD,OYSTER CARD AUTO TO-UP,Peoples Services Directorate,Travelling and Subsistence Allowances,A530,
http://opendatacommunities.org/id/london-borough-council/sutton,London Borough of Sutton,18/12/2020,1309207,20.00 , OYSTER BUS AUTOLOAD,OYSTER CARD AUTO TOP-UP,Peoples Services Directorate,Travelling and Subsistence Allowances,A530,
http://opendatacommunities.org/id/london-borough-council/sutton,London Borough of Sutton,12/12/2020,1309207,20.00 , OYSTER BUS AUTOLOAD,OYSTER CARD AUTO TOP-UP,Peoples Services Directorate,Travelling and Subsistence Allowances,A530,
http://opendatacommunities.org/id/london-borough-council/sutton,London Borough of Sutton,23/11/2020,1309204,16.67 , AUTO TOP-UP ARREARS,OYSTER AUTO TOP - UP,Peoples Services Directorate,Travelling and Subsistence Allowances,A530,
http://opendatacommunities.org/id/london-borough-council/sutton,London Borough of Sutton,22/11/2020,1309204,16.67 , OYSTER BUS AUTOLOAD,AUTO TOP-UP,Peoples Services Directorate,Travelling and Subsistence Allowances,A530,
http://opendatacommunities.org/id/london-borough-council/sutton,London Borough of Sutton,26/10/2020,1309204,319.95 , ARGOS LTD,PERSONAL ITEMS REQUEST FROM ARGOS,Peoples Services Directorate,Personal Requisites,F106,
http://opendatacommunities.org/id/london-borough-council/sutton,London Borough of Sutton,08/01/2021,1309674,30.00 , AMAZON.CO.UK MJ5CR3KV4,SPLIT - AMAZON LOGO SQUID - AMAZON.CO.UK EGIFT VOUCHER (9.38%),Peoples Services Directorate,LAC - Education,F269,
http://opendatacommunities.org/id/london-borough-council/sutton,London Borough of Sutton,08/01/2021,1309674,30.00 , AMAZON.CO.UK MJ5CR3KV4,SPLIT - AMAZON LOGO SQUID - AMAZON.CO.UK EGIFT VOUCHER (9.38%),Peoples Services Directorate,LAC - Education,F269,
http://opendatacommunities.org/id/london-borough-council/sutton,London Borough of Sutton,08/01/2021,1309674,30.00 , AMAZON.CO.UK MJ5CR3KV4,SPLIT - AMAZON LOGO SQUID - AMAZON.CO.UK EGIFT VOUCHER (9.38%),Peoples Services Directorate,LAC - Education,F269,
http://opendatacommunities.org/id/london-borough-council/sutton,London Borough of Sutton,08/01/2021,1309674,30.00 , AMAZON.CO.UK MJ5CR3KV4,SPLIT - AMAZON LOGO SQUID - AMAZON.CO.UK EGIFT VOUCHER (9.38%),Peoples Services Directorate,LAC - Education,F269,
http://opendatacommunities.org/id/london-borough-council/sutton,London Borough of Sutton,08/01/2021,1309674,30.00 , AMAZON.CO.UK MJ5CR3KV4,SPLIT - AMAZON LOGO SQUID - AMAZON.CO.UK EGIFT VOUCHER (9.38%),Peoples Services Directorate,LAC - Education,F269,
http://opendatacommunities.org/id/london-borough-council/sutton,London Borough of Sutton,08/01/2021,1309674,30.00 , AMAZON.CO.UK MJ5CR3KV4,SPLIT - AMAZON LOGO SQUID - AMAZON.CO.UK EGIFT VOUCHER (9.38%),Peoples Services Directorate,LAC - Education,F269,
http://opendatacommunities.org/id/london-borough-council/sutton,London Borough of Sutton,11/02/2021,1310864,20.00 , AMAZON.CO.UK MF4BO9X14,SPLIT - AMAZON LOGO SQUID - AMAZON.CO.UK EGIFT VOUCHER (2.33%),Peoples Services Directorate,LAC - Education,F269,
http://opendatacommunities.org/id/london-borough-council/sutton,London Borough of Sutton,11/02/2021,1310864,20.00 , AMAZON.CO.UK MF4BO9X14,SPLIT - AMAZON LOGO SQUID - AMAZON.CO.UK EGIFT VOUCHER (2.33%),Peoples Services Directorate,LAC - Education,F269,
http://opendatacommunities.org/id/london-borough-council/sutton,London Borough of Sutton,11/02/2021,1310864,20.00 , AMAZON.CO.UK MF4BO9X14,SPLIT - AMAZON LOGO SQUID - AMAZON.CO.UK EGIFT VOUCHER (2.33%),Peoples Services Directorate,LAC - Education,F269,
http://opendatacommunities.org/id/london-borough-council/sutton,London Borough of Sutton,11/02/2021,1310864,20.00 , AMAZON.CO.UK MF4BO9X14,SPLIT - AMAZON LOGO SQUID - AMAZON.CO.UK EGIFT VOUCHER (2.33%),Peoples Services Directorate,LAC - Education,F269,
http://opendatacommunities.org/id/london-borough-council/sutton,London Borough of Sutton,11/02/2021,1310864,20.00 , AMAZON.CO.UK MF4BO9X14,SPLIT - AMAZON LOGO SQUID - AMAZON.CO.UK EGIFT VOUCHER (2.33%),Peoples Services Directorate,LAC - Education,F269,
http://opendatacommunities.org/id/london-borough-council/sutton,London Borough of Sutton,11/02/2021,1310864,20.00 , AMAZON.CO.UK MF4BO9X14,SPLIT - AMAZON LOGO SQUID - AMAZON.CO.UK EGIFT VOUCHER (2.33%),Peoples Services Directorate,LAC - Education,F269,
http://opendatacommunities.org/id/london-borough-council/sutton,London Borough of Sutton,11/02/2021,1310864,20.00 , AMAZON.CO.UK MF4BO9X14,SPLIT - AMAZON LOGO SQUID - AMAZON.CO.UK EGIFT VOUCHER (2.33%),Peoples Services Directorate,LAC - Education,F269,
http://opendatacommunities.org/id/london-borough-council/sutton,London Borough of Sutton,11/02/2021,1310864,20.00 , AMAZON.CO.UK MF4BO9X14,SPLIT - AMAZON LOGO SQUID - AMAZON.CO.UK EGIFT VOUCHER (2.33%),Peoples Services Directorate,LAC - Education,F269,
http://opendatacommunities.org/id/london-borough-council/sutton,London Borough of Sutton,11/02/2021,1310864,20.00 , AMAZON.CO.UK MF4BO9X14,SPLIT - AMAZON LOGO SQUID - AMAZON.CO.UK EGIFT VOUCHER (2.33%),Peoples Services Directorate,LAC - Education,F269,
http://opendatacommunities.org/id/london-borough-council/sutton,London Borough of Sutton,11/02/2021,1310864,20.00 , AMAZON.CO.UK MF4BO9X14,SPLIT - AMAZON LOGO SQUID - AMAZON.CO.UK EGIFT VOUCHER (2.33%),Peoples Services Directorate,LAC - Education,F269,
http://opendatacommunities.org/id/london-borough-council/sutton,London Borough of Sutton,11/02/2021,1310864,20.00 , AMAZON.CO.UK MF4BO9X14,SPLIT - AMAZON LOGO SQUID - AMAZON.CO.UK EGIFT VOUCHER (2.33%),Peoples Services Directorate,LAC - Education,F269,
http://opendatacommunities.org/id/london-borough-council/sutton,London Borough of Sutton,11/02/2021,1310864,20.00 , AMAZON.CO.UK MF4BO9X14,SPLIT - AMAZON LOGO SQUID - AMAZON.CO.UK EGIFT VOUCHER (2.33%),Peoples Services Directorate,LAC - Education,F269,
http://opendatacommunities.org/id/london-borough-council/sutton,London Borough of Sutton,11/02/2021,1310864,20.00 , AMAZON.CO.UK MF4BO9X14,SPLIT - AMAZON LOGO SQUID - AMAZON.CO.UK EGIFT VOUCHER (2.33%),Peoples Services Directorate,LAC - Education,F269,
http://opendatacommunities.org/id/london-borough-council/sutton,London Borough of Sutton,14/01/2021,1309674,10.00 , AMAZON.CO.UK MV2708F04,SPLIT - AMAZON LOGO SQUID - AMAZON.CO.UK EGIFT VOUCHER (2%),Peoples Services Directorate,LAC - Education,F269,
http://opendatacommunities.org/id/london-borough-council/sutton,London Borough of Sutton,14/01/2021,1309674,10.00 , AMAZON.CO.UK MV2708F04,SPLIT - AMAZON LOGO SQUID - AMAZON.CO.UK EGIFT VOUCHER (2%),Peoples Services Directorate,LAC - Education,F269,
http://opendatacommunities.org/id/london-borough-council/sutton,London Borough of Sutton,14/01/2021,1309674,10.00 , AMAZON.CO.UK MV2708F04,SPLIT - AMAZON LOGO SQUID - AMAZON.CO.UK EGIFT VOUCHER (2%),Peoples Services Directorate,LAC - Education,F269,
http://opendatacommunities.org/id/london-borough-council/sutton,London Borough of Sutton,14/01/2021,1309674,10.00 , AMAZON.CO.UK MV2708F04,SPLIT - AMAZON LOGO SQUID - AMAZON.CO.UK EGIFT VOUCHER (2%),Peoples Services Directorate,LAC - Education,F269,
http://opendatacommunities.org/id/london-borough-council/sutton,London Borough of Sutton,14/01/2021,1309674,10.00 , AMAZON.CO.UK MV2708F04,SPLIT - A FOR AMAZON - AMAZON.CO.UK EGIFT VOUCHER (2%),Peoples Services Directorate,LAC - Education,F269,
http://opendatacommunities.org/id/london-borough-council/sutton,London Borough of Sutton,14/01/2021,1309674,10.00 , AMAZON.CO.UK MV2708F04,SPLIT - AMAZON LOGO SQUID - AMAZON.CO.UK EGIFT VOUCHER (2%),Peoples Services Directorate,LAC - Education,F269,
http://opendatacommunities.org/id/london-borough-council/sutton,London Borough of Sutton,14/01/2021,1309674,10.00 , AMAZON.CO.UK MV2708F04,SPLIT - AMAZON LOGO SQUID - AMAZON.CO.UK EGIFT VOUCHER (2%),Peoples Services Directorate,LAC - Education,F269,
http://opendatacommunities.org/id/london-borough-council/sutton,London Borough of Sutton,13/01/2021,1309674,257.49 , AMZNMKTPLACE,"SPLIT - 15.6 INCH LAPTOP (INTEL CELERON 64-BIT, 8GB DDR3 RAM, 128GB SSD, 10000MAH BATTERY, HD WEBCAM, WINDOWS 10 OS PREINSTALLED, 1920 * 1080 FHD IPS DISPLAY) NOTEBOOK (100%)",Peoples Services Directorate,LAC - Education,F269,
http://opendatacommunities.org/id/london-borough-council/sutton,London Borough of Sutton,13/01/2021,1309674,3.95 , AMZNMKTPLACE,"SPLIT - HANDWRITING PRACTICE BOOK 2: KS2 ENGLISH, AGES 7-11 (100%)",Peoples Services Directorate,LAC - Education,F269,
http://opendatacommunities.org/id/london-borough-council/sutton,London Borough of Sutton,12/01/2021,1309674,33.15 , ROYAL MAIL GROUP LTD,POSTING LAPTOPS,Peoples Services Directorate,LAC - Education,F269,
http://opendatacommunities.org/id/london-borough-council/sutton,London Borough of Sutton,11/01/2021,1309674,68.40 , MARKALLENGROUP.COM/MA-,TES SHOW,Peoples Services Directorate,LAC - Education,F269,
http://opendatacommunities.org/id/london-borough-council/sutton,London Borough of Sutton,08/01/2021,1309674,30.00 , AMAZON.CO.UK MJ5CR3KV4,SPLIT - AMAZON LOGO SQUID - AMAZON.CO.UK EGIFT VOUCHER (9.38%),Peoples Services Directorate,LAC - Education,F269,
http://opendatacommunities.org/id/london-borough-council/sutton,London Borough of Sutton,08/01/2021,1309674,30.00 , AMAZON.CO.UK MJ5CR3KV4,SPLIT - AMAZON LOGO SQUID - AMAZON.CO.UK EGIFT VOUCHER (9.38%),Peoples Services Directorate,LAC - Education,F269,
http://opendatacommunities.org/id/london-borough-council/sutton,London Borough of Sutton,11/02/2021,1310864,20.00 , AMAZON.CO.UK MF4BO9X14,SPLIT - AMAZON LOGO SQUID - AMAZON.CO.UK EGIFT VOUCHER (2.33%),Peoples Services Directorate,LAC - Education,F269,
http://opendatacommunities.org/id/london-borough-council/sutton,London Borough of Sutton,11/02/2021,1310864,10.00 , AMAZON.CO.UK MF4BO9X14,SPLIT - AMAZON LOGO SQUID - AMAZON.CO.UK EGIFT VOUCHER (1.16%),Peoples Services Directorate,LAC - Education,F269,
http://opendatacommunities.org/id/london-borough-council/sutton,London Borough of Sutton,11/02/2021,1310864,20.00 , AMAZON.CO.UK MF4BO9X14,SPLIT - AMAZON LOGO SQUID - AMAZON.CO.UK EGIFT VOUCHER (2.33%),Peoples Services Directorate,LAC - Education,F269,
http://opendatacommunities.org/id/london-borough-council/sutton,London Borough of Sutton,11/02/2021,1310864,20.00 , AMAZON.CO.UK MF4BO9X14,SPLIT - AMAZON LOGO SQUID - AMAZON.CO.UK EGIFT VOUCHER (2.33%),Peoples Services Directorate,LAC - Education,F269,
http://opendatacommunities.org/id/london-borough-council/sutton,London Borough of Sutton,11/02/2021,1310864,20.00 , AMAZON.CO.UK MF4BO9X14,SPLIT - AMAZON LOGO SQUID - AMAZON.CO.UK EGIFT VOUCHER (2.33%),Peoples Services Directorate,LAC - Education,F269,
http://opendatacommunities.org/id/london-borough-council/sutton,London Borough of Sutton,11/02/2021,1310864,20.00 , AMAZON.CO.UK MF4BO9X14,SPLIT - AMAZON LOGO SQUID - AMAZON.CO.UK EGIFT VOUCHER (2.33%),Peoples Services Directorate,LAC - Education,F269,
http://opendatacommunities.org/id/london-borough-council/sutton,London Borough of Sutton,11/02/2021,1310864,20.00 , AMAZON.CO.UK MF4BO9X14,SPLIT - AMAZON LOGO SQUID - AMAZON.CO.UK EGIFT VOUCHER (2.33%),Peoples Services Directorate,LAC - Education,F269,
http://opendatacommunities.org/id/london-borough-council/sutton,London Borough of Sutton,11/02/2021,1310864,20.00 , AMAZON.CO.UK MF4BO9X14,SPLIT - AMAZON LOGO SQUID - AMAZON.CO.UK EGIFT VOUCHER (2.33%),Peoples Services Directorate,LAC - Education,F269,
http://opendatacommunities.org/id/london-borough-council/sutton,London Borough of Sutton,11/02/2021,1310864,20.00 , AMAZON.CO.UK MF4BO9X14,SPLIT - AMAZON LOGO SQUID - AMAZON.CO.UK EGIFT VOUCHER (2.33%),Peoples Services Directorate,LAC - Education,F269,
http://opendatacommunities.org/id/london-borough-council/sutton,London Borough of Sutton,11/02/2021,1310864,20.00 , AMAZON.CO.UK MF4BO9X14,SPLIT - AMAZON LOGO SQUID - AMAZON.CO.UK EGIFT VOUCHER (2.33%),Peoples Services Directorate,LAC - Education,F269,
http://opendatacommunities.org/id/london-borough-council/sutton,London Borough of Sutton,11/02/2021,1310864,10.00 , AMAZON.CO.UK MF4BO9X14,SPLIT - AMAZON LOGO SQUID - AMAZON.CO.UK EGIFT VOUCHER (1.16%),Peoples Services Directorate,LAC - Education,F269,
http://opendatacommunities.org/id/london-borough-council/sutton,London Borough of Sutton,11/02/2021,1310864,20.00 , AMAZON.CO.UK MF4BO9X14,SPLIT - AMAZON LOGO SQUID - AMAZON.CO.UK EGIFT VOUCHER (2.33%),Peoples Services Directorate,LAC - Education,F269,
http://opendatacommunities.org/id/london-borough-council/sutton,London Borough of Sutton,11/02/2021,1310864,20.00 , AMAZON.CO.UK MF4BO9X14,SPLIT - AMAZON LOGO SQUID - AMAZON.CO.UK EGIFT VOUCHER (2.33%),Peoples Services Directorate,LAC - Education,F269,
http://opendatacommunities.org/id/london-borough-council/sutton,London Borough of Sutton,11/02/2021,1310864,20.00 , AMAZON.CO.UK MF4BO9X14,SPLIT - AMAZON LOGO SQUID - AMAZON.CO.UK EGIFT VOUCHER (2.33%),Peoples Services Directorate,LAC - Education,F269,
http://opendatacommunities.org/id/london-borough-council/sutton,London Borough of Sutton,20/12/2020,1309207,9.26 , AMAZON.CO.UK MS2RB9U54,SPLIT - GCSE BUSINESS COMPLETE REVISION AND PRACTICE - FOR THE GRADE 9-1 COURSE (WITH ONLINE EDITION): IDEAL REVISION FOR MOCKS AND EXAMS IN 2021 AND 2022 (CGP GCSE BUSINESS 9-1 REVISION) (26.77%),Peoples Services Directorate,LAC - Education,F269,
http://opendatacommunities.org/id/london-borough-council/sutton,London Borough of Sutton,20/12/2020,1309207,6.71 , AMAZON.CO.UK MS2RB9U54,SPLIT - GCSE ENGLISH LANGUAGE AQA COMPLETE REVISION & PRACTICE - GRADE 9-1 COURSE (WITH ONLINE EDITION): PERFECT REVISION FOR MOCKS AND EXAMS IN 2021 AND 2022 (CGP GCSE ENGLISH 9-1 REVISION) (19.42%),Peoples Services Directorate,LAC - Education,F269,
http://opendatacommunities.org/id/london-borough-council/sutton,London Borough of Sutton,20/12/2020,1309207,9.27 , AMAZON.CO.UK MS2RB9U54,"SPLIT - NEW 2021 GCSE MATHS EDEXCEL COMPLETE REVISION & PRACTICE: HIGHER INC ONLINE ED, VIDEOS & QUIZZES (CGP GCSE MATHS 9-1 REVISION) (26.8%)",Peoples Services Directorate,LAC - Education,F269,
http://opendatacommunities.org/id/london-borough-council/sutton,London Borough of Sutton,20/12/2020,1309207,2.35 , AMAZON.CO.UK MS2RB9U54,BALANCING ENTRY AMOUNT (7.59%),Peoples Services Directorate,LAC - Education,F269,
http://opendatacommunities.org/id/london-borough-council/sutton,London Borough of Sutton,15/12/2020,1309207,6.99 , AMAZON.CO.UK MS0VK6MO4,SPLIT - GCSE ENGLISH LANGUAGE AQA COMPLETE REVISION & PRACTICE - GRADE 9-1 COURSE (WITH ONLINE EDITION): PERFECT REVISION FOR MOCKS AND EXAMS IN 2021 AND 2022 (CGP GCSE ENGLISH 9-1 REVISION) (44.38%),Peoples Services Directorate,LAC - Education,F269,
http://opendatacommunities.org/id/london-borough-council/sutton,London Borough of Sutton,15/12/2020,1309207,5.77 , AMAZON.CO.UK MS0VK6MO4,SPLIT - GCSE ENGLISH LANGUAGE AQA EXAM PRACTICE WORKBOOK - FOR THE GRADE 9-1 COURSE (INCLUDES ANSWERS): PERFECT REVISION FOR MOCKS AND EXAMS IN 2021 AND 2022 (CGP GCSE ENGLISH 9-1 REVISION) (36.63%),Peoples Services Directorate,LAC - Education,F269,
http://opendatacommunities.org/id/london-borough-council/sutton,London Borough of Sutton,15/12/2020,1309207,2.99 , AMAZON.CO.UK MS0VK6MO4,BALANCING ENTRY AMOUNT (18.99%),Peoples Services Directorate,LAC - Education,F269,
http://opendatacommunities.org/id/london-borough-council/sutton,London Borough of Sutton,13/12/2020,1309207,35.00 , 3P LEARNING,MATHLETICS 6 MONTHS FOR JAY T,Peoples Services Directorate,LAC - Education,F269,
http://opendatacommunities.org/id/london-borough-council/sutton,London Borough of Sutton,13/12/2020,1309207,5.45 , AMAZON.CO.UK MS2UG0164,"SPLIT - MARVEL AVENGERS ACTIVITY BOOK FOR KIDS AGES 4-12: WORD SEARCH, MAZES, COLOR BY NUMBER, DOT-TO-DOT, FIND THE MATCH AND MORE! (57.73%)",Peoples Services Directorate,LAC - Education,F269,
http://opendatacommunities.org/id/london-borough-council/sutton,London Borough of Sutton,13/12/2020,1309207,3.99 , AMAZON.CO.UK MS2UG0164,BALANCING ENTRY AMOUNT (42.27%),Peoples Services Directorate,LAC - Education,F269,
http://opendatacommunities.org/id/london-borough-council/sutton,London Borough of Sutton,11/12/2020,1309207,4.16 , AMAZON.CO.UK MS9IW1TM4,"SPLIT - RAVENSBURGER 6958 PEPPA PIG-4 IN BOX (12, 16, 20, 24 PIECE) JIGSAW PUZZLES FOR KIDS AGE 3 YEARS AND UP (45.46%)",Peoples Services Directorate,LAC - Education,F269,
http://opendatacommunities.org/id/london-borough-council/sutton,London Borough of Sutton,11/12/2020,1309207,4.99 , AMAZON.CO.UK MS9IW1TM4,BALANCING ENTRY AMOUNT (54.54%),Peoples Services Directorate,LAC - Education,F269,
http://opendatacommunities.org/id/london-borough-council/sutton,London Borough of Sutton,10/12/2020,1309207,6.52 , AMAZON.CO.UK MS1ZS2374,SPLIT - HASBRO GAMING BOGGLE (65.3%),Peoples Services Directorate,LAC - Education,F269,
http://opendatacommunities.org/id/london-borough-council/sutton,London Borough of Sutton,10/12/2020,1309207,3.47 , AMAZON.CO.UK MS1ZS2374,BALANCING ENTRY AMOUNT (34.7%),Peoples Services Directorate,LAC - Education,F269,
http://opendatacommunities.org/id/london-borough-council/sutton,London Borough of Sutton,10/12/2020,1309207,8.56 , AMAZON.CO.UK MS8X57NA4,SPLIT - ORCHARD TOYS TIMES TABLES HEROES (21.41%),Peoples Services Directorate,LAC - Education,F269,
http://opendatacommunities.org/id/london-borough-council/sutton,London Borough of Sutton,10/12/2020,1309207,21.06 , AMAZON.CO.UK MS8X57NA4,"SPLIT - LEGO 11009 CLASSIC BRICKS AND LIGHTS SHADOW PUPPET THEATER SET WITH LIGHT BRICKS, CREATIVE FUN FOR 5+ YEAR OLD (52.68%)",Peoples Services Directorate,LAC - Education,F269,
http://opendatacommunities.org/id/london-borough-council/sutton,London Borough of Sutton,10/12/2020,1309207,6.90 , AMAZON.CO.UK MS8X57NA4,"SPLIT - BRAINBOX GRE91039 FIRST: PEPPA PIG, MIXED COLOURS (17.26%)",Peoples Services Directorate,LAC - Education,F269,
http://opendatacommunities.org/id/london-borough-council/sutton,London Borough of Sutton,10/12/2020,1309207,3.44 , AMAZON.CO.UK MS8X57NA4,BALANCING ENTRY AMOUNT (8.65%),Peoples Services Directorate,LAC - Education,F269,
http://opendatacommunities.org/id/london-borough-council/sutton,London Borough of Sutton,10/12/2020,1309207,6.02 , AMZNMKTPLACE,"SPLIT - LITTLE BRIAN LBPS10CA12 PAINT STICKS COLORS-12, ASSORTED CLASSIC, PACK OF 12 (100%)",Peoples Services Directorate,LAC - Education,F269,
http://opendatacommunities.org/id/london-borough-council/sutton,London Borough of Sutton,04/12/2020,1309207,50.00 , AMAZON.CO.UK MY90O37I4,SPLIT - AMAZON LOGO SQUID - AMAZON.CO.UK EGIFT VOUCHER (14.29%),Peoples Services Directorate,LAC - Education,F269,
http://opendatacommunities.org/id/london-borough-council/sutton,London Borough of Sutton,04/12/2020,1309207,50.00 , AMAZON.CO.UK MY90O37I4,SPLIT - AMAZON LOGO SQUID - AMAZON.CO.UK EGIFT VOUCHER (14.29%),Peoples Services Directorate,LAC - Education,F269,
http://opendatacommunities.org/id/london-borough-council/sutton,London Borough of Sutton,04/12/2020,1309207,50.00 , AMAZON.CO.UK MY90O37I4,SPLIT - A FOR AMAZON - AMAZON.CO.UK EGIFT VOUCHER (14.29%),Peoples Services Directorate,LAC - Education,F269,
http://opendatacommunities.org/id/london-borough-council/sutton,London Borough of Sutton,04/12/2020,1309207,50.00 , AMAZON.CO.UK MY90O37I4,SPLIT - AMAZON LOGO SQUID - AMAZON.CO.UK EGIFT VOUCHER (14.29%),Peoples Services Directorate,LAC - Education,F269,
http://opendatacommunities.org/id/london-borough-council/sutton,London Borough of Sutton,04/12/2020,1309207,50.00 , AMAZON.CO.UK MY90O37I4,SPLIT - AMAZON LOGO SQUID - AMAZON.CO.UK EGIFT VOUCHER (14.29%),Peoples Services Directorate,LAC - Education,F269,
http://opendatacommunities.org/id/london-borough-council/sutton,London Borough of Sutton,04/12/2020,1309207,50.00 , AMAZON.CO.UK MY90O37I4,SPLIT - AMAZON LOGO SQUID - AMAZON.CO.UK EGIFT VOUCHER (14.29%),Peoples Services Directorate,LAC - Education,F269,
http://opendatacommunities.org/id/london-borough-council/sutton,London Borough of Sutton,04/12/2020,1309207,50.00 , AMAZON.CO.UK MY90O37I4,SPLIT - AMAZON LOGO SQUID - AMAZON.CO.UK EGIFT VOUCHER (14.26%),Peoples Services Directorate,LAC - Education,F269,
http://opendatacommunities.org/id/london-borough-council/sutton,London Borough of Sutton,26/11/2020,1309207,7.99 , AMAZON.CO.UK MY8VO6EL4,SPLIT - MACBETH (10.59%),Peoples Services Directorate,LAC - Education,F269,
http://opendatacommunities.org/id/london-borough-council/sutton,London Borough of Sutton,26/11/2020,1309207,13.50 , AMAZON.CO.UK MY8VO6EL4,"SPLIT - EDEXCEL GCSE (9-1) HISTORY: SUPERPOWER RELATIONS AND THE COLD WAR, 1941-91 (EDEXCEL GCSE HISTORY (9-1)) (17.89%)",Peoples Services Directorate,LAC - Education,F269,
http://opendatacommunities.org/id/london-borough-council/sutton,London Borough of Sutton,26/11/2020,1309207,24.99 , AMAZON.CO.UK MY8VO6EL4,SPLIT - AQA GCSE (9-1) RELIGIOUS STUDIES SPECIFICATION A (33.11%),Peoples Services Directorate,LAC - Education,F269,
http://opendatacommunities.org/id/london-borough-council/sutton,London Borough of Sutton,26/11/2020,1309207,15.50 , AMAZON.CO.UK MY8VO6EL4,SPLIT - AQA GCSE BIOLOGY FOR COMBINED SCIENCE (TRILOGY) STUDENT BOOK (AQA GCSE SCIENCE 3RD EDITION) (20.54%),Peoples Services Directorate,LAC - Education,F269,
http://opendatacommunities.org/id/london-borough-council/sutton,London Borough of Sutton,26/11/2020,1309207,13.50 , AMAZON.CO.UK MY8VO6EL4,"SPLIT - EDEXCEL GCSE (9-1) HISTORY: EARLY ELIZABETHAN ENGLAND, 1558-1588 (EDEXCEL GCSE HISTORY (9-1)) (17.87%)",Peoples Services Directorate,LAC - Education,F269,
http://opendatacommunities.org/id/london-borough-council/sutton,London Borough of Sutton,26/11/2020,1309207,12.00 , ROYAL MAIL GROUP LTD,POSTAGE FOR CLA LAPTOPS,Peoples Services Directorate,LAC - Education,F269,
http://opendatacommunities.org/id/london-borough-council/sutton,London Borough of Sutton,26/11/2020,1309207,5.55 , AMAZON.CO.UK MY5987EE4,"SPLIT - PEARSON EDEXCEL GCSE (9-1) HISTORY WEIMAR AND NAZI GERMANY, 1918-39 REVISION GUIDE AND WORKBOOK + APP: CATCH-UP AND REVISE (REVISE EDEXCEL GCSE HISTORY 16) (100%)",Peoples Services Directorate,LAC - Education,F269,
http://opendatacommunities.org/id/london-borough-council/sutton,London Borough of Sutton,11/02/2021,1310864,20.00 , AMAZON.CO.UK MF4BO9X14,SPLIT - AMAZON LOGO SQUID - AMAZON.CO.UK EGIFT VOUCHER (2.33%),Peoples Services Directorate,LAC - Education,F269,
http://opendatacommunities.org/id/london-borough-council/sutton,London Borough of Sutton,11/02/2021,1310864,20.00 , AMAZON.CO.UK MF4BO9X14,SPLIT - AMAZON LOGO SQUID - AMAZON.CO.UK EGIFT VOUCHER (2.33%),Peoples Services Directorate,LAC - Education,F269,
http://opendatacommunities.org/id/london-borough-council/sutton,London Borough of Sutton,11/02/2021,1310864,20.00 , AMAZON.CO.UK MF4BO9X14,SPLIT - AMAZON LOGO SQUID - AMAZON.CO.UK EGIFT VOUCHER (2.33%),Peoples Services Directorate,LAC - Education,F269,
http://opendatacommunities.org/id/london-borough-council/sutton,London Borough of Sutton,11/02/2021,1310864,20.00 , AMAZON.CO.UK MF4BO9X14,SPLIT - AMAZON LOGO SQUID - AMAZON.CO.UK EGIFT VOUCHER (2.33%),Peoples Services Directorate,LAC - Education,F269,
http://opendatacommunities.org/id/london-borough-council/sutton,London Borough of Sutton,11/02/2021,1310864,20.00 , AMAZON.CO.UK MF4BO9X14,SPLIT - A FOR AMAZON - AMAZON.CO.UK EGIFT VOUCHER (2.33%),Peoples Services Directorate,LAC - Education,F269,
http://opendatacommunities.org/id/london-borough-council/sutton,London Borough of Sutton,11/02/2021,1310864,20.00 , AMAZON.CO.UK MF4BO9X14,SPLIT - AMAZON LOGO SQUID - AMAZON.CO.UK EGIFT VOUCHER (2.33%),Peoples Services Directorate,LAC - Education,F269,
http://opendatacommunities.org/id/london-borough-council/sutton,London Borough of Sutton,11/02/2021,1310864,20.00 , AMAZON.CO.UK MF4BO9X14,SPLIT - AMAZON LOGO SQUID - AMAZON.CO.UK EGIFT VOUCHER (2.33%),Peoples Services Directorate,LAC - Education,F269,
http://opendatacommunities.org/id/london-borough-council/sutton,London Borough of Sutton,11/02/2021,1310864,20.00 , AMAZON.CO.UK MF4BO9X14,SPLIT - AMAZON LOGO SQUID - AMAZON.CO.UK EGIFT VOUCHER (2.33%),Peoples Services Directorate,LAC - Education,F269,
http://opendatacommunities.org/id/london-borough-council/sutton,London Borough of Sutton,11/02/2021,1310864,20.00 , AMAZON.CO.UK MF4BO9X14,SPLIT - AMAZON LOGO SQUID - AMAZON.CO.UK EGIFT VOUCHER (2.33%),Peoples Services Directorate,LAC - Education,F269,
http://opendatacommunities.org/id/london-borough-council/sutton,London Borough of Sutton,11/02/2021,1310864,20.00 , AMAZON.CO.UK MF4BO9X14,SPLIT - AMAZON LOGO SQUID - AMAZON.CO.UK EGIFT VOUCHER (2.33%),Peoples Services Directorate,LAC - Education,F269,
http://opendatacommunities.org/id/london-borough-council/sutton,London Borough of Sutton,11/02/2021,1310864,20.00 , AMAZON.CO.UK MF4BO9X14,SPLIT - AMAZON LOGO SQUID - AMAZON.CO.UK EGIFT VOUCHER (2.33%),Peoples Services Directorate,LAC - Education,F269,
http://opendatacommunities.org/id/london-borough-council/sutton,London Borough of Sutton,11/02/2021,1310864,20.00 , AMAZON.CO.UK MF4BO9X14,SPLIT - AMAZON LOGO SQUID - AMAZON.CO.UK EGIFT VOUCHER (2.33%),Peoples Services Directorate,LAC - Education,F269,
http://opendatacommunities.org/id/london-borough-council/sutton,London Borough of Sutton,11/02/2021,1310864,20.00 , AMAZON.CO.UK MF4BO9X14,SPLIT - AMAZON LOGO SQUID - AMAZON.CO.UK EGIFT VOUCHER (2.33%),Peoples Services Directorate,LAC - Education,F269,
http://opendatacommunities.org/id/london-borough-council/sutton,London Borough of Sutton,11/02/2021,1310864,20.00 , AMAZON.CO.UK MF4BO9X14,SPLIT - AMAZON LOGO SQUID - AMAZON.CO.UK EGIFT VOUCHER (2.33%),Peoples Services Directorate,LAC - Education,F269,
http://opendatacommunities.org/id/london-borough-council/sutton,London Borough of Sutton,11/02/2021,1310864,20.00 , AMAZON.CO.UK MF4BO9X14,SPLIT - AMAZON LOGO SQUID - AMAZON.CO.UK EGIFT VOUCHER (2.33%),Peoples Services Directorate,LAC - Education,F269,
http://opendatacommunities.org/id/london-borough-council/sutton,London Borough of Sutton,25/11/2020,1309204,9.85 , AMAZON.CO.UK MY6OL8TB4,SPLIT - AN INSPECTOR CALLS (HEINEMANN PLAYS FOR 14-16+) (12.5%),Peoples Services Directorate,LAC - Education,F269,
http://opendatacommunities.org/id/london-borough-council/sutton,London Borough of Sutton,25/11/2020,1309204,5.50 , AMAZON.CO.UK MY6OL8TB4,SPLIT - GCSE ENGLISH LITERATURE AQA POETRY GUIDE: POWER & CONFLICT ANTHOLOGY - FOR THE GRADE 9-1 COURSE: IDEAL REVISION FOR MOCKS AND EXAMS IN 2021 AND 2022 (CGP GCSE ENGLISH 9-1 REVISION) (6.98%),Peoples Services Directorate,LAC - Education,F269,
http://opendatacommunities.org/id/london-borough-council/sutton,London Borough of Sutton,25/11/2020,1309204,15.50 , AMAZON.CO.UK MY6OL8TB4,SPLIT - AQA GCSE PHYSICS FOR COMBINED SCIENCE (TRILOGY) STUDENT BOOK (AQA GCSE SCIENCE 3RD EDITION) (19.67%),Peoples Services Directorate,LAC - Education,F269,
http://opendatacommunities.org/id/london-borough-council/sutton,London Borough of Sutton,25/11/2020,1309204,4.16 , AMAZON.CO.UK MY6OL8TB4,SPLIT - REVISE EDEXCEL GCSE (9-1) HISTORY: EARLY ELIZABETHAN ENGLAND REVISION CARDS: WITH FREE ONLINE REVISION GUIDE AND WORKBOOK (REVISE EDEXCEL GCSE HISTORY 16) (6.33%),Peoples Services Directorate,LAC - Education,F269,
http://opendatacommunities.org/id/london-borough-council/sutton,London Borough of Sutton,25/11/2020,1309204,24.22 , AMAZON.CO.UK MY6OL8TB4,SPLIT - WJEC/EDUQAS GCSE MEDIA STUDIES: STUDENT BOOK (30.73%),Peoples Services Directorate,LAC - Education,F269,
http://opendatacommunities.org/id/london-borough-council/sutton,London Borough of Sutton,25/11/2020,1309204,9.21 , AMAZON.CO.UK MY6OL8TB4,SPLIT - EDEXCEL GCSE 9-1 MATHS FOUNDATION ALL-IN-ONE COMPLETE REVISION AND PRACTICE: FOR THE 2020 AUTUMN & 2021 SUMMER EXAMS (COLLINS GCSE GRADE 9-1 REVISION) (12.27%),Peoples Services Directorate,LAC - Education,F269,
http://opendatacommunities.org/id/london-borough-council/sutton,London Borough of Sutton,25/11/2020,1309204,8.16 , AMAZON.CO.UK MY6OL8TB4,SPLIT - GRADE 9-1 GCSE COMBINED SCIENCE FOR AQA PHYSICS STUDENT BOOK WITH ONLINE EDITION: PERFECT REVISION FOR MOCKS AND EXAMS IN 2021 AND 2022 (CGP GCSE COMBINED SCIENCE 9-1 REVISION) (11.53%),Peoples Services Directorate,LAC - Education,F269,
http://opendatacommunities.org/id/london-borough-council/sutton,London Borough of Sutton,26/11/2020,1309207,5.55 , AMAZON.CO.UK MY0129EM4,"SPLIT - PEARSON EDEXCEL GCSE (9-1) HISTORY CRIME AND PUNISHMENT IN BRITAIN, C1000-PRESENT REVISION GUIDE AND WORKBOOK + APP: CATCH-UP AND REVISE (REVISE EDEXCEL GCSE HISTORY 16) (100%)",Peoples Services Directorate,LAC - Education,F269,
http://opendatacommunities.org/id/london-borough-council/sutton,London Borough of Sutton,14/01/2021,1309674,10.00 , AMAZON.CO.UK MV2708F04,SPLIT - AMAZON LOGO SQUID - AMAZON.CO.UK EGIFT VOUCHER (2%),Peoples Services Directorate,LAC - Education,F269,
http://opendatacommunities.org/id/london-borough-council/sutton,London Borough of Sutton,11/02/2021,1310864,20.00 , AMAZON.CO.UK MF4BO9X14,SPLIT - AMAZON LOGO SQUID - AMAZON.CO.UK EGIFT VOUCHER (2.15%),Peoples Services Directorate,LAC - Education,F269,
http://opendatacommunities.org/id/london-borough-council/sutton,London Borough of Sutton,10/02/2021,1310864,9.99 , AMZNMKTPLACE AMAZON.CO,SPLIT - NEW CASIO FX-83GTX SCIENTIFIC CALCULATOR PINK (39.39%),Peoples Services Directorate,LAC - Education,F269,
http://opendatacommunities.org/id/london-borough-council/sutton,London Borough of Sutton,10/02/2021,1310864,8.23 , AMZNMKTPLACE AMAZON.CO,SPLIT - REVISE PEARSON EDEXCEL GCSE (9-1) ENGLISH LANGUAGE REVISION CARDS: INCLUDES FREE ONLINE EDITION OF REVISION GUIDE (REVISE EDEXCEL GCSE ENGLISH 2015) (32.46%),Peoples Services Directorate,LAC - Education,F269,
http://opendatacommunities.org/id/london-borough-council/sutton,London Borough of Sutton,10/02/2021,1310864,7.14 , AMZNMKTPLACE AMAZON.CO,SPLIT - HELIX AE5000 ORACLE MATHS SET (28.15%),Peoples Services Directorate,LAC - Education,F269,
http://opendatacommunities.org/id/london-borough-council/sutton,London Borough of Sutton,09/02/2021,1310864,77.35 , ROYAL MAIL GROUP LTD,POSTAGE FOR MUSIC TECH ENRICHMENT COURSE,Peoples Services Directorate,LAC - Education,F269,
http://opendatacommunities.org/id/london-borough-council/sutton,London Borough of Sutton,07/02/2021,1310864,7.90 , AMAZON.CO.UK MF77I6JL4,SPLIT - ENGLISH FOR EVERYONE PRACTICE BOOK LEVEL 2 BEGINNER: A COMPLETE SELF-STUDY PROGRAMME (69.2%),Peoples Services Directorate,LAC - Education,F269,
http://opendatacommunities.org/id/london-borough-council/sutton,London Borough of Sutton,07/02/2021,1310864,3.19 , AMAZON.CO.UK MF77I6JL4,BALANCING ENTRY AMOUNT (30.8%),Peoples Services Directorate,LAC - Education,F269,
http://opendatacommunities.org/id/london-borough-council/sutton,London Borough of Sutton,03/02/2021,1310864,14.16 , AMZNMKTPLACE AMAZON.CO,"SPLIT - BV & JO WATERPROOF BLACK CAMERA CASE COMPATIBLE WITH CANON 4000D, 2000D,250D,200D,800D,750D,700D,90D 80D,7D,SX60,NIKON D3500,D3400,D5600,D5500,B900,SO (4.29%)",Peoples Services Directorate,LAC - Education,F269,
http://opendatacommunities.org/id/london-borough-council/sutton,London Borough of Sutton,03/02/2021,1310864,379.00 , AMZNMKTPLACE AMAZON.CO,SPLIT - CANON EOS 4000D DSLR CAMERA AND EF-S 18-55 MM F/3.5-5.6 III LENS - BLACK (95.71%),Peoples Services Directorate,LAC - Education,F269,
